Workbook

Sheet Estimates Summary
A1: BRANDON UNIVERSITY
A2: Consolidated Operating Budget
B5: ACTUAL | E5: Budget
F6: Maintenance of
F7: Existing Programs
E8: Approved | F8: Preliminary | G8: Factors &
A9: INCOME: | B9: 2015/16 | C9: 2016/17 | D9: 2017/18 | E9: 2018/19 | F9: 2019/20 | G9: Assumptions
A10: Student Academic Fees | B10: 7517472 | C10: 8094817 | D10: 8678655 | E10: 9802349 | F10: 10733571.94 | G10: 0.09499997766
A11: Education Programs (PENT/CBE/BUGDEP/OCN) | B11: 695410 | C11: 657329.26 | D11: 952253 | E11: 818797 | F11: 818797 | G11: 0
A12: Music Conservatory | B12: 374988 | C12: 394888 | D12: 391114 | E12: 414100 | F12: 422900 | G12: 0.02125090558
A13: Visa Student Tuition Fee Surcharge | B13: 421745 | C13: 538477 | D13: 743939 | E13: 842120 | F13: 1847953 | G13: 1.194405785
A14: Brandon University Foundation and Donations | B14: 742773 | C14: 850386 | D14: 754283 | E14: 557700 | F14: 557700 | G14: 0
A15: Miscellaneous Income | B15: 518946 | C15: 766356 | D15: 625132 | E15: 784086 | F15: 784086 | G15: 0
A16: TOTAL NON-COUNCIL OPERATING FUNDS | B16: =SUM(B10:B15) -> 10271334 | C16: =SUM(C10:C15) -> 11302253.26 | D16: =SUM(D10:D15) -> 12145376 | E16: =SUM(E10:E15) -> 13219152 | F16: =SUM(F10:F15) -> 15165007.94 | G16: 0.147199755
A18: Education & Training Division:
A19: - Operating Funding | B19: 37431028 | C19: 38357028 | D19: 38357014 | E19: 38018000 | F19: 38018000 | G19: 0
A20: - Grants for Manitoba Scholarships & Bursaries Initiative (MSBI) | D20: 332900
A21: - Grants for First Claims (Mortgage) | B21: 133372 | C21: 133372 | D21: 133358 | E21: 133358 | F21: 133358 | G21: 0
A22: - Grants for Promissory Notes | B22: 1043401 | C22: 1057200 | D22: 1050364 | E22: 1032612 | F22: 1016415 | G22: -0.0156854656
A23: - General Operating - Baseline | B23: =SUM(B19:B22) -> 38607801 | C23: =SUM(C19:C22) -> 39547600 | D23: 39873636 | E23: 39183970 | F23: 39167773 | G23: -0.0004133578093
A24: - Equipment and Renovations | B24: 330000 | C24: 330000 | D24: 330000 | E24: 330000 | F24: 330000 | G24: 0
A25: TOTAL MET OPERATING FUNDS | B25: =SUM(B23:B24) -> 38937801 | C25: =SUM(C23:C24) -> 39877600 | D25: 40203636 | E25: 39513970 | F25: 39497773 | G25: -0.0004099056612
A27: Ancillary Services | B27: 4934914 | C27: 3467410 | D27: 4043941 | E27: 3676524 | F27: 3697265 | G27: 0.005641470041
A28: TOTAL REVENUES | B28: =+B27+B25+B16 -> 54144049 | C28: =+C27+C25+C16 -> 54647263.26 | D28: =+D27+D25+D16 -> 56392953 | E28: 56409646 | F28: 58360045.94 | G28: 0.03457564573
A30: EXPENDITURES:
A31: General Operating Expenditure
A32: - Schedules A and B | B32: 46486488 | C32: 47950101.47 | D32: 48743798 | E32: 50004255 | F32: 52047406.12 | G32: 0.04085954517
A33: Promissory Notes - Principal & Interest | B33: 1043401 | C33: 1057200 | D33: 1050364 | E33: 1032612 | F33: 1016415 | G33: -0.0156854656
A34: Mortgage Payment | B34: 133372 | C34: 133372 | D34: 133358 | E34: 133358 | F34: 133358 | G34: 0
A35: Education Programs (PENT/CBE/BUGDEP/OCN) | B35: 783901 | C35: 609485 | D35: 951647 | E35: 843991 | F35: 860870.82 | G35: 0.02
A36: Conservatory | B36: 390786 | C36: 400318 | D36: 433246 | E36: 414100 | F36: 422900 | G36: 0.02125090558
A37: Ancillary Services | B37: 4367691 | C37: 3048100 | D37: 3468126 | E37: 3602867 | F37: 3549096 | G37: -0.01492450318
A38: Renovations & Equipment | B38: 463529.54 | C38: 363371 | D38: 670003 | E38: 330000 | F38: 330000 | G38: 0
A39: TOTAL EXPENSES | B39: =SUM(B32:B38) -> 53669168.54 | C39: =SUM(C32:C38) -> 53561947.47 | D39: 55450542 | E39: 56361183 | F39: 58360045.94 | G39: 0.03546524096
A41: EXCESS OF INCOME OVER EXPENSES | B41: =+B28-B39 -> 474880.46 | C41: =+C28-C39 -> 1085315.79 | D41: =+D28-D39 -> 942411 | E41: 48463 | F41: 0 | G41: -1

Sheet Sched A-By Object
A1: BRANDON UNIVERSITY
A2: Consolidated Schedule of Operating Expenses
B6: ACTUAL | E6: BUDGET
F8: Maintenance of
F9: Existing Programs
E10: Approved | F10: Preliminary | G10: Factors &
A11: EXPENDITURE: | B11: 2015/16 | C11: 2016/17 | D11: 2017/18 | E11: 2018/19 | F11: 2019/20 | G11: Assumptions
A12: A. BUDGET BASE
A13: Academic Salaries | B13: 21970309.33 | C13: 22872670.92 | D13: 23497500 | E13: 24800776 | F13: 25348479.31 | G13: 0.02208411984
A14: Academic Support Salaries | B14: 2568856 | C14: 2603646 | D14: 2776759 | E14: 2990596 | F14: 2945144.188 | G14: -0.0151982455
A15: Support Staff Salaries | B15: 9373702 | C15: 10075362.09 | D15: 10107340 | E15: 10574776 | F15: 11005949.98 | G15: 0.04077381641
A16: Employee Benefits | B16: 7369864 | C16: 7473380.21 | D16: 6786651 | E16: 6840943 | F16: 6976569.08 | G16: 0.01982564095
A17: Insurance | B17: 255527 | C17: 252874 | D17: 260513 | E17: 311867 | F17: 317704.34 | G17: 0.01871740197
A18: Library Acquisitions | B18: 882141.97 | C18: 872403 | D18: 983715 | E18: 998688 | F18: 1018661.76 | G18: 0.02
A19: Conference Travel including Professional Dev. | B19: 1276769.88 | C19: 1235933.49 | D19: 1120481 | E19: 1382072 | F19: 1396659.14 | G19: 0.01055454419
A20: Supplies and Expenses | B20: 3923455.44 | C20: 3990921.93 | D20: 4800441 | E20: 4085960 | F20: 4604202.03 | G20: 0.1268348271
A21: General University Property Taxes | B21: 106894 | C21: 103845 | D21: 104701 | E21: 109710 | F21: 109710 | G21: 0
A22: Utilities | B22: 730636 | C22: 714055 | D22: 737219 | E22: 814662 | F22: 816524.14 | G22: 0.002285782324
A23: External Recoveries | B23: -1971667.25 | C23: -2244990.17 | D23: -2431522 | E23: -1568290 | F23: -1585946.28 | G23: 0.01125830044
A24: Carryforward/surplus funds to balance budget | E24: -1337505 | F24: 0 | G24: -1
A26: Program Reductions | F26: -906251.5658
A27: TOTAL GENERAL OPERATING EXPENSES | B27: =SUM(B13:B26) -> 46486488.37 | C27: =SUM(C13:C26) -> 47950101.47 | D27: =SUM(D13:D26) -> 48743798 | E27: =SUM(E13:E26) -> 50004255 | F27: =SUM(F13:F26) -> 52047406.12 | G27: 0.04085954517
A29: TOTAL MUSIC CONSERVATORY | B29: 390786 | C29: 400318 | D29: 433246 | E29: 414100 | F29: 422900 | G29: 0.02125090558
A31: TOTAL EDUCATION PROGRAMS (PENT/CBE/BUGDEP/OCN) | B31: 783901 | C31: 609485 | D31: 951647 | E31: 843991 | F31: 860870.82 | G31: 0.02
A33: TOTAL ANCILLARY SERVICES | B33: 4367691 | C33: 3048100 | D33: 3468126 | E33: 3602867 | F33: 3549096 | G33: -0.01492450318

Sheet Sched B-By Function
A3: BRANDON UNIVERSITY
A4: Consolidated Schedule of Operating Expenses
A5: Actual to Budget
B7: ACTUAL | E7: BUDGET
B10: Actual | E10: Approved | F10: Preliminary
B11: 2015/16 | C11: 2016/17 | D11: 2017/18 | E11: 2018/19 | F11: 2019/20
A13: Arts | B13: 7812916 | C13: 7974073 | D13: 8088191 | E13: 8638393 | F13: 8637747.604
A14: Education | B14: 3801006 | C14: 3711576.94 | D14: 3897687 | E14: 3986546 | F14: 3898442.395
A15: Music | B15: 2981795.93 | C15: 3037866.42 | D15: 3256663 | E15: 3428621 | F15: 3475131.695
A16: Science | B16: 7843091 | C16: 8176727 | D16: 8495036 | E16: 9111893 | F16: 9102661.214
A17: Health Studies | B17: 5783238 | C17: 6007825 | D17: 5936553 | E17: 6456810 | F17: 6604327.622
A18: Rural Development Institute | B18: 216598 | C18: 208126 | D18: 182703 | E18: 188404 | F18: 191698.4882
A19: Executive Offices | B19: 806890 | C19: 767014 | D19: 744176 | E19: 743738 | F19: 832506.6079
A20: Vice-President (Academic & Provost) | B20: 782392 | C20: 1005951 | D20: 1111365 | E20: 1326209 | F20: 1441297.914
A21: Advancement & External Relations | B21: 597374 | C21: 635006 | D21: 466555 | E21: 482403 | F21: 531674.0653
A22: Marketing & Communications | B22: 321663 | C22: 341926 | D22: 378268 | E22: 500068 | F22: 491916.7263
A23: Library Services | B23: 2308731.09 | C23: 2362640.26 | D23: 2606692 | E23: 2769919 | F23: 2887315.832
A24: Information Technology Services | B24: 911869.1 | C24: 818817.05 | D24: 924891 | E24: 1350499 | F24: 1416540.34
A25: Student Services | B25: 2343064.72 | C25: 2461259.64 | D25: 2464757 | E25: 2511761 | F25: 2460409.758
A26: University Registrar | B26: 707311 | C26: 724942 | D26: 775065 | E26: 847525 | F26: 868223.4504
A27: Athletic Programs | B27: 1150415 | C27: 1277103 | D27: 1356497 | E27: 1354538 | F27: 1350106.905
A28: Administration & Finance | B28: 2148018.53 | C28: 2432795.81 | D28: 2491704 | E28: 2770583 | F28: 2828303.22
A29: Physical Plant | B29: 3451075 | C29: 3447493 | D29: 3362591 | E29: 3451558 | F29: 3493395.988
A30: General Campus Property Taxes | B30: 106894 | C30: 103845 | D30: 104701 | E30: 109710 | F30: 109710
A31: Miscellaneous Initiatives & Support | B31: 2412146 | C31: 2455114.35 | D31: 2099703 | E31: 1312582 | F31: 2332247.857
A32: Carryforward/surplus funds to balance budget | E32: -1337505 | F32: 0
A33: TOTAL GENERAL OPERATING EXPENSES | B33: =SUM(B13:B32) -> 46486488.37 | C33: =SUM(C13:C32) -> 47950101.47 | D33: =SUM(D13:D32) -> 48743798 | E33: =SUM(E13:E32) -> 50004255 | F33: =SUM(F13:F32) -> 52953657.68

Sheet Sched C-By Function
A1: BRANDON UNIVERSITY
A2: Consolidated Schedule of Operating Expenses
A3: By Function - Approved Budget to Preliminary
B6: Approved Budget | C6: Preliminary Budget | E6: Tuition Revenue Generated by Faculty
B7: 2018/19 | C7: 2019/20 | D7: Variance | E7: 2019/20
A9: Arts | B9: 8638393 | C9: 8637747.604 | D9: -645.395515 | E9: 4024388.408
A10: Education | B10: 3986546 | C10: 3898442.395 | D10: -88103.60477 | E10: 1577235.81
A11: Music | B11: 3428621 | C11: 3475131.695 | D11: 46510.69536 | E11: 511874.175
A12: Science | B12: 9111893 | C12: 9102661.214 | D12: -9231.786285 | E12: 4234224.353
A13: Health Studies | B13: 6456810 | C13: 6604327.622 | D13: 147517.6223 | E13: 2233802.19
A14: Rural Development Institute | B14: 188404 | C14: 191698.4882 | D14: 3294.488235
A15: Executive Office | B15: 743738 | C15: 832506.6079 | D15: 88768.60795
A16: Vice-President (Academic & Provost) | B16: 1326209 | C16: 1441297.914 | D16: 115088.914
A17: Advancement & External Relations | B17: 482403 | C17: 531674.0653 | D17: 49271.0653
A18: Marketing & Communications | B18: 500068 | C18: 491916.7263 | D18: -8151.27366
A19: Library Services | B19: 2769919 | C19: 2887315.832 | D19: 117396.8323
A20: Information Technology Services | B20: 1350499 | C20: 1416540.34 | D20: 66041.33951
A21: Student Services | B21: 2511761 | C21: 2460409.758 | D21: -51351.24186
A22: University Registrar | B22: 847525 | C22: 868223.4504 | D22: 20698.45036
A23: Athletic Programs | B23: 1354538 | C23: 1350106.905 | D23: -4431.095157
A24: Administration & Finance | B24: 2770583 | C24: 2828303.22 | D24: 57720.21962
A25: Physical Plant | B25: 3451558 | C25: 3493395.988 | D25: 41837.98757
A26: General Campus Property Taxes | B26: 109710 | C26: 109710 | D26: 0
A27: Miscellaneous Initiatives & Support | B27: 1312582 | C27: 2332247.857 | D27: 1019665.857
A28: Carryforward/surplus to balance budget | B28: -1337505 | C28: 0 | D28: 1337505
A29: TOTAL GENERAL OPERATING EXPENSES | B29: =SUM(B9:B28) -> 50004255 | C29: =SUM(C9:C28) -> 52953657.68 | D29: =SUM(D9:D28) -> 2949402.682 | E29: =SUM(E9:E28) -> 12581524.94

Sheet BUNTEP (hidden)
A1: Brandon University
A2: BUNTEP Schedule of Operating Expenses
A3: =#REF! -> 
F5: Preliminary Budget 2013-14
F8: Maintenance | H8: Operating
B9: ACTUAL | E9: BUDGET | F9: Of Existing | G9: Factors and | H9: Grant
B10: =#REF! ->  | C10: =#REF! ->  | D10: =#REF! ->  | E10: =#REF! ->  | F10: Programs | G10: Assumptions | H10: 5% Increase
A11: REVENUES:
A12: Student Academic Fees | B12: 164631 | C12: 192993 | D12: 95179 | E12: 11100 | F12: 0 | G12: =F12/E12-1 -> -1 | H12: =F12 -> 0
A13: COPSE re: tuition rebate | B13: 18292 | C13: 0 | D13: 0 | E13: 0 | F13: 0 | H13: =F13 -> 0
A14: Council Operating Funds | B14: 1880100 | C14: 1839900 | D14: 2004000 | E14: 2104800 | F14: 1119424 | G14: =F14/E14-1 -> -0.4681565945 | H14: =(E14*1.05)/4 -> 552510
A15: Transfer of grant to UCN | D15: -279650 | E15: -340500
A16: TOTAL REVENUES | B16: =SUM(B12:B15) -> 2063023 | C16: =SUM(C12:C15) -> 2032893 | D16: 1819529 | E16: 1775400 | F16: 1119424 | G16: =F16/E16-1 -> -0.3694806804 | H16: 552510
A18: EXPENDITURES:
A19: A. BUDGET BASE
A20: Academic Salaries | B20: 1155629 | C20: 1261618 | D20: 1156662 | E20: 1078544 | F20: =699124.05+160846.91-80561.33 -> 779409.63 | G20: =F20/E20-1 -> -0.2773501776 | H20: =F20 -> 779409.63
A21: Support Staff Salaries | B21: 200936 | C21: 188827 | D21: 186733 | E21: 226422 | F21: =138101.31+67902.27 -> 206003.58 | G21: =F21/E21-1 -> -0.09017860455 | H21: =F21 -> 206003.58
A22: Employee Benefits | B22: 212364 | C22: 271465 | D22: 265219 | E22: 259286 | F22: 67438.98 | G22: =F22/E22-1 -> -0.7399050469 | H22: =F22 -> 67438.98
A23: Conference Travel incl. Professional Dev. | B23: 152433 | C23: 177825 | D23: 86897 | E23: 75465 | F23: 6231 | G23: =F23/E23-1 -> -0.9174319221 | H23: =F23 -> 6231
A24: Supplies and Expenses | B24: 148444 | C24: 165464 | D24: 117663 | E24: 135683 | F24: 60341 | G24: =F24/E24-1 -> -0.5552795855 | H24: =F24 -> 60341
A26: Renovations & Equipment | B26: 10641 | C26: 6751 | D26: 7571 | E26: 0 | F26: 0 | H26: =F26 -> 0
A28: Program Reductions | H28: -566914
A30: TOTAL GENERAL OPERATING EXPENDITURES | B30: =SUM(B20:B28) -> 1880447 | C30: =SUM(C20:C28) -> 2071950 | D30: =SUM(D20:D28) -> 1820745 | E30: =SUM(E20:E28) -> 1775400 | F30: =SUM(F20:F28) -> 1119424.19 | G30: =F30/E30-1 -> -0.3694805734 | H30: =SUM(H20:H28) -> 552510.19
A32: EXCESS OF INCOME OVER EXPENDITURES | B32: =B16-B30 -> 182576 | C32: =C16-C30 -> -39057 | D32: =D16-D30 -> -1216 | E32: =E16-E30 -> 0 | F32: =F16-F30 -> -0.1900000002 | H32: =H16-H30 -> -0.1900000002
A34: For the 2012/13 fiscal year the grant and expenses are for the period of April 1 - June 30, only.

Sheet eCMB
A1: BRANDON UNIVERSITY
A2: eCampus Manitoba Schedule of Operating Expenses
B5: ACTUAL | E5: BUDGET
F6: Maintenance of
F7: Existing Programs
E9: Approved | F9: Preliminary
B10: 2015/16 | C10: 2016/17 | D10: 2017/18 | E10: 2018/19 | F10: 2019/20
A11: REVENUES:
A12: Student Fees and Other Revenue
A13: MET Operating Funds | B13: 1087000 | C13: 1087000 | D13: 955000 | E13: 955000 | F13: 955000 | G13: 0
A14: Grant reduction
A15: TOTAL REVENUES | B15: 1087000 | C15: 1087000 | D15: 955000 | E15: 955000 | F15: 955000 | G15: 0
A17: EXPENDITURES:
A18: A. BUDGET BASE
A19: Academic Salaries | B19: 430113 | C19: 447704 | D19: 89145 | E19: 129736 | F19: 132331 | G19: 0.02000215823
A20: Support Staff Salaries | B20: 379751 | C20: 191977 | D20: 431037 | E20: 426768 | F20: 438574 | G20: 0.02766374236
A21: Employee Benefits | B21: 103116 | C21: 111510 | D21: 100038 | E21: 96301 | F21: 99181 | G21: 0.0299062315
A22: Conference Travel incl. Professional Dev. | B22: 99222 | C22: 61062 | D22: 145127 | E22: 90300 | F22: 90300 | G22: 0
A23: Supplies and Expenses | B23: 237194 | C23: 208298 | D23: 114291 | E23: 210895 | F23: 210896 | G23: 4.741696105e-06
A25: Renovations & Equipment | E25: 1000 | F25: 1000
A27: Program Reductions | F27: -17282
A29: TOTAL GENERAL OPERATING EXPENDITURES | B29: 1249396 | C29: 1020551 | D29: 879638 | E29: 955000 | F29: 955000 | G29: 0
A31: EXCESS OF INCOME OVER EXPENSES | B31: -162396 | C31: 66449 | D31: 75362 | E31: 0 | F31: 0
A33: Program surplus March 31 | B33: 210071 | C33: 276520 | D33: 351882

Sheet Summary - Annual
A1: Summary Operating Budget for the year ended March 31, 2019 | G1: DRAFT
A2: 2018-09-18
B4: 2019/20 | C4: 2018/19 | G4: 2019/20 | H4: 2018/19
A5: By Function | C5: Approved | F5: By Object | H5: Approved
A8: Revenues | F8: Revenues
A10: MET - Operating Grant | B10: 38018000 | C10: 38018000 | D10: 0 | F10: MET - Operating Grant | G10: 38018000 | H10: 38018000 | I10: 0
A11: Tuition Fees | B11: 12581524.94 | C11: 10644469 | D11: 0.1819776953 | F11: Tuition Fees | G11: 12581524.94 | H11: 10644469 | I11: 0.1819776953
A12: Other Income | B12: 141200 | C12: 141200 | D12: 0 | F12: Other Income | G12: 141200 | H12: 141200 | I12: 0
A13: Other Student Fees | B13: 642886 | C13: 642886 | D13: 0 | F13: Other Student Fees | G13: 642886 | H13: 642886 | I13: 0
B14: =SUM(B10:B13) -> 51383610.94 | C14: =SUM(C10:C13) -> 49446555 | D14: 0.03917474 | G14: =SUM(G10:G13) -> 51383610.94 | H14: =SUM(H10:H13) -> 49446555 | I14: 0.03917474
A16: Expenses | F16: Expenses
A17: Faculty of Arts | B17: 8637747.604 | C17: 8638393.6 | D17: -7.478190332e-05 | F17: Academic Salaries | G17: 25348479.31 | H17: 24715506 | I17: 0.02561037226
A18: Faculty of Science | B18: 9102661.214 | C18: 9111893.6 | D18: -0.001013223671 | F18: Academic Support Salaries | G18: 2945144.188 | H18: 2990597 | I18: -0.0151985748
A19: Faculty of Education | B19: 3898442.395 | C19: 3986545 | D19: -0.02209999003 | F19: Support Staff Salaries | G19: 10967949.98 | H19: 10536778 | I19: 0.04092066618
A20: School of Music | B20: 3405131.695 | C20: 3358620 | D20: 0.01384845423 | F20: Employee Benefits | G20: 6858569.08 | H20: 6757305 | I20: 0.01498586783
A21: Faculty of Health Studies | B21: 6604327.622 | C21: 6456812 | D21: 0.02284651036 | F21: Pension liability costs | G21: 156000 | H21: 206906 | I21: -0.2460344311
A22: Rural Development Institute | B22: 191698.4882 | C22: 188404 | D22: 0.01748629666 | F22: Travel | G22: 1396659.14 | H22: 1382071 | I22: 0.01055527538
A23: Library Services | B23: 2887315.832 | C23: 2769921 | D23: 0.04238201461 | F23: Insurance | G23: 317704.34 | H23: 311867 | I23: 0.01871740197
A24: IT Services | B24: 1416540.34 | C24: 1350499 | D24: 0.04890143533 | F24: Library Acquisitions | G24: 1018661.76 | H24: 998688 | I24: 0.02 | J24: (includes books and data royalties)
A25: Student Services | B25: 2457909.758 | C25: 2509261 | D25: -0.02046468736 | F25: Supplies and Expenses | G25: 4432854.83 | H25: 4166598 | I25: 0.06390269232
A26: Registrar | B26: 868223.4504 | C26: 847525 | D26: 0.02442222986 | F26: University Property Taxes | G26: 109710 | H26: 109710 | I26: 0
A27: Athletics | B27: 1081407.03 | C27: 1092051 | D27: -0.009746770212 | F27: Utilities | G27: 816524.14 | H27: 814662 | I27: 0.002285782324
A28: Campus Recreation | B28: 56041.52 | C28: 55835 | D28: 0.003698755261 | F28: External Recoveries | G28: -2143646.28 | H28: -2125989 | I28: 0.008305442785
A29: Executive Offices | B29: 832506.6079 | C29: 743740 | D29: 0.1193516658 | F29: Equipment | G29: 171347.2 | H29: 169361 | I29: 0.01172761143
A30: Vice-President (A&P) | B30: 1441297.914 | C30: 1326208 | D30: 0.08678119423 | F30: Ancillary contribution | G30: 0 | H30: -250000 | I30: -1
A31: Advancement & External Relations | B31: 51674.0653 | C31: 2403 | D31: 20.50398056 | F31: Carry forward contributions | G31: 0 | H31: -413855 | I31: -1
A32: Marketing & Communications | B32: 491916.7263 | C32: 500067 | D32: -0.01629836334 | F32: Unappropriated surplus | G32: 0 | H32: -923650 | I32: 0
A33: Administration & Finance | B33: 6316499.207 | C33: 6216937 | D33: 0.01601467205
A34: Healthy Living Centre | B34: 212658.355 | C34: 206653 | D34: 0.02906009107
A35: Pension liability costs | B35: 156000 | C35: 206906 | D35: -0.2460344311
A36: Misellaneous Initiatives | B36: 2285957.857 | C36: 1215386 | D36: 0.8808492582
A37: Carry forward contributions | B37: 0 | C37: -413855
A38: Unappropriated surplus | B38: 0 | C38: -923650 | G38: =SUM(G17:G37) -> 52395957.68 | H38: =SUM(H17:H37) -> 49446555 | I38: 0.05964829465
B39: =SUM(B17:B38) -> 52395957.68 | C39: =SUM(C17:C38) -> 49446555.2 | D39: 0.05964829036
G40: =+G14-G38 -> -1012346.746 | H40: =+H14-H38 -> 0
B41: =+B14-B39 -> -1012346.746 | C41: =+C14-C39 -> -0.200000003

Sheet Summary - Multi Year
A1: BRANDON UNIVERSITY
A2: OPERATING BUDGET
B4: 2019/20 | C4: 2020/21 | D4: 2021/22 | F4: 2022/23 | G4: 2023/24 | H4: 2024/25 | I4: 2025/26
B5: Budget | C5: Budget | D5: Budget | F5: Projections | G5: Projections | H5: Projections | I5: Projections
A6: REVENUES
A7: - Grants
A8: - Province of Manitoba (MET) | B8: 38018000 | C8: 38018000 | D8: 38018000 | F8: 38398180 | G8: 38782161.8 | H8: 39169983.42 | I8: 39561683.25
A10: - Tuition and Fees | B10: 10733571.94 | C10: 11753261.27 | D10: 12869821.09 | F10: 14092454.09 | G10: 15431237.23 | H10: 16897204.77 | I10: 18502439.22
A11: - International Visa Premium | B11: 1847953 | C11: 2429622 | D11: 3014810 | F11: 3361513.15 | G11: 3748087.162 | H11: 4179117.186 | I11: 4659715.662
A12: - Other Student Fees | B12: 642886 | C12: 642886 | D12: 642886 | F12: 684673.59 | G12: 729177.3733 | H12: 776573.9026 | I12: 827051.2063
A14: - Other Income | B14: 141200 | C14: 141200 | D14: 141200 | F14: 141200 | G14: 141200 | H14: 141200 | I14: 141200
B15: =SUM(B8:B14) -> 51383610.94 | C15: =SUM(C8:C14) -> 52984969.27 | D15: 54686717.09 | F15: 56678020.83 | G15: 58831863.57 | H15: 61164079.28 | I15: 63692089.34
A18: EXPENSES
A19: - Salaries - BUFA | B19: 28293623.5 | C19: 28632133.6 | D19: 29410849.03 | F19: 30293174.5 | G19: 31504901.48 | H19: 32765097.54 | I19: 34075701.44
A20: - Salaries - Support | B20: 10967949.98 | C20: 10799574.62 | D20: 10947069.9 | F20: 11248114.32 | G20: 11585557.75 | H20: 12048980.06 | I20: 12410449.46
A21: - Benefits | B21: 7014569.08 | C21: 7981347.764 | D21: 8138782.001 | F21: 8377426.357 | G21: 8689839.895 | H21: 9037433.491 | I21: 9374632.248
A22: - Travel & Consumables | B22: 5303290.99 | C22: 5523744.307 | D22: 5763091.416 | F22: 5878353.244 | G22: 5995920.309 | H22: 6115838.715 | I22: 6238155.489
A23: - Utilities | B23: 816524.14 | C23: 843756.2542 | D23: 866518.9418 | F23: 892514.5101 | G23: 919289.9454 | H23: 946868.6437 | I23: 975274.7031
B24: =SUM(B19:B23) -> 52395957.68 | C24: =SUM(C19:C23) -> 53780556.54 | D24: 55126311.28 | F24: 56689582.93 | G24: 58695509.37 | H24: 60914218.44 | I24: 63074213.34
A27: Annual Budget Surplus/(Deficit) | B27: =+B15-B24 -> -1012346.746 | C27: =+C15-C24 -> -795587.2694 | D27: -439594.1906 | F27: -11562.0929 | G27: 136354.1938 | H27: 249860.8325 | I27: 617876.0059
B29: -0.01932108488 | C29: -0.01479321377 | D29: -0.007974308101 | F29: -0.0002039544535 | G29: 0.002323077102 | H29: 0.004101847465 | I29: 0.009796016045

Sheet Salary Detail
A1: BRANDON UNIVERSITY
C2: Rank/
C3: Grade
A4: EXECUTIVE OFFICES
B6: President's Office
A7: 5301003 | B7: Docherty, D. (trm 190501-240430) | C7: Prof.
A8: 5301003 | B8: Robinson, S. (trm 170801-190430) | C8: Assoc.
A9: 5301003 | B9: McFarlin, M. | C9: III-3
A10: 5301003 | B10: Lamontagne, M. | C10: III-3
A11: 5301003 | B11: Fisher, K. | C11: VI-4
A12: 5301005 | B12: Student Assist and O.T.
A14: VICE-PRESIDENT (ACADEMIC & PROVOST)
A15: 5303002 | B15: Academic Advisors/Release BUREC
A16: 5303003 | B16: Robinson, S. (trm 160701-210630) | C16: Assoc.
A17: 5303003 | B17: Serfaty, M. (trm 170801-190430) | C17: Prof.c
A18: 5303003 | B18: Tryphonopoulos, D. (D Grad Studies) (170101-180131)
A19: 5303003 | B19: Duncan, H. (AVP Research) (151130-180731)
A20: 5303003 | B20: Navid, C. | C20: Vt
A21: 5303003 | B21: Downey, S. | C21: IV-4
A22: 5303003 | B22: VACANT (Administrative Assistant) | C22: III
A23: 5303003 | B23: Murkin, K. | C23: Vt
A24: 5303099 | B24: Indirect Cost Recoveries - Research Admin salary & benefits
A26: CENTRE FOR TEACHING, LEARNING & TECHNOLOGY
A27: 5306003 | B27: Care, D. (CTLT) (trm 170801-180731)
A28: 5306001 | B28: Gross, G. | C28: PAII
A29: 5306001 | B29: Shoultz, C. (.5) | C29: PAIII
A31: CO-OP PROGRAM
A32: 5307001 | B32: Mitton, K. | C32: PAII
A34: INSTITUTIONAL DATA & ANALYSIS
A35: 5304003 | B35: Berkan, D | C35: VIIt
A36: 5304003 | B36: Maltais LaPointe, G. | C36: 7-3
A39: ADVANCEMENT & EXTERNAL RELATIONS
A40: 5320003 | B40: VACANT (Macdonald, H.) | C40: AVP
A41: 5320003 | B41: Eisler, C. (Director trm 170601-181201) | C41: VI-4
A42: 5320003 | B42: English, S. | C42: IVt
A43: 5320003 | B43: VACANT (Development Officer - Major Gifts) | C43: IV
A44: 5320003 | B44: Long, R. | C44: 5-3
A45: 5320003 | B45: Vodon, C. | C45: 3-6
A46: 5320005 | B46: Student Assistance/Casual
A48: MARKETING & COMMUNICATIONS
A49: 5327003 | B49: Hamilton, G. (Director) | C49: VII-1
A50: 5327003 | B50: Henderson, R. | C50: IV-3
A51: 5327003 | B51: Misener, G. | C51: 6-6
A52: 5327003 | B52: Cesmystruk, C | C52: 4-6
A54: LIBRARY SERVICES
A55: 5002006 | B55: Braaksma, B. - Librarian | C55: PAIV
A56: 5002006 | B56: Schira, R. (trm 180413-190412 Head Librarian) | C56: PAIII
A57: 5002006 | B57: Ramage, M. (trm 180801-190430) | C57: PAI
A58: 5002006 | B58: Kazakoff-Lane, C. (92%) | C58: PAIV
A59: 5002006 | B59: Hurst, C. | C59: PAIIc
A60: 5002006 | B60: Lee, S. | C60: PAII
A61: 5002003 | B61: Kowaluk, R. (trm 180813-190927) (Bambridge, K.) | C61: 5-4
A62: 5002003 | B62: Blyth J. | C62: 5-6
A63: 5002003 | B63: Lowe, D. | C63: 6-3
A64: 5002003 | B64: Ramage, M. | C64: 4-6
A65: 5002003 | B65: Kowaluk, R. (Patton, R.) | C65: 4-1
A66: 5002003 | B66: Coulter, H. | C66: 6-6
A67: 5002003 | B67: Warsaba, J. | C67: 4-3
A68: 5002003 | B68: Cantlon, T. | C68: 9-6
A69: 5002003 | B69: Revet, A. | C69: 5-6
A70: 5002003 | B70: Combs, J. (Bambridge K.) | C70: 5-2
A71: 5002003 | B71: Tornblom, H. (Webber) | C71: 5-3
A72: 5002004 | B72: Webber, J. (80%) | C72: 2-5
A73: 5002004 | B73: Ahmadu, M. (50% - trm 160906-190831 (Martin, E.) | C73: 3-1
A74: 5002004 | B74: Awan, S. (50% - trm 180507-200506) | C74: 4-1
A75: 5002005 | B75: Student Asst/Casual/overtime
B76: Archives
A77: 5006006 | B77: Henry, C. | C77: PAII
A79: INFORMATION TECHNOLOGY SERVICES
A81: 5012003 | B81: VACANT (CIO) | C81: AVP
A82: 5012003 | B82: Dunthorne A. | C82: VIIt
A83: 5012003 | B83: Gebreselasse, D. | C83: 7-6
A84: 5012003 | B84: Wiebe J. | C84: 12-6
A85: 5012003 | B85: Raine E. | C85: 8-6
A86: 5012003 | B86: Sheppard B. | C86: 8-6
A87: 5012003 | B87: Baumgertner, J. | C87: 8-6
A88: 5012003 | B88: Leroy, M. | C88: 12-2
A89: 5012003 | B89: Johanneson, P. | C89: 8-6
A90: 5012003 | B90: Joice, T. | C90: 6-6
A91: 5012003 | B91: Blair, M. | C91: 5-6
A92: 5012003 | B92: Klassen, K. | C92: 11-6
A93: 5012003 | B93: Lane, B. | C93: 6-1
A94: 5012005 | B94: Casual and overtime
A96: FACULTY OF ARTS
B97: Dean
A98: 4001001 | B98: Tryphonopoulos, D.(trm 150101-191231) | C98: Prof.c
A99: 4001001 | B99: Position left vacant as per budget plan
A101: 4001002 | B101: Sessionals/Overload
A102: 4001005 | B102: Student Assistants
B104: Drama
A105: 4002001 | B105: Forsythe J. (sb170701-180630) | C105: Prof.
A106: 4002001 | B106: Sb savings Forsythe
B109: Economics
A110: 4003001 | B110: Abdou, A. | C110: Assoc.
A111: 4003001 | B111: Dolecki J. | C111: Assoc.c
A112: 4003001 | B112: Zehtab-Jadid, F. | C112: Asst.c
B115: English
A116: 4004001 | B116: Allan, D. (Smid) | C116: Assoc.
A117: 4004001 | B117: Kramer R. (sb 200101-200630) | C117: Prof.
B118: Sb savings Kramer
A119: 4004001 | B119: Rose, B. | C119: Asst.c
A120: 4004001 | B120: Gasse R. (sb 170701-180630) | C120: Prof.
A121: 4004001 | B121: Sb savings Gasse
A122: 4004001 | B122: Robson, L. | C122: Assoc.
A123: 4004001 | B123: Lakevold, D. (sb 190701-200630) | C123: Assoc.
B124: Sb savings Lakevold
B127: History
A128: 4005001 | B128: Hinther, R. (sb 200101-201231) | C128: Assoc.
B129: Sb savings Hinther
A130: 4005001 | B130: MacKay, L. | C130: Prof.
A131: 4005001 | B131: Winter, D. | C131: Assoc.
A132: 4005001 | B132: Harms, P. | C132: Assoc.
A133: 4005001 | B133: Naylor, J. (sb 170701-180630) | C133: Prof.
A134: 4005001 | B134: Sb savings Naylor
A135: 4005001 | B135: Strang, B. (sb 180101-180630) | C135: Prof.
A136: 4005001 | B136: Sb savings Strang
B139: Languages
A140: 4006001 | B140: Combet, D. (sb 200101-200630) | C140: Assoc.
B141: Sb savings Combet
A142: 4006001 | B142: Bouliane, C. | C142: Asst.
A143: 4006001 | B143: Mihelakis, E. | C143: Asst.
A144: 4006004 | B144: French Assistant
B147: Gender & Women's Studies
A148: 4007001 | B148: Mason, C. 50% (sb 190701-200630) | C148: Assoc.
B149: Sb savings Mason
A150: 4007001 | B150: Allan, J.( CRC 140430-190430) | C150: Prof.
B153: Philosophy
A154: 4008001 | B154: Robinson, S. | C154: Assoc.
A155: 4008001 | B155: Inkpen, A. (trm 180801-200731) | C155: Asst.
A156: 4008001 | B156: Venema, H. | C156: Assoc.
A157: 4008001 | B157: Brown, D. (LOA 170415-190415) | C157: Assoc.
A158: 4008001 | B158: Boult, C. | C158: Asst.
B161: Political Science
A162: 4009001 | B162: McCulloch, A. | C162: Assoc.
A163: 4009001 | B163: Saunders, K. | C163: Assoc.
A164: 4009001 | B164: Baker, R. | C164: Asst.
B167: Religion
A168: 4010001 | B168: Medd, S. | C168: Asst.c
A169: 4010001 | B169: Noll, K. | C169: Prof.
A170: 4010001 | B170: Marshall, A. (sb 200101-200630) | C170: Prof.
B171: Sb savings Marshall
B174: Sociology
A175: 4011001 | B175: Schneider, C. | C175: Assoc.
A176: 4011001 | B176: Grills, S. | C176: Prof.c
A177: 4011001 | B177: Hanemaayer, A. | C177: Asst.
A178: 4011001 | B178: Petrella, S. (sb 190701-191231) | C178: Assoc.
B179: Sb savings Petrella
A180: 4011001 | B180: Mason, C. 50% (sb 190701-200630) | C180: Assoc.
B181: Sb savings Mason
A182: 4011001 | B182: Wong, K. | C182: Assoc.c
B185: Native Studies
B186: Native Studies
A187: 4013001 | B187: Racine D. | C187: Asst.c
A188: 4013001 | B188: Maud, V. (trm 180101-190630) | C188: Lect.
A189: 4013001 | B189: Whitt, L. | C189: Prof.c
A190: 4013001 | B190: VACANT (Muehlbauer, J.) | C190: Asst.
A191: 4013001 | B191: Mayer, L. | C191: Prof.
B193: Clinical Specialization
A194: 4014001 | B194: Irvine, K. | C194: Asst.c
B197: Business Administration
A198: 4015001 | B198: Gillander, H. | C198: Asst.c
A199: 4015001 | B199: Dwivedula, V. (trm 180801-190731) | C199: Asst.
A200: 4015001 | B200: Zhuang, H | C200: Asst.
A201: 4015001 | B201: Klonowski, D. (sb 190101-190630 80%) | C201: Prof.
A202: 4015001 | B202: Sb savings Klonowski
B205: Visual Arts
A206: 4016001 | B206: Adams, KC (Morin, P.) | C206: IAIII
A207: 4016001 | B207: Xu, L. | C207: Assoc.
A208: 4016001 | B208: DeForest, K. (sb 180701-181231-100%) | C208: Assoc.
A209: 4016001 | B209: Mattes, C. | C209: Assoc.
A210: 4016001 | B210: Wood, L. | C210: Asst.
A211: 4016005 | B211: Student Assistants
B214: Anthropology
A215: 4017001 | B215: Malainey, M. (sb 180701-190630) | C215: Prof.
A216: 4017001 | B216: Sb savings Malainey
A217: 4017001 | B217: Holland, E. | C217: Assoc.
A218: 4017001 | B218: Varley, E. (sb 190701-200630) | C218: Assoc.
B219: Sb savings Varley
B222: Archeology Field School
A223: 4018005 | B223: Student Assistants
A224: 4018002 | B224: Sessionals
B226: Rural Development
A227: 4019001 | B227: Robles, W. (Beesley) | C227: Asst.
A228: 4019001 | B228: Bessant, K. (sb 180701-181231) | C228: Prof.
B229: Sb savings Bessant
A230: 4019001 | B230: Ramsey, D. | C230: Prof.
B233: Clerical - Full-Time
A234: 4001003 | B234: Murray, L. | C234: 8-6
A235: 4001003 | B235: Mahoney, J. | C235: 4-6
A236: 4001003 | B236: Maguire, S. | C236: 4-6
A238: RURAL DEVELOPMENT INSTITUTE
A239: 4801001 | B239: Ashton, W. | C239: PAIV
A240: 4801005 | B240: O.T./Student Assistants/Casual
A242: FACULTY OF SCIENCE
B243: Dean
A244: 4101001 | B244: Ardelli, B. (trm 180101-221231) | C244: Prof.
A245: 4101001 | B245: Krieser, L.(60%) | C245: IAIIc
A246: 4xxx001 | B246: Position left vacant as per budget plan
A247: 4101005 | B247: Student assistants
B249: Sessionals
... 442 more rows

Sheet Departmental Detail
A1: BRANDON UNIVERSITY
A2: Operating Budget
B3: Baseline | D3: Adj. Baseline | E3: 2019/20 | F3: 2019/20 | G3: 2019/20 | H3: 2019/20 | I3: 2020/21 | J3: 2021/22
B4: Budget | C4: 2018/19 | D4: Budget | E4: Annual | F4: Annual | G4: Other | H4: Budget | I4: Budget | J4: Budget
A5: Budget Unit | B5: Mar 31/18 | C5: Adjustments | D5: Mar 31/18 | E5: Scale Incr. | F5: Increment | G5: Adjustments | H5: Allocation | I5: Allocation | J5: Allocation
A7: Executive Offices | B7: 743740 | C7: 0 | D7: =SUM(B7:C7) -> 743740 | E7: 3054.855 | F7: 6487.32 | G7: 79224.43295 | H7: =SUM(D7:G7) -> 832506.6079 | I7: 875934.7383 | J7: 892123.231
A9: VP (Academic & Provost) | B9: 1326208 | C9: 0 | D9: =SUM(B9:C9) -> 1326208 | E9: 2876.375 | F9: 11854.085 | G9: 100359.454 | H9: =SUM(D9:G9) -> 1441297.914 | I9: 1199067.754 | J9: 1224769.016
A11: Advancement & External Relations | B11: 2403 | C11: 0 | D11: =SUM(B11:C11) -> 2403 | E11: 2422.6275 | F11: 7843.94 | G11: 39004.4978 | H11: =SUM(D11:G11) -> 51674.0653 | I11: 61032.64181 | J11: 71363.58335
A13: Marketing & Communications | B13: 500067 | C13: 0 | D13: =SUM(B13:C13) -> 500067 | E13: 2628.9 | F13: 7635.32 | G13: -18414.49366 | H13: =SUM(D13:G13) -> 491916.7263 | I13: 504575.3174 | J13: 518565.0111
A15: Library Services | B15: 2769921 | C15: 0 | D15: =SUM(B15:C15) -> 2769921 | E15: 16513.25 | F15: 18380.7006 | G15: 82500.8817 | H15: =SUM(D15:G15) -> 2887315.832 | I15: 2693281.873 | J15: 2744166.028
A17: Information Technology Services | B17: 1350499 | C17: 0 | D17: =SUM(B17:C17) -> 1350499 | E17: 18537.175 | F17: 2679.58 | G17: 44824.58451 | H17: =SUM(D17:G17) -> 1416540.34 | I17: 1266802.087 | J17: 1284685.295
A19: Faculty of Arts | B19: 8638394 | C19: 0 | D19: =SUM(B19:C19) -> 8638394 | E19: 4610.825 | F19: 136281.435 | G19: -141538.6555 | H19: =SUM(D19:G19) -> 8637747.604 | I19: 9074097.27 | J19: 9381699.122
A21: Rural Development Institute | B21: 188404 | C21: 0 | D21: =SUM(B21:C21) -> 188404 | E21: 7.59 | F21: 3695.615 | G21: -408.716765 | H21: =SUM(D21:G21) -> 191698.4882 | I21: 201434.699 | J21: 207832.4373
A23: Faculty of Science | B23: 9111894 | C23: 0 | D23: =SUM(B23:C23) -> 9111894 | E23: 5306.315 | F23: 131788.55 | G23: -146327.6513 | H23: =SUM(D23:G23) -> 9102661.214 | I23: 9474170.239 | J23: 9716782.793
A25: Faculty of Health Studies | B25: 6456812 | C25: 0 | D25: =SUM(B25:C25) -> 6456812 | E25: 6476.4825 | F25: 92148.557 | G25: 48890.58277 | H25: =SUM(D25:G25) -> 6604327.622 | I25: 6908075.014 | J25: 7021082.581
A27: Faculty of Education | B27: 3986545 | C27: 0 | D27: =SUM(B27:C27) -> 3986545 | E27: 5377.66 | F27: 42503.0847 | G27: -135983.3495 | H27: =SUM(D27:G27) -> 3898442.395 | I27: 4206677.229 | J27: 4259802.409
A29: School of Music | B29: 3358620 | C29: 0 | D29: =SUM(B29:C29) -> 3358620 | E29: 4578.73 | F29: 52293.79 | G29: -10360.82464 | H29: =SUM(D29:G29) -> 3405131.695 | I29: 3653046.068 | J29: 3770538.716
A31: Student Services | B31: 2509261 | C31: 0 | D31: =SUM(B31:C31) -> 2509261 | E31: 3087.0875 | F31: 44607.035 | G31: -99045.36436 | H31: =SUM(D31:G31) -> 2457909.758 | I31: 2553790.468 | J31: 2633360.886
A33: Registrar | B33: 847525 | C33: 0 | D33: =SUM(B33:C33) -> 847525 | E33: 9554.1025 | F33: 8380.44 | G33: 2763.907862 | H33: =SUM(D33:G33) -> 868223.4504 | I33: 896616.8311 | J33: 912550.0303
A35: Athletics | B35: 1092051 | C35: 0 | D35: =SUM(B35:C35) -> 1092051 | E35: 2883.525 | F35: 7462.4922 | G35: -20989.98736 | H35: =SUM(D35:G35) -> 1081407.03 | I35: 1123876.271 | J35: 1143544.239
A37: Campus Recreation | B37: 55835 | C37: 0 | D37: =SUM(B37:C37) -> 55835 | E37: 0 | F37: 0 | G37: 206.52 | H37: =SUM(D37:G37) -> 56041.52 | I37: 54657.4724 | J37: 58667.38145
A39: Healthy Living Centre | B39: 206653 | C39: 0 | D39: =SUM(B39:C39) -> 206653 | E39: 5461.315 | F39: 4636.04 | G39: -4092 | H39: =SUM(D39:G39) -> 212658.355 | I39: 203722.1962 | J39: 210045.3657
A41: Administration & Finance | B41: 6216937 | C41: 0 | D41: =SUM(B41:C41) -> 6216937 | E41: 62530.45982 | F41: 39091.52619 | G41: -2059.778826 | H41: =SUM(D41:G41) -> 6316499.207 | I41: 6355191.412 | J41: 6452497.785
A43: Other Initiatives | B43: 84787 | C43: 23074.4 | D43: =SUM(B43:C43) -> 107861.4 | E43: 0 | F43: 0 | G43: 2334096.457 | H43: =SUM(D43:G43) -> 2441957.857 | I43: 2474506.959 | J43: 2622235.372
A45: TOTAL EXPENSES | B45: =SUM(B7:B44) -> 49446556 | C45: =SUM(C7:C44) -> 23074.4 | D45: 49469630.4 | E45: 155907.2748 | F45: 617769.5107 | G45: 2152650.496 | H45: 52395957.68 | I45: 53780556.54 | J45: 55126311.28

Sheet Executive Off.
C1: BRANDON UNIVERSITY ** EXECUTIVE OFFICES **
C2: REFERENCE BUDGET
C3: APRIL 2019 TO MARCH 2020
D4: 5301 | E4: 5314 | F4: 5315 | G4: 2019/20 | H4: 2020/21 | I4: 2021/22 | J4: 2018/19
D5: PRES. | E5: Board of | F5: CHANCELLOR | G5: REF'NCE | H5: PROJ. | I5: PROJ. | J5: APPROVED | K5: 2017-18 | L5: 2016-17 | M5: 2015-16
C6: EXPENDITURE: | D6: OFFICES | E6: Governors | G6: BUDGET | H6: BUDGET | I6: BUDGET | J6: BUDGET | K6: ACTUAL | L6: ACTUAL | M6: ACTUAL
A7: 001 | C7: Academic Salaries | D7: 0 | E7: 0 | F7: 0 | G7: 0 | H7: 0 | I7: 0 | J7: 0
A8: 003 | C8: F.T. Support | D8: 541189.12 | E8: 0 | F8: 0 | G8: 541189.12 | H8: 553248.888 | I8: 563388.6974 | J8: 467595 | K8: 444695 | L8: 451818 | M8: 476408
A9: 005 | C9: O.T./Student Assistants/Casual | D9: 3500.055 | E9: 0 | F9: 0 | G9: 3500.055 | H9: 3535.05555 | I9: 3605.756661 | J9: 3474 | K9: 5115
A10: 100 | C10: Benefits | D10: 83882.13295 | E10: 0 | F10: 0 | G10: 83882.13295 | H10: 111356.7887 | I10: 113398.8908 | J10: 72545 | K10: 67520 | L10: 67125 | M10: 64932
A11: 099/199 | C11: Recoveries | D11: 0 | E11: 0 | F11: 0 | G11: 0 | H11: 0 | I11: 0
C12: SUB-TOTAL: SALARIES & BENEFITS: | D12: =SUM(D7:D11) -> 628571.308 | E12: =SUM(E7:E11) -> 0 | F12: 0 | G12: 628571.308 | H12: 668140.7323 | I12: 680393.3448 | J12: 543614 | K12: 517330 | L12: 518943 | M12: 541340
A13: 201/02/06 | C13: Travel/Moving/Recruitment | D13: 16536.24 | E13: 4948.02 | F13: 3684.24 | G13: 25168.5 | H13: 25671.87 | I13: 26185.3074 | J13: 24675 | K13: 14995 | L13: 24230 | M13: 28215
A14: 208 | C14: Designated Travel | D14: 2714.22 | E14: 0 | F14: 0 | G14: 2714.22 | H14: 2768.5044 | I14: 2823.874488 | J14: 2661 | K14: 1002 | L14: 4058 | M14: 3814
A15: 204/05/10 | C15: Prof. Dev. Allowances | D15: 11000 | E15: 0 | F15: 0 | G15: 11000 | H15: 11000 | I15: 11000 | J15: 11000 | K15: 5702 | L15: 22704 | M15: 3240
A16: 299 | C16: Recoveries | D16: 0 | E16: 0 | F16: 0 | G16: 0 | H16: 0 | I16: 0
C17: SUB-TOTAL: TRAVEL & MOVING: | D17: =SUM(D13:D16) -> 30250.46 | E17: =SUM(E13:E16) -> 4948.02 | F17: 3684.24 | G17: 38882.72 | H17: 39440.3744 | I17: 40009.18189 | J17: 38336 | K17: 21699 | L17: 50992 | M17: 35269
A18: 301 | C18: Advertising | D18: 2209.32 | E18: 0 | F18: 0 | G18: 2209.32 | H18: 2253.5064 | I18: 2298.576528 | J18: 2166 | K18: 356 | L18: 576 | M18: 493
A19: 302 | C19: Special Allowances | D19: 9596.16 | E19: 0 | F19: 0 | G19: 9596.16 | H19: 9788.0832 | I19: 9983.844864 | J19: 9408 | K19: 6506 | L19: 6479 | M19: 8491
A20: 304 | C20: Consumables | D20: 3438.42 | E20: 417.18 | F20: 154.02 | G20: 4009.62 | H20: 4089.8124 | I20: 4171.608648 | J20: 3931 | K20: 1729 | L20: 2503 | M20: 1868
A21: 305 | C21: Photocopying - Printing | D21: 1832.94 | E21: 1138.32 | F21: 369.24 | G21: 3340.5 | H21: 3407.31 | I21: 3475.4562 | J21: 3275 | K21: 4693 | L21: 2846 | M21: 2817
A22: 306 | C22: Films - Film Rental/Photography | D22: 0 | E22: 0 | F22: 0 | G22: 0 | H22: 0 | I22: 0 | J22: 0
A23: 307 | C23: Membership Subscriptions | D23: 1470.84 | E23: 301.92 | F23: 0 | G23: 1772.76 | H23: 1808.2152 | I23: 1844.379504 | J23: 1738 | K23: 879 | L23: 450 | M23: 1194
A24: 308 | C24: Postage | D24: 1998.18 | E24: 411.06 | F24: 36.72 | G24: 2445.96 | H24: 2494.8792 | I24: 2544.776784 | J24: 2398 | K24: 2185 | L24: 2081 | M24: 2102
A25: 309 | C25: Telephone - Long Dist. | D25: 3693.42 | E25: 0 | F25: 61.2 | G25: 3754.62 | H25: 3829.7124 | I25: 3906.306648 | J25: 3681 | K25: 2795 | L25: 3575 | M25: 2406
A26: 310 | C26: Telephone - Rental | D26: 1477.98 | E26: 0 | F26: 0 | G26: 1477.98 | H26: 1507.5396 | I26: 1537.690392 | J26: 1449 | K26: 1365 | L26: 1365 | M26: 1193
A27: 311 | C27: Repairs & Maintenance | D27: 2202.18 | E27: 0 | F27: 0 | G27: 2202.18 | H27: 2246.2236 | I27: 2291.148072 | J27: 2159 | K27: 2546 | L27: 107 | M27: 88
A28: 313 | C28: Publications (Annual Report) | D28: 5604.9 | E28: 5306.04 | F28: 0 | G28: 10910.94 | H28: 11129.1588 | I28: 11351.74198 | J28: 10697 | K28: 41 | M28: 10000
A29: 314 | C29: Consulting Fees | D29: 0 | E29: 0 | F29: 0 | G29: 0 | H29: 0 | I29: 0 | L29: 6814 | M29: 95304
A30: 317 | C30: Special Functions | D30: 11272.02 | E30: 3939.24 | F30: 980.22 | G30: 16191.48 | H30: 16515.3096 | I30: 16845.61579 | J30: 15873 | K30: 14531 | L30: 16583 | M30: 11025
A31: 318 | C31: Promotion & Recruitment | D31: 66300 | E31: 0 | F31: 0 | G31: 66300 | H31: 67626 | I31: 68978.52 | J31: 65000 | K31: 46159 | L31: 10488 | M31: 53255
A32: 327 | C32: Printed Material | D32: 0 | E32: 0 | F32: 0 | G32: 0 | H32: 0 | I32: 0 | J32: 0
A33: 335 | C33: Program Expenses - Community Relations | D33: 15606 | E33: 0 | F33: 0 | G33: 15606 | H33: 15918.12 | I33: 16236.4824 | J33: 15300 | K33: 4048 | L33: 12808 | M33: 14102
A34: 339 | C34: Parking | D34: 0 | E34: 0 | F34: 0 | G34: 0 | H34: 0 | I34: 0 | J34: 0
A35: 340 | C35: Alumni news | D35: 0 | E35: 0 | F35: 0 | G35: 0 | H35: 0 | I35: 0 | J35: 0
A36: 345 | C36: Staff Development | D36: 0 | E36: 5630.4 | F36: 0 | G36: 5630.4 | H36: 5743.008 | I36: 5857.86816 | J36: 5520 | K36: 4000
A37: 354 | C37: Fax Expenses | D37: 554.88 | E37: 0 | F37: 0 | G37: 554.88 | H37: 565.9776 | I37: 577.297152 | J37: 544 | K37: 480 | L37: 483 | M37: 459
A38: 356 | C38: Service/Retirement/Recognition | D38: 0 | E38: 7384.8 | F38: 0 | G38: 7384.8 | H38: 7532.496 | I38: 7683.14592 | J38: 7240 | K38: 5939 | M38: 7800
A39: 334 | C39: Presidential Search/Farewell/Inaugeration | D39: 0 | E39: 0 | F39: 0 | G39: 0 | H39: 0 | K39: 68251
A40: 376 | C40: Faculty & Staff Affairs | D40: 9522.72 | E40: 0 | F40: 0 | G40: 9522.72 | H40: 9713.1744 | I40: 9907.437888 | J40: 9336 | K40: 12998 | L40: 3773 | M40: 1473
A41: 378 | C41: Special Allocations | D41: 3121.2 | E41: 411.06 | F41: 0 | G41: 3532.26 | H41: 3602.9052 | I41: 3674.963304 | J41: 3463 | K41: 549 | L41: 238 | M41: 3306
A42: 393 | C42: Equipment - furniture (under $1000) | D42: 0 | E42: 0 | F42: 0 | G42: 0 | H42: 0 | I42: 0 | K42: 487 | L42: 2711 | M42: 1840
A43: 399 | C43: Recoveries | D43: -1390 | E43: 0 | F43: 0 | G43: -1390 | H43: -1417.8 | I43: -1446.156 | J43: -1390 | L43: -342 | M43: -770
A44: 434 | C44: Student Costs - homestay (Net) | D44: 0 | E44: 0 | F44: 0 | G44: 0 | H44: 0 | I44: 0 | J44: 0
A45: 454 | C45: Student Costs - airport pick-up (Net) | D45: 0 | E45: 0 | F45: 0 | G45: 0 | H45: 0 | I45: 0 | J45: 0
A46: 401/474 | C46: Recruitment/Aboriginal Rec. Students Material | D46: 0 | E46: 0 | F46: 0 | G46: 0 | H46: 0 | I46: 0 | J46: 0
A47: 799 | C47: Interfund Transfer | D47: 0 | E47: 0 | F47: 0 | G47: 0 | H47: 0 | I47: 0 | K47: 2010 | M47: 10000
A48: *** | C48: Unallocated | D48: 0 | E48: 0 | F48: 0 | G48: 0 | H48: 0 | I48: 0
C49: SUB-TOTAL: SUPPL & OTHER: | D49: =SUM(D18:D48) -> 138511.16 | E49: =SUM(E18:E48) -> 24940.02 | F49: 1601.4 | G49: 165052.58 | H49: 168353.6316 | I49: 171720.7042 | J49: 161788 | K49: 182547 | L49: 73538 | M49: 228446
A50: 503 | C50: Transfers from BU Foundation | D50: 0 | E50: 0 | F50: 0 | G50: 0 | H50: 0 | I50: 0 | K50: -5000
A51: 5xx | C51: Revenues | D51: 0 | E51: 0 | F51: 0 | G51: 0 | H51: 0 | I51: 0
C52: SUB-TOTAL:RECOVERIES | D52: =SUM(D50:D51) -> 0 | E52: =SUM(E50:E51) -> 0 | F52: 0 | G52: 0 | H52: 0 | I52: 0 | J52: 0 | K52: -5000 | L52: 0 | M52: 0
A53: 901 | C53: Equipment purchases | D53: 0 | E53: 0 | F53: 0 | G53: 0 | H53: 0 | I53: 0 | L53: 7709
C54: SUB-TOTAL: RENOV & EQUIP: | D54: =SUM(D53) -> 0 | E54: =SUM(E53) -> 0 | F54: 0 | G54: 0 | H54: 0 | I54: 0 | J54: 0 | K54: 0 | L54: 7709 | M54: 0
C55: ANNUAL BUDGET: | D55: =+D54+D52+D49+D17+D12 -> 797332.928 | E55: =+E54+E52+E49+E17+E12 -> 29888.04 | F55: 5285.64 | G55: 832506.608 | H55: 875934.7383 | I55: 892123.231 | J55: 743738 | K55: 716576 | L55: 651182 | M55: 805055

Sheet VP Academic
C1: BRANDON UNIVERSITY ** VP (ACADEMIC & PROVOST) **
C2: REFERENCE BUDGET
C3: APRIL 2019 TO MARCH 2020
D4: 5303 | E4: 5304 | F4: 5306 | G4: 5307 | H4: 2019/20 | I4: 2020/21 | J4: 2021/22 | K4: 2018/19
D5: VP A & P | E5: IDA | F5: CTLT | G5: CO-OP | H5: REF'NCE | I5: PROJ. | J5: PROJ. | K5: APPROVED | L5: 2017-18 | M5: 2016/17 | N5: 2015-16
C6: EXPENDITURE: | D6: OFFICE | E6: OFFICE | G6: PROGRAM | H6: BUDGET | I6: BUDGET | J6: BUDGET | K6: BUDGET | L6: ACTUAL | M6: ACTUAL | N6: ACTUAL
A7: 001 | C7: Academic Salaries | D7: 0 | E7: 0 | F7: 158287.675 | G7: 88639.19 | H7: 246926.865 | I7: 253336.4073 | J7: 259296.7734 | K7: 239822 | L7: 228973 | M7: 152670 | N7: 138186
A8: 002 | C8: Sessionals | D8: 38685 | E8: 0 | F8: 0 | G8: 0 | H8: 38685 | I8: 38685 | J8: 38685 | K8: 38685 | L8: 6054
A9: 003 | C9: F.T. Support | D9: 639448.025 | E9: 209372.57 | F9: 0 | G9: 0 | H9: 848820.595 | I9: 633450.2587 | J9: 646383.0821 | K9: 762087 | L9: 738126 | M9: 617335 | N9: 444329
A10: 005 | C10: O.T./Student Assistants/Casual | D10: 0 | E10: 0 | F10: 0 | G10: 0 | H10: 0 | I10: 0 | J10: 0 | N10: 1566
A11: 100 | C11: Benefits | D11: 132235.9399 | E11: 40408.90601 | F11: 30074.65825 | G11: 18614.2299 | H11: 221333.734 | I11: 185094.3332 | J11: 188872.9711 | K11: 202998 | L11: 142808 | M11: 126408 | N11: 91003
A12: 099/199 | C12: Recoveries | D12: -130200 | E12: 0 | F12: 0 | G12: 0 | H12: -130200 | I12: -130200 | J12: -130200 | K12: -130200 | L12: -137131 | M12: -130200 | N12: -130200
C13: SUB-TOTAL: SALARIES & BENEFITS: | D13: =SUM(D7:D12) -> 680168.9649 | E13: =SUM(E7:E12) -> 249781.476 | F13: 188362.3332 | G13: 107253.4199 | H13: 1225566.194 | I13: 980365.9992 | J13: 1003037.827 | K13: 1113392 | L13: 978830 | M13: 766213 | N13: 544884
A14: 201/02/06 | C14: Travel/Moving/Recruitment | D14: 23198.88 | E14: 1040.4 | F14: 520.2 | G14: 1300.5 | H14: 26059.98 | I14: 26581.1796 | J14: 27112.80319 | K14: 25549 | L14: 28727 | M14: 34566 | N14: 42893
A15: 204/05/10 | C15: Prof. Dev. Allowances | D15: 60230 | E15: 2000 | F15: 3000 | G15: 2000 | H15: 67230 | I15: 67230 | J15: 67230 | K15: 67230 | L15: 27780 | M15: 29282 | N15: 18973
A16: 299 | C16: Recoveries | D16: 0 | E16: 0 | F16: 0 | G16: 0 | H16: 0 | I16: 0 | J16: 0 | L16: 2000
C17: SUB-TOTAL: TRAVEL & MOVING: | D17: =SUM(D14:D16) -> 83428.88 | E17: =SUM(E14:E16) -> 3040.4 | F17: 3520.2 | G17: 3300.5 | H17: 93289.98 | I17: 93811.1796 | J17: 94342.80319 | K17: 92779 | L17: 58507 | M17: 63848 | N17: 61866
A18: 301 | C18: Advertising | D18: 1183.2 | E18: 0 | F18: 0 | G18: 0 | H18: 1183.2 | I18: 1206.864 | J18: 1231.00128 | K18: 1160 | L18: 1000 | M18: 6891 | N18: 7904
A19: 302 | C19: Special Allowances | D19: 5100 | E19: 4059.6 | F19: 0 | G19: 1530 | H19: 10689.6 | I19: 10903.392 | J19: 11121.45984 | K19: 5480 | L19: 728 | M19: 5427
A20: 304 | C20: Consumables | D20: 2367.42 | E20: 1040.4 | F20: 2080.8 | G20: 0 | H20: 5488.62 | I20: 5598.3924 | J20: 5710.360248 | K20: 5381 | L20: 2424 | M20: 3423 | N20: 3534
A21: 305 | C21: Photocopying - Printing | D21: 1774.8 | E21: 416.16 | F21: 520.2 | G21: 0 | H21: 2711.16 | I21: 2765.3832 | J21: 2820.690864 | K21: 2658 | L21: 1543 | M21: 1477 | N21: 1229
A22: 307 | C22: Membership Subscriptions | D22: 1774.8 | E22: 1372.92 | F22: 1040.4 | G22: 739.5 | H22: 4927.62 | I22: 5026.1724 | J22: 5126.695848 | K22: 4832 | L22: 3451 | M22: 3697 | N22: 4652
A23: 308 | C23: Postage | D23: 591.6 | E23: 0 | F23: 624.24 | G23: 0 | H23: 1215.84 | I23: 1240.1568 | J23: 1264.959936 | K23: 1192 | L23: 523 | M23: 546 | N23: 3465
A24: 309 | C24: Telephone - Long Dist. | D24: 887.4 | E24: 0 | F24: 416.16 | G24: 0 | H24: 1303.56 | I24: 1329.6312 | J24: 1356.223824 | K24: 1278 | L24: 1427 | M24: 1541 | N24: 1699
A25: 310 | C25: Telephone - Rental | D25: 1774.8 | E25: 661.98 | F25: 0 | G25: 0 | H25: 2436.78 | I25: 2485.5156 | J25: 2535.225912 | K25: 2389 | L25: 2953 | M25: 2728 | N25: 2432
A26: 311 | C26: Repairs & Maintenance | D26: 591.6 | E26: 0 | F26: 0 | G26: 0 | H26: 591.6 | I26: 603.432 | J26: 615.50064 | K26: 580 | M26: 22 | N26: 19
A27: 314 | C27: Consulting Fees | D27: 0 | E27: 0 | F27: 0 | G27: 0 | H27: 0 | I27: 0 | J27: 0 | L27: 8697 | M27: 73909 | N27: 63162
A28: 317 | C28: Special Functions | D28: 12404.22 | E28: 0 | F28: 0 | G28: 0 | H28: 12404.22 | I28: 12652.3044 | J28: 12905.35049 | K28: 2161 | M28: 111 | N28: 661
A29: 318 | C29: Promotion & Recruitment | D29: 22525.68 | E29: 0 | F29: 0 | G29: 0 | H29: 22525.68 | I29: 22976.1936 | J29: 23435.71747 | K29: 22084 | L29: 5763 | M29: 4032 | N29: 5166
A30: 330 | C30: Food Purchases | D30: 3060 | E30: 0 | F30: 0 | G30: 0 | H30: 3060 | I30: 3121.2 | J30: 3183.624 | L30: 2452 | M30: 1916
A31: 345 | C31: Staff Development | D31: 0 | E31: 520.2 | F31: 0 | G31: 0 | H31: 520.2 | I31: 530.604 | J31: 541.21608 | K31: 510 | L31: 543 | M31: 611
A32: 354 | C32: Fax Expenses | D32: 0 | E32: 0 | F32: 0 | G32: 0 | H32: 0 | I32: 0 | J32: 0 | L32: 2
A33: 357/358 | C33: Software/Software Licensing | D33: 0 | E33: 1040.4 | F33: 0 | G33: 3570 | H33: 4610.4 | I33: 4702.608 | J33: 4796.66016 | L33: 1892 | M33: 2092 | N33: 557
A34: 372 | C34: Research Development/Research Dev. | D34: 25152.18 | E34: 0 | F34: 0 | G34: 0 | H34: 25152.18 | I34: 25655.2236 | J34: 26168.32807 | K34: 21520 | L34: 18414 | M34: 41605 | N34: 23086
A35: 378 | C35: Special Allocations (Senate Pgrm Reviews) | D35: 18619.08 | E35: 0 | F35: 5202 | G35: 0 | H35: 23821.08 | I35: 24297.5016 | J35: 24783.45163 | K35: 21159 | L35: 30271 | M35: 35532 | N35: 63194
A36: 393 | C36: Equipment - furniture (under $1000) | D36: 0 | E36: 0 | F36: 0 | G36: 0 | H36: 0 | I36: 0 | J36: 0 | K36: 27854 | M36: 2978 | N36: 1317
A37: 399 | C37: Recoveries | D37: -200 | E37: 0 | F37: 0 | G37: 0 | H37: -200 | I37: -204 | J37: -208.08 | K37: -200
A38: 434 | C38: Student Costs - homestay (Net) | D38: 0 | E38: 0 | F38: 0 | G38: 0 | H38: 0 | I38: 0 | J38: 0 | K38: 0
A39: 454 | C39: Student Costs - airport pick-up (Net) | D39: 0 | E39: 0 | F39: 0 | G39: 0 | H39: 0 | I39: 0 | J39: 0 | K39: 0
A40: 799 | C40: Interfund Transfer | D40: 0 | E40: 0 | F40: 0 | G40: 0 | H40: 0 | I40: 0 | J40: 0 | L40: -4000 | M40: -3914 | N40: 1358
A41: *** | C41: Unallocated | D41: 0 | E41: 0 | F41: 0 | G41: 0 | H41: 0 | I41: 0 | J41: 0
C42: SUB-TOTAL: SUPPL & OTHER: | D42: =SUM(D18:D41) -> 97606.78 | E42: =SUM(E18:E41) -> 9111.66 | F42: 9883.8 | G42: 5839.5 | H42: 122441.74 | I42: 124890.5748 | J42: 127388.3863 | K42: 120038 | L42: 78083 | M42: 184624 | N42: 183435
A43: 503 | C43: Transfers from BU Foundation | D43: 0 | E43: 0 | H43: 0 | I43: 0 | J43: 0 | L43: -15800
A44: 5xx | C44: Revenues | D44: 0 | E44: 0 | H44: 0 | I44: 0 | J44: 0 | K44: 0 | M44: -6759 | N44: -6847
C45: SUB-TOTAL:RECOVERIES | D45: =SUM(D43:D44) -> 0 | E45: =SUM(E43:E44) -> 0 | F45: 0 | G45: 0 | H45: 0 | I45: 0 | J45: 0 | K45: 0 | L45: -15800 | M45: -6759 | N45: -6847
A46: 901 | C46: Equipment purchases | D46: 0 | E46: 0 | H46: 0 | I46: 0 | J46: 0 | L46: 10715 | M46: 4158 | N46: 2846
C47: SUB-TOTAL: RENOV & EQUIP: | D47: =SUM(D46) -> 0 | E47: =SUM(E46) -> 0 | F47: 0 | G47: 0 | H47: 0 | I47: 0 | J47: 0 | K47: 0 | L47: 10715 | M47: 4158 | N47: 2846
C48: ANNUAL BUDGET: | D48: =+D47+D45+D42+D17+D13 -> 861204.6249 | E48: =+E47+E45+E42+E17+E13 -> 261933.536 | F48: 201766.3332 | G48: 116393.4199 | H48: 1441297.914 | I48: 1199067.754 | J48: 1224769.016 | K48: 1326209 | L48: 1110335 | M48: 1012084 | N48: 786184

Sheet Advancement
C1: BRANDON UNIVERSITY ** ADVANCEMENT & EXTERNAL RELATIONS**
C2: REFERENCE BUDGET
C3: APRIL 2019 TO MARCH 2020
D4: 5320 | E4: 5321 | F4: 5323 | G4: 5324 | H4: 5325 | I4: 5326 | J4: 2019/20 | K4: 2020/21 | L4: 2021/22 | M4: 2018/19
D5: ADVANCEMENT | E5: ANNUAL | F5: HOME- | G5: ALUMNI | H5: ALUMNI | I5: PRESIDENT | J5: REF'NCE | K5: PROJ. | L5: PROJ. | M5: APPROVED | N5: 2017-18 | O5: 2016-17 | P5: 2015-16
C6: EXPENDITURE: | E6: FUND | F6: COMING | G6: EVENTS | H6: ACTIVITIES | I6: CLUB | J6: BUDGET | K6: BUDGET | L6: BUDGET | M6: BUDGET | N6: ACTUAL | O6: ACTUAL | P6: ACTUAL
A7: 001 | C7: Acad./Sabb/I.A. | D7: 0 | E7: 0 | H7: 0 | I7: 0 | J7: 0 | K7: 0 | L7: 0 | M7: 0
A8: 003 | C8: F.T. Support | D8: 366246.29 | J8: 366246.29 | K8: 371498.4899 | L8: 378428.7003 | M8: 326761 | N8: 302501 | O8: 661178 | P8: 589982
A9: 005 | C9: O.T./Student Assistants/Casual | D9: 2052.2775 | J9: 2052.2775 | K9: 2072.800275 | L9: 2114.256281 | M9: 2037 | N9: 900 | O9: 824 | P9: 1715
A10: 100 | C10: Benefits | D10: 72554.8178 | J10: 72554.8178 | K10: 74714.25803 | L10: 76108.59131 | M10: 64773 | N10: 55898 | O10: 128259 | P10: 110342
A11: 099/199 | C11: Recoveries | D11: 0 | J11: 0 | K11: 0 | L11: 0 | O11: 12 | P11: -320
C12: SUB-TOTAL: SALARIES & BENEFITS: | D12: =SUM(D7:D11) -> 440853.3853 | E12: =SUM(E7:E11) -> 0 | F12: 0 | G12: 0 | H12: 0 | I12: 0 | J12: 440853.3853 | K12: 448285.5482 | L12: 456651.5479 | M12: 393571 | N12: 359299 | O12: 790273 | P12: 701719
A13: 201/02/06 | C13: Travel/Moving/Recruitment | D13: 15851.82 | E13: 0 | F13: 0 | G13: 1578.96 | H13: 0 | I13: 362.1 | J13: 17792.88 | K13: 18148.7376 | L13: 18511.71235 | M13: 17444 | N13: 5609 | O13: 7941 | P13: 26021
A14: 204/05/10 | C14: Prof. Dev. Allowances | D14: 4000 | E14: 0 | F14: 0 | G14: 0 | H14: 0 | I14: 0 | J14: 4000 | K14: 4000 | L14: 4000 | M14: 4000 | N14: 3895 | P14: 8884
A15: 299 | C15: Recoveries | D15: 0 | E15: 0 | F15: 0 | G15: 0 | H15: 0 | I15: 0 | J15: 0 | K15: 0 | L15: 0
C16: SUB-TOTAL: TRAVEL & MOVING: | D16: =SUM(D13:D15) -> 19851.82 | E16: =SUM(E13:E15) -> 0 | F16: 0 | G16: 1578.96 | H16: 0 | I16: 362.1 | J16: 21792.88 | K16: 22148.7376 | L16: 22511.71235 | M16: 21444 | N16: 9504 | O16: 7941 | P16: 34905
A17: 301 | C17: Advertising | D17: 1230.12 | E17: 0 | F17: 561 | G17: 0 | H17: 0 | I17: 0 | J17: 1791.12 | K17: 1826.9424 | L17: 1863.481248 | M17: 1755 | N17: 11575 | O17: 41482 | P17: 10588
A18: 302 | C18: Special Allowances | D18: 0 | E18: 0 | F18: 0 | G18: 0 | H18: 0 | I18: 0 | J18: 0 | K18: 0 | L18: 0 | N18: 152 | O18: 2776 | P18: 943
A19: 304 | C19: Consumables | D19: 3119.16 | E19: 0 | F19: 510 | G19: 0 | H19: 0 | I19: 0 | J19: 3629.16 | K19: 3701.7432 | L19: 3775.778064 | M19: 3558 | N19: 5177 | O19: 8823 | P19: 4419
A20: 305 | C20: Photocopying - Printing | D20: 1040.4 | E20: 5024.52 | F20: 1530 | G20: 108.12 | H20: 0 | I20: 862.92 | J20: 8565.96 | K20: 8737.2792 | L20: 8912.024784 | M20: 8398 | N20: 11056 | O20: 30634 | P20: 27740
A21: 306 | C21: Films - Film Rental/Photography | D21: 0 | E21: 0 | F21: 510 | G21: 0 | H21: 0 | I21: 0 | J21: 510 | K21: 520.2 | L21: 530.604 | M21: 500 | N21: 2867
A22: 307 | C22: Membership Subscriptions | D22: 4861.32 | E22: 0 | F22: 0 | G22: 0 | H22: 0 | I22: 0 | J22: 4861.32 | K22: 4958.5464 | L22: 5057.717328 | M22: 4766 | N22: 1643 | O22: 6447 | P22: 4440
A23: 308 | C23: Postage | D23: 381.48 | E23: 7623.48 | F23: 1734 | G23: 551.82 | H23: 491.64 | I23: 616.08 | J23: 11398.5 | K23: 11626.47 | L23: 11858.9994 | M23: 11175 | N23: 10864 | O23: 38769 | P23: 35237
A24: 309 | C24: Telephone - Long Dist. | D24: 1664.64 | E24: 0 | F24: 0 | G24: 0 | H24: 0 | I24: 0 | J24: 1664.64 | K24: 1697.9328 | L24: 1731.891456 | M24: 1632 | N24: 1628 | O24: 3941 | P24: 3450
A25: 310 | C25: Telephone - Rental | D25: 1730.94 | E25: 0 | F25: 0 | G25: 0 | H25: 0 | I25: 0 | J25: 1730.94 | K25: 1765.5588 | L25: 1800.869976 | M25: 1697 | N25: 2953 | O25: 2953 | P25: 2318
A26: 311 | C26: Repairs & Maintenance | D26: 615.06 | E26: 0 | F26: 0 | G26: 0 | H26: 0 | I26: 0 | J26: 615.06 | K26: 627.3612 | L26: 639.908424 | M26: 603 | N26: 691 | O26: 722 | P26: 244
A27: 313 | C27: Publications/Legacy PG News | D27: 0 | E27: 0 | F27: 0 | G27: 0 | H27: 0 | I27: 0 | J27: 0 | K27: 0 | L27: 0 | M27: 0
A28: 314 | C28: Consulting Fees | D28: 0 | E28: 0 | F28: 0 | G28: 0 | H28: 0 | I28: 0 | J28: 0 | K28: 0 | L28: 0 | N28: 417 | O28: 5721 | P28: 2204
A29: 317 | C29: Special Functions | D29: 520.2 | E29: 286.62 | F29: 2142 | G29: 3178.32 | H29: 0 | I29: 3932.1 | J29: 10059.24 | K29: 10260.4248 | L29: 10465.6333 | M29: 9861 | N29: 4028 | O29: 2230 | P29: 4441
A30: 330 | C30: Food Purchases | D30: 260.1 | E30: 0 | F30: 12121.68 | G30: 4610.4 | H30: 728.28 | I30: 0 | J30: 17720.46 | K30: 18074.8692 | L30: 18436.36658 | M30: 17373 | N30: 19394 | O30: 19131 | P30: 24591
A31: 345 | C31: Staff Development | D31: 3831.12 | E31: 0 | F31: 0 | G31: 0 | H31: 0 | I31: 0 | J31: 3831.12 | K31: 3907.7424 | L31: 3985.897248 | M31: 3756 | N31: 227 | P31: 5337
A32: 354 | C32: Fax Expenses | D32: 616.08 | E32: 0 | F32: 0 | G32: 0 | H32: 0 | I32: 0 | J32: 616.08 | K32: 628.4016 | L32: 640.969632 | M32: 604 | N32: 479 | O32: 479 | P32: 505
A33: 357/358 | C33: Software Licensing/Support | D33: 16126.2 | E33: 0 | F33: 0 | G33: 0 | H33: 0 | I33: 0 | J33: 16126.2 | K33: 16448.724 | L33: 16777.69848 | M33: 15810 | N33: 15480 | O33: 26824 | P33: 10438
A34: 378 | C34: Special Allocations | D34: 0 | E34: 0 | F34: 408 | G34: 0 | H34: 0 | I34: 0 | J34: 408 | K34: 416.16 | L34: 424.4832 | M34: 400 | N34: 3093 | O34: 237 | P34: 4949
A35: 393 | C35: Equipment purchases (under $1000) | D35: 0 | E35: 0 | F35: 0 | G35: 0 | H35: 0 | I35: 0 | J35: 0 | K35: 0 | L35: 0 | O35: 758 | P35: 53219
A36: 399 | C36: Recoveries | D36: 0 | E36: 0 | F36: 0 | G36: 0 | H36: 0 | I36: 0 | J36: 0 | K36: 0 | L36: 0
A37: 799 | C37: Interfund Transfer | D37: 0 | E37: 0 | F37: -5000 | G37: 0 | H37: 0 | I37: 0 | J37: -5000 | K37: -5100 | L37: -5202 | M37: -5000 | N37: -5000 | O37: -5000 | P37: -5000
A38: *** | C38: Unallocated | D38: 0 | E38: 0 | F38: 0 | G38: 0 | H38: 0 | I38: 0 | J38: 0 | K38: 0 | L38: 0
C39: SUB-TOTAL: SUPPL & OTHER: | D39: =SUM(D17:D38) -> 35996.82 | E39: =SUM(E17:E38) -> 12934.62 | F39: 14516.68 | G39: 8448.66 | H39: 1219.92 | I39: 5411.1 | J39: 78527.8 | K39: 80098.356 | L39: 81700.32312 | M39: 76888 | N39: 86724 | O39: 186927 | P39: 190063
A40: 503 | C40: Transfers from BU Foundation | D40: -475000 | E40: 0 | F40: 0 | G40: 0 | H40: -5000 | I40: 0 | J40: -480000 | K40: -480000 | L40: -480000 | M40: -480000 | N40: -258401 | O40: -480230 | P40: -460071
A41: 510 | C41: Special Events | D41: 0 | E41: 0 | F41: -9500 | G41: 0 | H41: 0 | I41: 0 | J41: -9500 | K41: -9500 | L41: -9500 | M41: -9500 | N41: -9562 | O41: -8209 | P41: -7191
C42: SUB-TOTAL:RECOVERIES | D42: =SUM(D40:D41) -> -475000 | E42: =SUM(E40:E41) -> 0 | F42: -9500 | G42: 0 | H42: -5000 | I42: 0 | J42: -489500 | K42: -489500 | L42: -489500 | M42: -489500 | N42: -267963 | O42: -488439 | P42: -467262
A43: 901 | C43: Equipment purchases | D43: 0 | E43: 0 | F43: 0 | G43: 0 | H43: 0 | I43: 0 | J43: 0 | K43: 0 | L43: 0 | N43: 1471 | O43: 15934
C44: SUB-TOTAL: RENOV & EQUIP: | D44: =SUM(D43) -> 0 | E44: =SUM(E43) -> 0 | F44: 0 | G44: 0 | H44: 0 | I44: 0 | J44: 0 | K44: 0 | L44: 0 | M44: 0 | N44: 1471 | O44: 15934 | P44: 0
C45: ANNUAL BUDGET: | D45: =+D44+D42+D39+D16+D12 -> 21702.0253 | E45: =+E44+E42+E39+E16+E12 -> 12934.62 | F45: 5016.68 | G45: 10027.62 | H45: -3780.08 | I45: 5773.2 | J45: 51674.0653 | K45: 61032.64181 | L45: 71363.58335 | M45: 2403 | N45: 189035 | O45: 512636 | P45: 459425

Sheet Marketing
C1: BRANDON UNIVERSITY **MARKETING & COMMUNICATIONS**
C2: REFERENCE BUDGET
C3: APRIL 2019 TO MARCH 2020 | K3: Please note, historical information when
D4: 5327 | E4: 5322 | F4: 2019/20 | G4: 2020/21 | H4: 2021/22 | I4: 2018/19 | K4: combined with Advancement at this time.
D5: EXTERNAL | E5: ALUMNI | F5: REF'NCE | G5: PROJ. | H5: PROJ. | I5: APPROVED | J5: 2017-18 | K5: 2016-17 | L5: 2015-16
C6: EXPENDITURE: | D6: RELATIONS | E6: NEWS | F6: BUDGET | G6: BUDGET | H6: BUDGET | I6: BUDGET | J6: ACTUAL | K6: ACTUAL | L6: ACTUAL
A7: 001 | C7: Acad./Sabb/I.A. | D7: 0 | F7: 0 | G7: 0 | H7: 0 | I7: 0
A8: 003 | C8: F.T. Support | D8: 315079.22 | F8: 315079.22 | G8: 322994.2328 | H8: 332769.2736 | I8: 294765 | J8: 276416 | K8: 661178 | L8: 589982
A9: 005 | C9: O.T./Student Assistants/Casual | F9: 0 | I9: 0 | K9: 824 | L9: 1715
A10: 100 | C10: Benefits | D10: 62070.60634 | F10: 62070.60634 | G10: 64598.84656 | H10: 66553.85472 | I10: 58069 | J10: 57304 | K10: 128259 | L10: 110342
A11: 099/199 | C11: Recoveries | F11: 0 | G11: 0 | H11: 0 | K11: 12 | L11: -320
C12: SUB-TOTAL: SALARIES & BENEFITS: | D12: =SUM(D8:D11) -> 377149.8263 | E12: =SUM(E8:E11) -> 0 | F12: 377149.8263 | G12: 387593.0794 | H12: 399323.1283 | I12: 352834 | J12: 333720 | K12: 790273 | L12: 701719
A13: 201/02/06 | C13: Travel/Moving/Recruitment | D13: 551.82 | E13: 0 | F13: 551.82 | G13: 562.8564 | H13: 574.113528 | I13: 541 | J13: 130 | K13: 7941 | L13: 26021
A14: 204/05/10 | C14: Prof. Dev. Allowances | D14: 4000 | E14: 0 | F14: 4000 | G14: 4000 | H14: 4000 | I14: 4000 | J14: 3341 | L14: 8884
A15: 299 | C15: Recoveries | D15: 0 | E15: 0 | F15: 0 | G15: 0 | H15: 0
C16: SUB-TOTAL: TRAVEL & MOVING: | D16: =SUM(D13:D15) -> 4551.82 | E16: =SUM(E13:E15) -> 0 | F16: 4551.82 | G16: 4562.8564 | H16: 4574.113528 | I16: 4541 | J16: 3471 | K16: 7941 | L16: 34905
A17: 301 | C17: Advertising | D17: 36414 | E17: 0 | F17: 36414 | G17: 37142.28 | H17: 37885.1256 | I17: 35700 | J17: 17262 | K17: 41482 | L17: 10588
A18: 302 | C18: Special Allowances | D18: 5202 | E18: 0 | F18: 5202 | G18: 5306.04 | H18: 5412.1608 | I18: 4900 | J18: 2490 | K18: 2776 | L18: 943
A19: 304 | C19: Consumables | D19: 0 | E19: 0 | F19: 0 | G19: 0 | H19: 0 | I19: 0 | K19: 8823 | L19: 4419
A20: 305 | C20: Photocopying - Printing | D20: 189.72 | E20: 22921.44 | F20: 23111.16 | G20: 23573.3832 | H20: 24044.85086 | I20: 22657 | J20: 11042 | K20: 30634 | L20: 27740
A21: 306 | C21: Films - Film Rental/Photography | D21: 620.16 | E21: 1560.6 | F21: 2180.76 | G21: 2224.3752 | H21: 2268.862704 | I21: 2138
A22: 307 | C22: Membership Subscriptions | D22: 431.46 | E22: 0 | F22: 431.46 | G22: 440.0892 | H22: 448.890984 | I22: 423 | J22: 330 | K22: 6447 | L22: 4440
A23: 308 | C23: Postage | D23: 0 | E23: 20123.58 | F23: 20123.58 | G23: 20526.0516 | H23: 20936.57263 | I23: 19729 | J23: 14581 | K23: 38769 | L23: 35237
A24: 309 | C24: Telephone - Long Dist. | D24: 1664.64 | E24: 0 | F24: 1664.64 | G24: 1697.9328 | H24: 1731.891456 | I24: 1632 | J24: 1254 | K24: 3941 | L24: 3450
A25: 310 | C25: Telephone - Rental | D25: 1731.96 | E25: 0 | F25: 1731.96 | G25: 1766.5992 | H25: 1801.931184 | I25: 1698 | K25: 2953 | L25: 2318
A26: 311 | C26: Repairs & Maintenance | D26: 615.06 | E26: 0 | F26: 615.06 | G26: 627.3612 | H26: 639.908424 | I26: 603 | K26: 722 | L26: 244
A27: 313 | C27: Publications/Legacy PG News | D27: 0 | E27: 0 | F27: 0 | G27: 0 | H27: 0 | I27: 0 | J27: 61
A28: 314 | C28: Consulting Fees | D28: 0 | E28: 1560.6 | F28: 1560.6 | G28: 1591.812 | H28: 1623.64824 | I28: 1530 | J28: 1250 | K28: 5721 | L28: 2204
A29: 317 | C29: Special Functions | D29: 520.2 | E29: 0 | F29: 520.2 | G29: 530.604 | H29: 541.21608 | I29: 510 | K29: 2230 | L29: 4441
A30: 330 | C30: Food Purchases | D30: 260.1 | E30: 0 | F30: 260.1 | G30: 265.302 | H30: 270.60804 | I30: 255 | J30: 39 | K30: 19131 | L30: 24591
A31: 345 | C31: Staff Development | D31: 3751.56 | E31: 0 | F31: 3751.56 | G31: 3826.5912 | H31: 3903.123024 | I31: 3678 | J31: 1024 | L31: 5337
A32: 354 | C32: Fax Expenses | D32: 0 | E32: 0 | F32: 0 | G32: 0 | H32: 0 | I32: 0 | K32: 479 | L32: 505
A33: 357/358 | C33: Software Licensing/Support | D33: 12648 | E33: 0 | F33: 12648 | G33: 12900.96 | H33: 13158.9792 | I33: 12240 | J33: 12105 | K33: 26824 | L33: 10438
A34: 378 | C34: Special Allocations - 50th Anniversary | D34: 0 | E34: 0 | F34: 0 | G34: 0 | H34: 0 | I34: 35000 | K34: 237 | L34: 4949
A35: 393 | C35: Equipment purchases (under $1000) | D35: 0 | E35: 0 | F35: 0 | G35: 0 | H35: 0 | J35: 1811 | K35: 758 | L35: 53219
A36: 399 | C36: Recoveries | D36: 0 | E36: 0 | F36: 0 | G36: 0 | H36: 0
A37: 799 | C37: Interfund Transfer | D37: 0 | E37: 0 | F37: 0 | G37: 0 | H37: 0 | K37: -5000 | L37: -5000
A38: *** | C38: Unallocated | D38: 0 | E38: 0 | F38: 0 | G38: 0 | H38: 0
C39: SUB-TOTAL: SUPPL & OTHER: | D39: =SUM(D17:D38) -> 64048.86 | E39: =SUM(E17:E38) -> 46166.22 | F39: 110215.08 | G39: 112419.3816 | H39: 114667.7692 | I39: 142693 | J39: 63249 | K39: 186927 | L39: 190063
A40: 503 | C40: Transfers from BU Foundation | D40: 0 | E40: 0 | F40: 0 | G40: 0 | H40: 0 | I40: 0 | J40: -215251 | K40: -480230 | L40: -460071
A41: 510 | C41: Special Events | D41: 0 | E41: 0 | F41: 0 | G41: 0 | H41: 0 | I41: 0 | J41: -1582 | K41: -8209 | L41: -7191
C42: SUB-TOTAL:RECOVERIES | D42: =SUM(D40:D41) -> 0 | E42: =SUM(E40:E41) -> 0 | F42: 0 | G42: 0 | H42: 0 | I42: 0 | J42: -216833 | K42: -488439 | L42: -467262
A43: 901 | C43: Equipment purchases | D43: 0 | E43: 0 | F43: 0 | G43: 0 | H43: 0 | J43: 5016 | K43: 15934
C44: SUB-TOTAL: RENOV & EQUIP: | D44: =SUM(D43) -> 0 | E44: =SUM(E43) -> 0 | F44: 0 | G44: 0 | H44: 0 | I44: 0 | J44: 5016 | K44: 15934 | L44: 0
C45: ANNUAL BUDGET: | D45: =+D44+D42+D39+D16+D12 -> 445750.5063 | E45: =+E44+E42+E39+E16+E12 -> 46166.22 | F45: 491916.7263 | G45: 504575.3174 | H45: 518565.0111 | I45: 500068 | J45: 188623 | K45: 512636 | L45: 459425

Sheet Library Services
C1: BRANDON UNIVERSITY ** LIBRARY & RELATED SERVICES **
C2: REFERENCE BUDGET
C3: APRIL 2019 TO MARCH 2020
D5: 5002 | E5: 5006 | F5: 2019/20 | G5: 2020/21 | H5: 2021/22 | I5: 2018/19
F6: REF'NCE | G6: PROJ. | H6: PROJ. | I6: APPROVED | J6: 2017-18 | K6: 2016-17 | L6: 2015-16
C7: EXPENDITURE: | D7: LIBRARY | E7: ARCHIVES | F7: BUDGET | G7: BUDGET | H7: BUDGET | I7: BUDGET | J7: ACTUAL | K7: ACTUAL | L7: ACTUAL
A8: 003 | C8: Full-Time Support | D8: 594573.465 | E8: 0 | F8: 594573.465 | G8: 599647.0846 | H8: 604822.1766 | I8: 575829 | J8: 590324 | K8: 559689 | L8: 535914
A9: 004/005 | C9: P.T./Student Assistants/Casual | D9: 126020.665 | E9: 0 | F9: 126020.665 | G9: 127364.0766 | H9: 129148.5398 | I9: 120731 | J9: 98297 | K9: 101205 | L9: 79831
A10: 006/007 | C10: Professional F.T./P.T. | D10: 650087.6306 | E10: 78598.19 | F10: 728685.8206 | G10: 528906.2427 | H10: 544531.0501 | I10: 673277 | J10: 637878 | K10: 573258 | L10: 556390
A11: 100 | C11: Benefits | D11: 259058.8528 | E11: 16112.62895 | F11: 275171.4817 | G11: 251183.4808 | H11: 255700.3533 | I11: 260088 | J11: 246405 | K11: 242681 | L11: 220125
A12: 099/199 | C12: Recoveries | D12: 0 | F12: 0 | G12: 0 | H12: 0 | J12: -1320
C13: SUB-TOTAL: SALARIES & BENEFITS: | D13: =SUM(D8:D12) -> 1629740.613 | E13: =SUM(E8:E12) -> 94710.81895 | F13: 1724451.432 | G13: 1507100.885 | H13: 1534202.12 | I13: 1629925 | J13: 1571584 | K13: 1476833 | L13: 1392260
A14: 201/02/06 | C14: Travel/Moving/Recruitment | D14: 5233.62 | E14: 0 | F14: 5233.62 | G14: 5338.2924 | H14: 5445.058248 | I14: 5131 | J14: 6981 | K14: 6962 | L14: 13768
A15: 204/05/10 | C15: Prof. Dev. Allowances | D15: 9840 | E15: 2000 | F15: 11840 | G15: 11840 | H15: 11840 | I15: 11840 | J15: 13597 | K15: 10021 | L15: 10918
A16: 299 | C16: Recoveries | D16: 0 | E16: 0 | F16: 0 | G16: 0 | H16: 0 | J16: 1863
C17: SUB-TOTAL: TRAVEL & MOVING: | D17: =SUM(D14:D16) -> 15073.62 | E17: =SUM(E14:E16) -> 2000 | F17: 17073.62 | G17: 17178.2924 | H17: 17285.05825 | I17: 16971 | J17: 22441 | K17: 16983 | L17: 24686
A18: 5001 | C18: Library Books & Periodicals | D18: 674939.1 | E18: 0 | F18: 674939.1 | G18: 688437.882 | H18: 702206.6396 | I18: 661705 | J18: 600254 | K18: 521483 | L18: 586103
A19: 5001029 | C19: Electronic Resources | D19: 343722.66 | E19: 0 | F19: 343722.66 | G19: 350597.1132 | H19: 357609.0555 | I19: 336983 | J19: 339779.42 | K19: 329544 | L19: 238812
A20: 301 | C20: xxAdvertising | D20: 0 | E20: 0 | F20: 0 | G20: 0 | H20: 0 | L20: 2239
A21: 302 | C21: Special Allowances | D21: 0 | E21: 0 | F21: 0 | G21: 0 | H21: 0 | J21: 10183 | K21: 480 | L21: 1428
A22: 304 | C22: Consumables | D22: 13137.6 | E22: 2981.46 | F22: 16119.06 | G22: 16441.4412 | H22: 16770.27002 | I22: 15803 | J22: 20127 | K22: 11707 | L22: 14417
A23: 305 | C23: Photocopying - Printing | D23: 8097.78 | E23: 121.38 | F23: 8219.16 | G23: 8383.5432 | H23: 8551.214064 | I23: 8058 | J23: 7912 | K23: 5366 | L23: 5024
A24: 306 | C24: Films - Film Rental | D24: 0 | E24: 0 | F24: 0 | G24: 0 | H24: 0 | I24: 0
A25: 307 | C25: Membership Subscriptions | D25: 7182.84 | E25: 121.38 | F25: 7304.22 | G25: 7450.3044 | H25: 7599.310488 | I25: 7161 | J25: 9677 | K25: 5600 | L25: 7671
A26: 308 | C26: Postage | D26: 1664.64 | E26: 61.2 | F26: 1725.84 | G26: 1760.3568 | H26: 1795.563936 | I26: 1692 | J26: 635 | K26: 1843 | L26: 1506
A27: 309 | C27: Telephone - Long Dist. | D27: 677.28 | E27: 616.08 | F27: 1293.36 | G27: 1319.2272 | H27: 1345.611744 | I27: 1268 | J27: 18 | K27: 49 | L27: 908
A28: 310 | C28: Telephone - Rental | D28: 6753.42 | E28: 491.64 | F28: 7245.06 | G28: 7389.9612 | H28: 7537.760424 | I28: 7103 | J28: 6767 | K28: 6767 | L28: 6767
A29: 311 | C29: Repairs & Maintenance | D29: 3779.1 | E29: 183.6 | F29: 3962.7 | G29: 4041.954 | H29: 4122.79308 | I29: 3884 | J29: 2133 | K29: 1834 | L29: 3336
A30: 314 | C30: Consulting/Professional Fees | D30: 0 | E30: 0 | F30: 0 | G30: 0 | H30: 0 | L30: 7420
A31: 325 | C31: Security Services | D31: 2208.3 | E31: 0 | F31: 2208.3 | G31: 2252.466 | H31: 2297.51532 | I31: 2165 | J31: 1444 | K31: 2855 | L31: 3439
A32: 326 | C32: Service Contracts | D32: 2831.52 | E32: 0 | F32: 2831.52 | G32: 2888.1504 | H32: 2945.913408 | I32: 2776 | J32: 2534
A33: 317 | C33: Special Functions | D33: 1230.12 | E33: 0 | F33: 1230.12 | G33: 1254.7224 | H33: 1279.816848 | I33: 1206 | J33: 292 | K33: 842
A34: 345 | C34: Staff Development | D34: 2215.44 | E34: 0 | F34: 2215.44 | G34: 2259.7488 | H34: 2304.943776 | I34: 2172 | J34: 386 | K34: 5311 | L34: 1316
A35: 351 | C35: Cataloguing | D35: 5628.36 | E35: 0 | F35: 5628.36 | G35: 5740.9272 | H35: 5855.745744 | I35: 5518 | J35: 4504 | K35: 3600 | L35: 14716
A36: 352 | C36: Binding & Repair | D36: 5536.56 | E36: 0 | F36: 5536.56 | G36: 5647.2912 | H36: 5760.237024 | I36: 5428 | J36: 2563 | K36: 4304 | L36: 2417
A37: 354 | C37: Fax Expenses | D37: 0 | E37: 61.2 | F37: 61.2 | G37: 62.424 | H37: 63.67248 | I37: 60 | L37: 787
A38: 357/358 | C38: Software/Software Licensing | D38: 46397.76 | E38: 0 | F38: 46397.76 | G38: 47325.7152 | H38: 48272.2295 | I38: 45488 | J38: 58318 | K38: 59169 | L38: 46257
A39: 360 | C39: Inter Library Loans | D39: 4965.36 | E39: 0 | F39: 4965.36 | G39: 5064.6672 | H39: 5165.960544 | I39: 4868 | J39: 6535 | K39: 3741 | L39: 2557
A40: 378 | C40: Special Allocations - Digital Repository | D40: 25500 | E40: 0 | F40: 25500 | G40: 26010 | H40: 26530.2 | I40: 25000 | J40: 537
A41: 382/384 | C41: Overages/Shortages/Bad Debt | D41: 0 | E41: 0 | F41: 0 | G41: 0 | H41: 0 | J41: 2598 | K41: 1645 | L41: 1018
A42: 393 | C42: Equipment - furntiure (under $1000) | D42: 0 | E42: 0 | F42: 0 | G42: 0 | H42: 0 | J42: 25656 | K42: 10572 | L42: 5024
A43: 396 | C43: Special Recoveries | E43: 0 | F43: 0 | G43: 0 | H43: 0
A44: 399 | C44: Recoveries | D44: -510 | E44: 0 | F44: -510 | G44: -520.2 | H44: -530.604 | I44: -510 | K44: -32
A45: 799 | C45: Interfund Transfer | F45: 0 | K45: 813 | L45: 4540
A46: *** | C46: Unallocated | D46: 0 | E46: 0 | F46: 0 | G46: 0 | H46: 0
C47: SUB-TOTAL: SUPPLIES & OTHER EXPS: | D47: =SUM(D18:D46) -> 1155957.84 | E47: =SUM(E18:E46) -> 4637.94 | F47: 1160595.78 | G47: 1183807.696 | H47: 1207483.85 | I47: 1137828 | J47: 1102852.42 | K47: 977493 | L47: 957702
A48: 503 | C48: Transfers from BU Foundation | D48: 0 | E48: 0 | F48: 0 | G48: 0 | H48: 0 | J48: -8675 | K48: -6763 | L48: -5892
A49: 505/507 | C49: Rentals/Library Fines | D49: -4805 | E49: 0 | F49: -4805 | G49: -4805 | H49: -4805 | I49: -4805 | J49: -7988 | K49: -10163 | L49: -8212
A50: 510 | C50: Revenues | D50: 0 | E50: 0 | F50: 0 | G50: 0 | H50: 0 | J50: -3428 | K50: -3628 | L50: -7041
A51: 590 | C51: Photocopier Revenues/Other Revenues | D51: -10000 | E51: 0 | F51: -10000 | G51: -10000 | H51: -10000 | I51: -10000 | J51: -2792 | K51: -4264 | L51: -1750
C52: SUB-TOTAL: REVENUES | D52: =SUM(D48:D51) -> -14805 | E52: =SUM(E48:E51) -> 0 | F52: -14805 | G52: -14805 | H52: -14805 | I52: -14805 | J52: -22883 | K52: -24818 | L52: -22895
A53: 901 | C53: Equipment purchases | D53: 0 | E53: 0 | F53: 0 | G53: 0 | H53: 0 | I53: 0 | J53: 67538 | K53: 4849 | L53: 80209
C54: SUB-TOTAL: RENOV & EQUIP EXPS: | D54: =SUM(D53) -> 0 | E54: =SUM(E53) -> 0 | F54: 0 | G54: 0 | H54: 0 | I54: 0 | J54: 67538 | K54: 4849 | L54: 80209
C55: TOTAL BUDGET: | D55: =+D54+D52+D47+D17+D13 -> 2785967.073 | E55: =+E54+E52+E47+E17+E13 -> 101348.759 | F55: 2887315.832 | G55: 2693281.873 | H55: 2744166.028 | I55: 2769919 | J55: 2741532.42 | K55: 2451340 | L55: 2431962

Sheet ITS
C1: INFORMATION TECHNOLOGY SERVICES
C2: REFERENCE BUDGET
C3: APRIL 2019 TO MARCH 2020
D4: 5012 | E4: 5013 | F4: 5014 | G4: 2019/20 | H4: 2020/21 | I4: 2021/22 | J4: 2018/19
D5: INFO TECH | E5: TECH | F5: PHONE | G5: REF'NCE | H5: PROJ. | I5: PROJ. | J5: APPROVED | K5: 2017-18 | L5: 2016-17 | M5: 2015-16
C6: EXPENDITURE: | D6: SERVICES | E6: RPLC. | F6: COMPANY | G6: BUDGET | H6: BUDGET | I6: BUDGET | J6: BUDGET | K6: ACTUAL | L6: ACTUAL | M6: ACTUAL
A7: 003 | C7: F.T. Support | D7: 1049602.98 | E7: 0 | F7: 0 | G7: 1049602.98 | H7: 917978.2711 | I7: 923843.808 | J7: 1000184 | K7: 854050 | L7: 823325 | M7: 863717
A8: 004/005 | C8: P.T./Student Assistants/Casual | D8: 23343.775 | E8: 0 | F8: 0 | G8: 23343.775 | H8: 23577.21275 | I8: 24048.75701 | J8: 23170 | K8: 16098 | L8: 19300 | M8: 14759
A9: 099 | C9: Recoveries | D9: 0 | E9: 0 | F9: 0 | G9: 0 | H9: 0 | I9: 0 | M9: -202
A10: 100 | C10: Benefits | D10: 216735.2445 | E10: 0 | F10: 0 | G10: 216735.2445 | H10: 188311.0968 | I10: 189578.513 | J10: 206718 | K10: 171274 | L10: 166077 | M10: 174287
C11: SUB-TOTAL: SALARIES & BENEFITS: | D11: =SUM(D7:D10) -> 1289682 | E11: =SUM(E7:E10) -> 0 | F11: 0 | G11: 1289682 | H11: 1129866.581 | I11: 1137471.078 | J11: 1230072 | K11: 1041422 | L11: 1008702 | M11: 1052561
A12: 201/02/06 | C12: Travel/Moving/Recruitment | D12: 8020.26 | E12: 0 | F12: 0 | G12: 8020.26 | H12: 8180.6652 | I12: 8344.278504 | J12: 7863 | K12: 6796 | L12: 9234 | M12: 7607
A13: 204/05/10 | C13: Prof. Dev. Allowances | D13: 2000 | E13: 0 | F13: 0 | G13: 2000 | H13: 2000 | I13: 2000 | J13: 2000 | K13: 358 | L13: 1081 | M13: 202
A14: 299 | C14: Recoveries | D14: 0 | E14: 0 | F14: 0 | G14: 0 | H14: 0 | I14: 0
C15: SUB-TOTAL: TRAVEL & MOVING: | D15: =SUM(D12:D14) -> 10020.26 | E15: =SUM(E12:E14) -> 0 | F15: 0 | G15: 10020.26 | H15: 10180.6652 | I15: 10344.2785 | J15: 9863 | K15: 7154 | L15: 10315 | M15: 7809
A16: 301 | C16: Advertising | D16: 245.82 | E16: 0 | F16: 0 | G16: 245.82 | H16: 250.7364 | I16: 255.751128 | J16: 241 | K16: 2029 | L16: 1838 | M16: 5120
A17: 302 | C17: Special Allowances | D17: 0 | E17: 0 | F17: 0 | G17: 0 | H17: 0 | I17: 0 | K17: 592 | L17: 3314
A18: 303 | C18: Computer Utilization | D18: 23476.32 | E18: 0 | F18: 0 | G18: 23476.32 | H18: 23945.8464 | I18: 24424.76333 | J18: 23016 | K18: 31120 | L18: 30851 | M18: 17763
A19: 304 | C19: Consumables | D19: 7365.42 | E19: 0 | F19: 0 | G19: 7365.42 | H19: 7512.7284 | I19: 7662.982968 | J19: 7221 | K19: 2085 | L19: 4249 | M19: 1621
A20: 305 | C20: Photocopying - Printing | D20: 121.38 | E20: 0 | F20: 0 | G20: 121.38 | H20: 123.8076 | I20: 126.283752 | J20: 119 | M20: 803
A21: 307 | C21: Membership Subscriptions | D21: 1969.62 | E21: 0 | F21: 0 | G21: 1969.62 | H21: 2009.0124 | I21: 2049.192648 | J21: 1931 | K21: 8676 | L21: 2947 | M21: 2715
A22: 308 | C22: Postage | D22: 100.98 | E22: 0 | F22: 0 | G22: 100.98 | H22: 102.9996 | I22: 105.059592 | J22: 99 | K22: 181 | L22: 37 | M22: 61
A23: 309 | C23: Telephone - Long Dist. | D23: 616.08 | E23: 0 | F23: 0 | G23: 616.08 | H23: 628.4016 | I23: 640.969632 | J23: 604 | K23: 2944 | L23: 2994 | M23: 3552
A24: 310 | C24: Telephone - Rental | D24: 7715.28 | E24: 0 | F24: 0 | G24: 7715.28 | H24: 7869.5856 | I24: 8026.977312 | J24: 7564 | K24: 5234 | L24: 5422 | M24: 6057
A25: 311 | C25: Repairs & Maintenance | D25: 35436.84 | E25: 0 | F25: 30000 | G25: 65436.84 | H25: 66745.5768 | I25: 68080.48834 | J25: 64742 | K25: 91645 | L25: 64266 | M25: 98744
A26: 314 | C26: Consultant | D26: 68378.76 | E26: 0 | F26: 0 | G26: 68378.76 | H26: 69746.3352 | I26: 71141.2619 | J26: 67038 | K26: 63934 | L26: 57026 | M26: 63855
A27: 328 | C27: Provision for Replacement | D27: 0 | E27: 0 | F27: 42000 | G27: 42000 | H27: 42840 | I27: 43696.8 | J27: 42000 | K27: 0 | L27: 65515 | M27: 80497
A28: 317/333 | C28: Special Functions/Sundry | D28: 0 | E28: 0 | F28: 0 | G28: 0 | H28: 0 | I28: 0 | J28: 0
A29: 342/343 | C29: Trunk Charges/Change in Service | D29: 0 | E29: 0 | F29: 41000 | G29: 41000 | H29: 41820 | I29: 42656.4 | J29: 41000 | K29: 44234 | L29: 39857 | M29: 40134
A30: 345 | C30: Staff Development | D30: 8778.12 | E30: 0 | F30: 0 | G30: 8778.12 | H30: 8953.6824 | I30: 9132.756048 | J30: 8606 | K30: 3586 | L30: 2481 | M30: 7951
A31: 354 | C31: Fax Expenses | D31: 0 | E31: 0 | F31: 0 | G31: 0 | H31: 0 | I31: 0 | M31: 2
A32: 357/358 | C32: Software/software licensing | D32: 165773.46 | E32: 50000 | F32: 30000 | G32: 245773.46 | H32: 250688.9292 | I32: 255702.7078 | J32: 242523 | K32: 183725 | L32: 142771 | M32: 171642
A33: 361 | C33: Recoverable Purchases | D33: 0 | E33: 0 | F33: 0 | G33: 0 | H33: 0 | I33: 0 | K33: 29671 | L33: 19121 | M33: 11662
A34: 393 | C34: Equipment - furniture (under $1000) | D34: 0 | E34: 145000 | F34: 6000 | G34: 151000 | H34: 154020 | I34: 157100.4 | J34: 151000 | K34: 99545 | L34: 106991 | M34: 63091
A35: 396 | C35: Special Recoveries (CMB/Phone Rentals) | D35: -12000 | E35: 0 | F35: -149000 | G35: -161000 | H35: -164220 | I35: -167504.4 | J35: -161000 | K35: -176322 | L35: -192002 | M35: -180563
A36: 399 | C36: Recoveries | D36: -7140 | E36: 0 | F36: 0 | G36: -7140 | H36: -7282.8 | I36: -7428.456 | J36: -7140
A37: 799 | C37: Interfund Transfer | D37: 0 | E37: 0 | F37: 0 | G37: 0 | H37: 0 | I37: 0 | M37: -165
A38: *** | C38: Unallocated | D38: 0 | E38: 0 | F38: 0 | G38: 0 | H38: 0 | I38: 0
C39: SUB-TOTAL: SUPPLIES & OTHER EXPS: | D39: =SUM(D16:D38) -> 300838.08 | E39: =SUM(E16:E38) -> 195000 | F39: 0 | G39: 495838.08 | H39: 505754.8416 | I39: 515869.9384 | J39: 489564 | K39: 392879 | L39: 357678 | M39: 394542
A40: 5xx | C40: Revenues | D40: -20000 | E40: 0 | F40: 0 | G40: -20000 | H40: -20000 | I40: -20000 | J40: -20000 | K40: -22535 | L40: -20179 | M40: -20729
A41: 515 | C41: Inter-dept. transfers | D41: -150000 | E41: 150000 | F41: 0 | G41: 0
A42: 549 | C42: Technology Fee | D42: 0 | E42: -359000 | F42: 0 | G42: -359000 | H42: -359000 | I42: -359000 | J42: -359000 | K42: -416715 | L42: -380825 | M42: -356712
C43: SUB-TOTAL: REVENUES | D43: =SUM(D40:D42) -> -170000 | E43: =SUM(E40:E42) -> -209000 | F43: 0 | G43: -379000 | H43: -379000 | I43: -379000 | J43: -379000 | K43: -439250 | L43: -401004 | M43: -377441
A44: 901 | C44: Equipment purchases | D44: 0 | E44: 0 | F44: 0 | G44: 0 | H44: 0 | I44: 0 | K44: 183866 | L44: 52024 | M44: 42198
C45: SUB-TOTAL: RENOV & EQUIP: | D45: =SUM(D44) -> 0 | E45: =SUM(E44) -> 0 | F45: 0 | G45: 0 | H45: 0 | I45: 0 | J45: 0 | K45: 183866 | L45: 52024 | M45: 42198
C46: ANNUAL BUDGET: | D46: =+D45+D43+D39+D15+D11 -> 1430540.34 | E46: =+E45+E43+E39+E15+E11 -> -14000 | F46: 0 | G46: 1416540.34 | H46: 1266802.087 | I46: 1284685.295 | J46: 1350499 | K46: 1186071 | L46: 1027715 | M46: 1119669

Sheet Arts
C1: BRANDON UNIVERSITY ** FACULTY OF ARTS **
C2: REFERENCE BUDGET
C3: APRIL 2019 TO MARCH 2020
D4: 4001 | E4: 4002 | F4: 4003 | G4: 4004 | H4: 4005 | I4: 4006 | J4: 4007 | K4: 4008 | L4: 4009 | M4: 4010 | N4: 4011 | O4: 4013 | P4: 4014 | Q4: 4015 | R4: 4016 | S4: 4017 | T4: 4018 | U4: 4019 | V4: 2019/20 | W4: 2020/21 | X4: 2021/22 | Y4: 2018/19
J5: G&W's | O5: NATIVE STUDIES | Q5: BUS | R5: VISUAL | T5: Archeology | U5: RURAL | V5: REF'NCE | W5: PROJ. | X5: PROJ. | Y5: APPROVED | Z5: 2017-18 | AA5: 2016-17 | AB5: 2015-16
C6: EXPENDITURE: | D6: DEAN | E6: DRAMA | F6: ECON | G6: ENGL | H6: HIST | I6: LANG | J6: STUDIES | K6: PHIL | L6: POL SCI | M6: RELIG | N6: SOC | O6: NS | P6: CLN SPEC | Q6: ADMIN | R6: ARTS | S6: ANTHRO | T6: Field School | U6: DEV. | V6: BUDGET | W6: BUDGET | X6: BUDGET | Y6: BUDGET | Z6: ACTUAL | AA6: ACTUAL | AB6: ACTUAL
A7: 001 | C7: Acad./I.A. | D7: 126122 | E7: 165469.615 | F7: 371007.97 | G7: 720433.14 | H7: 815603.755 | I7: 309970.35 | J7: 44903.485 | K7: 310344.35 | L7: 335492.13 | M7: 383046.42 | N7: 654696.115 | O7: 381195.325 | P7: 104265 | Q7: 445165.995 | R7: 493531.81 | S7: 334605.555 | T7: 0 | U7: 390206.42 | V7: 6386059.435 | W7: 6566983.051 | X7: 6814865.61 | Y7: 6342279 | Z7: 5944184 | AA7: 5848702 | AB7: 5795777
A8: 002 | C8: Sessionals | D8: 495093 | E8: 0 | F8: 0 | G8: 0 | H8: 0 | I8: 0 | J8: 0 | K8: 0 | L8: 0 | M8: 0 | N8: 0 | O8: 0 | P8: 0 | Q8: 0 | R8: 0 | S8: 0 | T8: 6205 | U8: 0 | V8: 501298 | W8: 501298 | X8: 505057.735 | Y8: 564568 | Z8: 574467 | AA8: 510247 | AB8: 443807
A9: 003 | C9: F.T. Support | D9: 167000.875 | E9: 0 | F9: 0 | G9: 0 | H9: 0 | I9: 0 | J9: 0 | K9: 0 | L9: 0 | M9: 0 | N9: 0 | O9: 0 | P9: 0 | Q9: 0 | R9: 0 | S9: 0 | T9: 0 | U9: 0 | V9: 167000.875 | W9: 167000.875 | X9: 167000.875 | Y9: 163474 | Z9: 159724 | AA9: 157300 | AB9: 155794
A10: 004 | C10: P.T. Support | D10: 0 | E10: 0 | F10: 0 | G10: 0 | H10: 0 | I10: 0 | J10: 0 | K10: 0 | L10: 0 | M10: 0 | N10: 0 | O10: 0 | P10: 0 | Q10: 0 | R10: 0 | S10: 0 | T10: 0 | U10: 0 | V10: 0 | W10: 0 | X10: 0
A11: 005 | C11: O.T./Student Assistants/Casual | D11: 51088.31 | E11: 0 | F11: 0 | G11: 0 | H11: 0 | I11: 0 | J11: 0 | K11: 0 | L11: 0 | M11: 0 | N11: 0 | O11: 0 | P11: 0 | Q11: 0 | R11: 18626.66 | S11: 0 | T11: 668.98 | U11: 0 | V11: 70383.95 | W11: 71087.7895 | X11: 72509.54529 | Y11: 69860 | Z11: 55083 | AA11: 50587 | AB11: 58834
A12: 012 | C12: Cost Recovery Sessionals | D12: 0 | E12: 0 | F12: 0 | G12: 0 | H12: 0 | I12: 0 | J12: 0 | K12: 0 | L12: 0 | M12: 0 | N12: 0 | O12: 0 | Q12: 0 | R12: 0 | S12: 0 | T12: 0 | U12: 0 | V12: 0 | W12: 0 | X12: 0 | Y12: 0
A13: 100 | C13: Benefits | D13: 122538.411 | E13: 25813.25994 | F13: 61216.31505 | G13: 124634.9332 | H13: 134574.6196 | I13: 56104.63335 | J13: 7992.82033 | K13: 55241.2943 | L13: 55020.70932 | M13: 65500.93782 | N13: 112607.7318 | O13: 60228.86135 | P13: 17516.52 | Q13: 93930.02494 | R13: 89627.73225 | S13: 58555.97212 | T13: 618.6582 | U13: 68676.32992 | V13: 1210399.764 | W13: 1461273.943 | X13: 1511886.753 | Y13: 1209373 | Z13: 1114905 | AA13: 1123420 | AB13: 1091259
A14: 099/199 | C14: Recoveries | D14: 0 | E14: 0 | F14: 0 | G14: 0 | H14: 0 | I14: 0 | J14: 0 | K14: 0 | L14: 0 | M14: 0 | N14: 0 | O14: 0 | P14: 0 | Q14: 0 | R14: 0 | S14: 0 | T14: 0 | U14: 0 | V14: 0 | W14: 0 | X14: 0 | AA14: -11870 | AB14: -12838
C15: SUB-TOTAL: SALARIES & BENEFITS: | D15: =SUM(D7:D14) -> 961842.596 | E15: =SUM(E7:E14) -> 191282.8749 | F15: 432224.285 | G15: 845068.0732 | H15: 950178.3746 | I15: 366074.9833 | J15: 52896.30533 | K15: 365585.6443 | L15: 390512.8393 | M15: 448547.3578 | N15: 767303.8468 | O15: 441424.1864 | P15: 121781.52 | Q15: 539096.0199 | R15: 601786.2022 | S15: 393161.5271 | T15: 7492.6382 | U15: 458882.7499 | V15: 8335142.024 | W15: 8767643.658 | X15: 9071320.518 | Y15: 8349554 | Z15: 7848363 | AA15: 7678386 | AB15: 7532633
A16: 201/02 | C16: Travel/Moving | D16: 31676.1 | E16: 0 | F16: 0 | G16: 0 | H16: 0 | I16: 0 | J16: 0 | K16: 0 | L16: 0 | M16: 0 | N16: 0 | O16: 0 | P16: 7013.52 | Q16: 0 | R16: 0 | S16: 0 | T16: 1447.38 | U16: 0 | V16: 40137 | W16: 40939.74 | X16: 41758.5348 | Y16: 39350 | Z16: 39049 | AA16: 56334 | AB16: 66319
A17: 204/05/10 | C17: Prof. Dev. Allowances | D17: 2000 | E17: 2000 | F17: 6000 | G17: 12000 | H17: 12000 | I17: 6000 | J17: 0 | K17: 4000 | L17: 6000 | M17: 6000 | N17: 12000 | O17: 6000 | P17: 2000 | Q17: 6000 | R17: 10000 | S17: 6000 | T17: 0 | U17: 6000 | V17: 104000 | W17: 104000 | X17: 104000 | Y17: 104000 | Z17: 104282 | AA17: 107467 | AB17: 95704
A18: 299 | C18: Recoveries | D18: 0 | E18: 0 | F18: 0 | G18: 0 | H18: 0 | I18: 0 | J18: 0 | K18: 0 | L18: 0 | M18: 0 | N18: 0 | O18: 0 | P18: 0 | Q18: 0 | R18: 0 | S18: 0 | T18: 0 | U18: 0 | V18: 0 | W18: 0 | X18: 0 | Y18: 0
C19: SUB-TOTAL: TRAVEL & MOVING: | D19: =SUM(D16:D18) -> 33676.1 | E19: =SUM(E16:E18) -> 2000 | F19: 6000 | G19: 12000 | H19: 12000 | I19: 6000 | J19: 0 | K19: 4000 | L19: 6000 | M19: 6000 | N19: 12000 | O19: 6000 | P19: 9013.52 | Q19: 6000 | R19: 10000 | S19: 6000 | T19: 1447.38 | U19: 6000 | V19: 144137 | W19: 144939.74 | X19: 145758.5348 | Y19: 143350 | Z19: 143331 | AA19: 163801 | AB19: 162023
A20: 301 | C20: Advertising | D20: 1415.76 | E20: 0 | F20: 0 | G20: 0 | H20: 0 | I20: 0 | J20: 0 | K20: 0 | L20: 0 | M20: 0 | N20: 0 | O20: 0 | P20: 1279.08 | Q20: 0 | R20: 0 | S20: 0 | T20: 0 | U20: 0 | V20: 2694.84 | W20: 2748.7368 | X20: 2803.711536 | Y20: 2642 | Z20: 6922 | AA20: 7076 | AB20: 6225
A21: 302 | C21: Special Allowances | D21: 183.6 | E21: 0 | F21: 0 | G21: 0 | H21: 15300 | I21: 0 | J21: 0 | K21: 0 | L21: 0 | M21: 121.38 | N21: 0 | O21: 0 | P21: 2155.26 | Q21: 0 | R21: 9742.02 | S21: 0 | T21: 369.24 | U21: 1230.12 | V21: 29101.62 | W21: 29683.6524 | X21: 30277.32545 | Y21: 13531 | Z21: 16180 | AA21: 19029 | AB21: 27765
A22: 304 | C22: Consumables | D22: 1732.98 | E22: 491.64 | F22: 616.08 | G22: 1777.86 | H22: 861.9 | I22: 615.06 | J22: 2591.82 | K22: 563.04 | L22: 793.56 | M22: 1324.98 | N22: 738.48 | O22: 1110.78 | P22: 1054.68 | Q22: 1660.56 | R22: 23974.08 | S22: 739.5 | T22: 1847.22 | U22: 2464.32 | V22: 44958.54 | W22: 45857.7108 | X22: 46774.86502 | Y22: 44078 | Z22: 32707 | AA22: 34381 | AB22: 35794
A23: 305 | C23: Photocopying - Printing | D23: 714 | E23: 245.82 | F23: 1107.72 | G23: 2092.02 | H23: 1847.22 | I23: 1724.82 | J23: 369.24 | K23: 2829.48 | L23: 431.46 | M23: 798.66 | N23: 2586.72 | O23: 1063.86 | P23: 1790.1 | Q23: 1476.96 | R23: 2155.26 | S23: 616.08 | T23: 0 | U23: 1601.4 | V23: 23450.82 | W23: 23919.8364 | X23: 24398.23313 | Y23: 22993 | Z23: 17218 | AA23: 20376 | AB23: 22585
A24: 306 | C24: Films - Film Rental | D24: 0 | E24: 0 | F24: 0 | G24: 0 | H24: 0 | I24: 0 | J24: 0 | K24: 0 | L24: 0 | M24: 0 | N24: 0 | O24: 0 | P24: 0 | Q24: 0 | R24: 0 | S24: 0 | T24: 0 | U24: 0 | V24: 0 | W24: 0 | X24: 0 | Y24: 0
A25: 307 | C25: Membership Subscriptions | D25: 1589.16 | E25: 0 | F25: 0 | G25: 0 | H25: 0 | I25: 0 | J25: 0 | K25: 0 | L25: 0 | M25: 0 | N25: 0 | O25: 0 | P25: 0 | Q25: 0 | R25: 0 | S25: 0 | T25: 0 | U25: 0 | V25: 1589.16 | W25: 1620.9432 | X25: 1653.362064 | Y25: 1558 | Z25: 3602 | AA25: 3150 | AB25: 2295
A26: 308 | C26: Postage | D26: 577.32 | E26: 221.34 | F26: 121.38 | G26: 369.24 | H26: 224.4 | I26: 245.82 | J26: 0 | K26: 121.38 | L26: 308.04 | M26: 121.38 | N26: 369.24 | O26: 491.64 | P26: 369.24 | Q26: 121.38 | R26: 491.64 | S26: 245.82 | T26: 0 | U26: 121.38 | V26: 4520.64 | W26: 4611.0528 | X26: 4703.273856 | Y26: 4435 | Z26: 3104 | AA26: 1752 | AB26: 2665
A27: 309 | C27: Telephone - Long Dist. | D27: 491.64 | E27: 94.86 | F27: 76.5 | G27: 245.82 | H27: 121.38 | I27: 148.92 | J27: 0 | K27: 491.64 | L27: 183.6 | M27: 121.38 | N27: 236.64 | O27: 369.24 | P27: 918 | Q27: 121.38 | R27: 282.54 | S27: 491.64 | T27: 0 | U27: 245.82 | V27: 4641 | W27: 4733.82 | X27: 4828.4964 | Y27: 4551 | Z27: 2001 | AA27: 686 | AB27: 1180
A28: 310 | C28: Telephone - Rental | D28: 22822.5 | E28: 0 | F28: 0 | G28: 0 | H28: 0 | I28: 0 | J28: 0 | K28: 0 | L28: 0 | M28: 0 | N28: 0 | O28: 0 | P28: 0 | Q28: 0 | R28: 0 | S28: 0 | T28: 0 | U28: 0 | V28: 22822.5 | W28: 23278.95 | X28: 23744.529 | Y28: 22375 | Z28: 21075 | AA28: 23832 | AB28: 23394
A29: 311 | C29: Repairs & Maintenance | D29: 553.86 | E29: 0 | F29: 0 | G29: 0 | H29: 0 | I29: 0 | J29: 0 | K29: 0 | L29: 0 | M29: 0 | N29: 0 | O29: 0 | P29: 0 | Q29: 0 | R29: 4553.28 | S29: 0 | T29: 0 | U29: 0 | V29: 5107.14 | W29: 5209.2828 | X29: 5313.468456 | Y29: 5006 | Z29: 1824 | AA29: 9821 | AB29: 10140
A30: 312 | C30: Other Rentals | D30: 2057.34 | E30: 0 | F30: 0 | G30: 0 | H30: 0 | I30: 0 | J30: 0 | K30: 0 | L30: 0 | M30: 0 | N30: 0 | O30: 0 | P30: 0 | Q30: 0 | R30: 0 | S30: 0 | T30: 0 | U30: 0 | V30: 2057.34 | W30: 2098.4868 | X30: 2140.456536 | Y30: 2017 | Z30: 3629 | AA30: 2493 | AB30: 2937
A31: 315 | C31: AV Equipment | D31: 0 | E31: 0 | F31: 0 | G31: 0 | H31: 0 | I31: 0 | J31: 0 | K31: 0 | L31: 0 | M31: 0 | N31: 0 | O31: 0 | P31: 0 | Q31: 0 | R31: 0 | S31: 0 | T31: 0 | U31: 0 | V31: 0 | W31: 0 | X31: 0 | Y31: 1978
A32: 333 | C32: Sundry | D32: 0 | E32: 0 | F32: 0 | G32: 0 | H32: 0 | I32: 0 | J32: 0 | K32: 0 | L32: 0 | M32: 0 | N32: 0 | O32: 0 | P32: 0 | Q32: 0 | R32: 0 | S32: 0 | T32: 0 | U32: 0 | V32: 0 | W32: 0 | X32: 0 | Y32: 1979
A33: 314 | C33: Consulting/Professional Fees | D33: 0 | E33: 0 | F33: 0 | G33: 0 | H33: 0 | I33: 0 | J33: 0 | K33: 0 | L33: 0 | M33: 0 | N33: 0 | O33: 0 | P33: 0 | Q33: 0 | R33: 0 | S33: 0 | T33: 0 | U33: 0 | V33: 0 | W33: 0 | X33: 0 | Z33: 300 | AA33: 20191
A34: 317 | C34: Special Functions | D34: 0 | E34: 0 | F34: 0 | G34: 0 | H34: 0 | I34: 0 | J34: 0 | K34: 0 | L34: 0 | M34: 0 | N34: 0 | O34: 0 | P34: 0 | Q34: 0 | R34: 0 | S34: 0 | T34: 0 | U34: 0 | V34: 0 | W34: 0 | X34: 0 | Z34: 4510 | AA34: 3428 | AB34: 846
A35: 328 | C35: Provision for Replacement | D35: 0 | E35: 0 | F35: 0 | G35: 0 | H35: 0 | I35: 0 | J35: 0 | K35: 0 | L35: 0 | M35: 0 | N35: 0 | O35: 0 | P35: 0 | Q35: 0 | R35: 0 | S35: 0 | T35: 0 | U35: 0 | V35: 0 | W35: 0 | X35: 0 | AB35: 5000
A36: 345 | C36: Staff Development | D36: 0 | E36: 0 | F36: 0 | G36: 0 | H36: 0 | I36: 0 | J36: 0 | K36: 0 | L36: 0 | M36: 0 | N36: 0 | O36: 0 | P36: 0 | Q36: 0 | R36: 0 | S36: 0 | T36: 0 | U36: 0 | V36: 0 | W36: 0 | X36: 0 | Z36: 300 | AB36: 525
A37: 354 | C37: Fax Expenses | D37: 798.66 | E37: 0 | F37: 0 | G37: 0 | H37: 0 | I37: 0 | J37: 0 | K37: 0 | L37: 0 | M37: 0 | N37: 0 | O37: 159.12 | P37: 86.7 | Q37: 0 | R37: 0 | S37: 0 | T37: 0 | U37: 0 | V37: 1044.48 | W37: 1065.3696 | X37: 1086.676992 | Y37: 1024 | Z37: 442 | AA37: 442 | AB37: 461
A38: 357/358 | C38: Software Licensing/Support | D38: 1261.74 | E38: 0 | F38: 0 | G38: 0 | H38: 0 | I38: 0 | J38: 0 | K38: 0 | L38: 0 | M38: 0 | N38: 0 | O38: 0 | P38: 0 | Q38: 0 | R38: 0 | S38: 0 | T38: 0 | U38: 0 | V38: 1261.74 | W38: 1286.9748 | X38: 1312.714296 | Y38: 1237 | Z38: 673 | AA38: 1976 | AB38: 517
A39: 378 | C39: Special Allocations (scholarships) | D39: 2253.18 | E39: 0 | F39: 0 | G39: 0 | H39: 0 | I39: 0 | J39: 0 | K39: 0 | L39: 0 | M39: 0 | N39: 0 | O39: 0 | P39: 508.98 | Q39: 0 | R39: 0 | S39: 0 | T39: 0 | U39: 0 | V39: 2762.16 | W39: 2817.4032 | X39: 2873.751264 | Y39: 2708 | Z39: 14829 | AA39: 90 | AB39: 9
A40: 393 | C40: Furniture <$1000 | D40: 6252.6 | E40: 0 | F40: 0 | G40: 0 | H40: 0 | I40: 0 | J40: 0 | K40: 0 | L40: 0 | M40: 0 | N40: 0 | O40: 0 | P40: 0 | Q40: 0 | R40: 0 | S40: 0 | T40: 0 | U40: 0 | V40: 6252.6 | W40: 6377.652 | X40: 6505.20504 | Y40: 6130 | Z40: 11210 | AA40: 16076 | AB40: 16317
A41: 395 | C41: Library Resources | D41: 0 | E41: 0 | F41: 0 | G41: 0 | H41: 0 | I41: 0 | J41: 0 | K41: 0 | L41: 0 | M41: 0 | N41: 0 | O41: 0 | P41: 0 | Q41: 0 | R41: 0 | S41: 0 | T41: 0 | U41: 0 | V41: 0 | W41: 0 | X41: 0 | Y41: 0
A42: 399 | C42: Recoveries | D42: 0 | E42: 0 | F42: 0 | G42: 0 | H42: 0 | I42: 0 | J42: 0 | K42: 0 | L42: 0 | M42: 0 | N42: 0 | O42: 0 | P42: 0 | Q42: 0 | R42: 0 | S42: 0 | T42: 0 | U42: 0 | V42: 0 | W42: 0 | X42: 0 | Z42: -15598 | AA42: -18285 | AB42: -15749
A43: 474 | C43: Student Recruitment | D43: 0 | E43: 0 | F43: 0 | G43: 0 | H43: 0 | I43: 0 | J43: 0 | K43: 0 | L43: 0 | M43: 0 | N43: 0 | O43: 0 | P43: 0 | Q43: 0 | R43: 0 | S43: 0 | T43: 0 | U43: 0 | V43: 0 | W43: 0 | X43: 0 | Z43: 158 | AA43: 526 | AB43: 4150
A44: 799 | C44: Interfund Transfer | P44: 0 | AA44: 13276 | AB44: 2769
A45: *** | C45: Unallocated | D45: 0 | E45: 0 | F45: 0 | G45: 0 | H45: 0 | I45: 0 | J45: 0 | K45: 0 | L45: 0 | M45: 0 | N45: 0 | O45: 0 | P45: 0 | Q45: 0 | R45: 0 | S45: 0 | T45: 0 | U45: 0 | V45: 0 | W45: 0 | X45: 0
C46: SUB-TOTAL: SUPPLIES & OTHER EXPS: | D46: =SUM(D20:D45) -> 42704.34 | E46: =SUM(E20:E45) -> 1053.66 | F46: 1921.68 | G46: 4484.94 | H46: 18354.9 | I46: 2734.62 | J46: 2961.06 | K46: 4005.54 | L46: 1716.66 | M46: 2487.78 | N46: 3931.08 | O46: 3194.64 | P46: 8162.04 | Q46: 3380.28 | R46: 41198.82 | S46: 2093.04 | T46: 2216.46 | U46: 5663.04 | V46: 152264.58 | W46: 155309.8716 | X46: 158416.069 | Y46: 138242 | Z46: 125086 | AA46: 160316 | AB46: 149825
A47: 525 | C47: Cost Recovery Surplus/(Deficit) | D47: 0 | E47: 0 | F47: 0 | G47: 0 | H47: 0 | I47: 0 | J47: 0 | K47: 0 | L47: 0 | M47: 0 | N47: 0 | O47: 0 | Q47: 0 | R47: 0 | S47: 0 | T47: 0 | U47: 0 | V47: 0 | W47: 0 | X47: 0 | Y47: 0
A48: 503 | C48: BUF Donations | D48: 0 | E48: 0 | F48: 0 | G48: 0 | H48: 0 | I48: 0 | J48: 0 | K48: 0 | L48: 0 | M48: 0 | N48: 0 | O48: 0 | Q48: 0 | R48: 0 | S48: 0 | T48: 0 | U48: 0 | V48: 0 | W48: 0 | X48: 0 | Z48: -28101 | AA48: -8729 | AB48: -11380
A49: 511 | C49: Non-core Tuition Revenue | D49: 0 | E49: 0 | F49: 0 | G49: 0 | H49: 0 | I49: 0 | J49: 0 | K49: 0 | L49: 0 | M49: 0 | N49: 0 | O49: 0 | Q49: 0 | R49: 0 | S49: 0 | T49: 0 | U49: 0 | V49: 0 | W49: 0 | X49: 0 | Y49: 0
A50: 552/553 | C50: Spring/Summer Tuition Revenue | D50: 0 | E50: 0 | F50: 0 | G50: 0 | H50: 0 | I50: 0 | J50: 0 | K50: 0 | L50: 0 | M50: 0 | N50: 0 | O50: 0 | Q50: 0 | R50: 0 | S50: 0 | T50: 0 | U50: 0 | V50: 0 | W50: 0 | X50: 0 | Y50: 0
A51: 559 | C51: 15% Tuition Assessment | D51: 0 | E51: 0 | F51: 0 | G51: 0 | H51: 0 | I51: 0 | J51: 0 | K51: 0 | L51: 0 | M51: 0 | N51: 0 | O51: 0 | Q51: 0 | R51: 0 | S51: 0 | T51: 0 | U51: 0 | V51: 0 | W51: 0 | X51: 0 | Y51: 0
A52: 5xx | C52: Revenues | D52: 0 | E52: 0 | F52: 0 | G52: 0 | H52: -5000 | I52: 0 | J52: 0 | K52: 0 | L52: 0 | M52: 0 | N52: 0 | O52: 0 | Q52: 0 | R52: -8796 | S52: 0 | T52: 0 | U52: 0 | V52: -13796 | W52: -13796 | X52: -13796 | Y52: -8796 | Z52: -21380 | AA52: -19780 | AB52: -25103
C53: SUB-TOTAL: REVENUES: | D53: =SUM(D47:D52) -> 0 | E53: =SUM(E47:E52) -> 0 | F53: 0 | G53: 0 | H53: -5000 | I53: 0 | J53: 0 | K53: 0 | L53: 0 | M53: 0 | N53: 0 | O53: 0 | P53: 0 | Q53: 0 | R53: -8796 | S53: 0 | T53: 0 | U53: 0 | V53: -13796 | W53: -13796 | X53: -13796 | Y53: -8796 | Z53: -49481 | AA53: -28509 | AB53: -36483
A54: 9xx | C54: Equipment Purchases/Renovations | J54: 0 | R54: 20000 | V54: 20000 | W54: 20000 | X54: 20000 | Y54: 20000 | Z54: 41616 | AA54: 8201 | AB54: 35049
C55: SUB-TOTAL: RENOV & EQUIP | D55: =+D54 -> 0 | E55: =+E54 -> 0 | F55: 0 | G55: 0 | H55: 0 | I55: 0 | J55: 0 | K55: 0 | L55: 0 | M55: 0 | N55: 0 | O55: 0 | P55: 0 | Q55: 0 | R55: 20000 | S55: 0 | T55: 0 | U55: 0 | V55: 20000 | W55: 20000 | X55: 20000 | Y55: 20000 | Z55: 41616 | AA55: 8201 | AB55: 35049
C56: TOTAL BUDGET: | D56: =+D55+D53+D46+D19+D15 -> 1038223.036 | E56: =+E55+E53+E46+E19+E15 -> 194336.5349 | F56: 440145.965 | G56: 861553.0132 | H56: 975533.2746 | I56: 374809.6033 | J56: 55857.36533 | K56: 373591.1843 | L56: 398229.4993 | M56: 457035.1378 | N56: 783234.9268 | O56: 450618.8264 | P56: 138957.08 | Q56: 548476.2999 | R56: 664189.0222 | S56: 401254.5671 | T56: 11156.4782 | U56: 470545.7899 | V56: 8637747.604 | W56: 9074097.27 | X56: 9381699.122 | Y56: 8642350 | Z56: 8108915 | AA56: 7982195 | AB56: 7843047

Sheet RDI
C1: BRANDON UNIVERSITY ** RURAL DEVELOPMENT INSTITUTE **
C2: REFERENCE BUDGET
C3: APRIL 2019 TO MARCH 2020
D4: 2019/20 | E4: 2020/21 | F4: 2021/22 | G4: 2018/19
C5: 4801 | D5: REF'NCE | E5: PROJ. | F5: PROJ. | G5: APPROVED | H5: 2017-18 | I5: 2016-17 | J5: 2015-16
C6: EXPENDITURE: | D6: BUDGET | E6: BUDGET | F6: BUDGET | G6: BUDGET | H6: ACTUAL | I6: ACTUAL | J6: ACTUAL
A7: 001 | C7: Academic | D7: 140447.615 | E7: 144217.1423 | F7: 149143.6887 | G7: 138012 | H7: 130355 | I7: 148572 | J7: 142646
A8: 003 | C8: F.T. Support | D8: 0 | E8: 0 | F8: 0
A9: 004/005 | C9: P.T./Student Assistants/Casual | D9: 1019.59 | E9: 1029.7859 | F9: 1050.381618 | G9: 1012 | H9: 1109 | I9: 15520 | J9: 15443
A10: 100 | C10: Benefits | D10: 23625.02324 | E10: 29049.38564 | F10: 30038.81407 | G10: 23217 | H10: 20885 | I10: 26415 | J10: 25484
A11: 099/199 | C11: Recoveries | D11: 0 | E11: 0 | F11: 0 | J11: -294
C12: SUB-TOTAL: SALARIES & BENEFITS: | D12: =SUM(D7:D11) -> 165092.2282 | E12: =SUM(E7:E11) -> 174296.3138 | F12: 180232.8844 | G12: 162241 | H12: 152349 | I12: 190507 | J12: 183279
A13: 201/02/06 | C13: Travel/Moving/Recruitment | D13: 2110.38 | E13: 2152.5876 | F13: 2195.639352 | G13: 2069 | H13: 53 | I13: 2662 | J13: 3695
A14: 204/05/10 | C14: Prof. Dev. Allowances | D14: 4000 | E14: 4080 | F14: 4080 | G14: 4000 | H14: 8114 | I14: 688 | J14: 6465
C15: SUB-TOTAL: TRAVEL & MOVING: | D15: =SUM(D13:D14) -> 6110.38 | E15: =SUM(E13:E14) -> 6232.5876 | F15: 6275.639352 | G15: 6069 | H15: 8167 | I15: 3350 | J15: 10160
A16: 304 | C16: Consumables | D16: 1708.5 | E16: 1742.67 | F16: 1777.5234 | G16: 1675 | H16: 682 | I16: 711 | J16: 445
A17: 305 | C17: Photocopying - Printing | D17: 330.48 | E17: 337.0896 | F17: 343.831392 | G17: 324 | H17: 1481 | I17: 2046 | J17: 1606
A18: 307 | C18: Membership Subscriptions | D18: 0 | E18: 0 | F18: 0 | H18: 170 | I18: 86
A19: 308 | C19: Postage | D19: 0 | E19: 0 | F19: 0 | H19: 21 | I19: 5 | J19: 64
A20: 309 | C20: Telephone - Long Dist. | D20: 9.18 | E20: 9.3636 | F20: 9.550872 | G20: 9 | H20: 999 | I20: 1277 | J20: 1937
A21: 310 | C21: Telephone - Rental | D21: 979.2 | E21: 998.784 | F21: 1018.75968 | G21: 960 | H21: 841 | I21: 2626 | J21: 3047
A22: 311 | C22: Repairs & Maintenance | D22: 0 | E22: 0 | F22: 0
A23: 313 | C23: Publications | D23: 0 | E23: 0 | F23: 0
A24: 314 | C24: Consulting Fees | D24: 17468.52 | E24: 17817.8904 | F24: 18174.24821 | G24: 17126 | H24: 20091 | I24: 379
A25: 345 | C25: Staff Development | D25: 0 | E25: 0 | F25: 0
A26: 354 | C26: Fax Expenses | D26: 0 | E26: 0 | F26: 0
A27: 358 | C27: Software Licensing/Support | D27: 0 | E27: 0 | F27: 0
A28: 378 | C28: Special Allocations | D28: 0 | E28: 0 | F28: 0 | H28: 128 | I28: 450 | J28: 19
A29: 393 | C29: Equipment - Furniture (Under $1000) | D29: 0 | E29: 0 | F29: 0
A30: 397 | C30: Overheads (2361) | D30: 0 | E30: 0 | F30: 0
A31: 399 | C31: Recoveries | D31: 0 | E31: 0 | F31: 0 | H31: -2226 | I31: -3880 | J31: -4310
A32: 799 | C32: Interfund Transfer | D32: 0 | E32: 0 | F32: 0 | I32: 10569 | J32: 20351
A33: *** | C33: Unallocated | D33: 0 | E33: 0 | F33: 0
C34: SUB-TOTAL: SUPPLIES & OTHER EXPS: | D34: =SUM(D16:D33) -> 20495.88 | E34: =SUM(E16:E33) -> 20905.7976 | F34: 21323.91355 | G34: 20094 | H34: 22187 | I34: 14269 | J34: 23159
A35: 5xx | C35: Revenues | D35: 0 | E35: 0 | F35: 0
C36: SUB-TOTAL REVENUES: | D36: =SUM(D35) -> 0 | E36: =SUM(E35) -> 0 | F36: 0 | G36: 0 | H36: 0 | I36: 0 | J36: 0
A37: 901 | C37: Equipment Purchases | D37: 0 | E37: 0 | F37: 0
C38: SUB-TOTAL: RENOV & EQUIP | D38: =SUM(D37) -> 0 | E38: =SUM(E37) -> 0 | F38: 0 | G38: 0 | H38: 0 | I38: 0 | J38: 0
C39: ANNUAL BUDGET: | D39: =+D38+D36+D34+D15+D12 -> 191698.4882 | E39: =+E38+E36+E34+E15+E12 -> 201434.699 | F39: 207832.4373 | G39: 188404 | H39: 182703 | I39: 208126 | J39: 216598

Sheet Science
C1: BRANDON UNIVERSITY ** FACULTY OF SCIENCE **
C2: REFERENCE BUDGET
C3: APRIL 2019 TO MARCH 2020
D4: 4101 | E4: 4102 | F4: 4103 | G4: 4104 | H4: 4105 | I4: 4106 | J4: 4107 | K4: 4108 | L4: 4111 | M4: 4112 | N4: 2019/20 | O4: 2020/21 | P4: 2021/22 | Q4: 2018/19
I5: MATH | J5: PHYS | N5: REF'NCE | O5: PROJ. | P5: PROJ. | Q5: APPROVED | R5: 2017-18 | S5: 2016-17 | T5: 2015-16
C6: EXPENDITURE: | D6: DEAN | E6: BIOLOGY | F6: CHEM | G6: GEOG | H6: GEOL | I6: COM SCI | J6: ASTRON | K6: PSYCH | L6: ADES | M6: MSc | N6: BUDGET | O6: BUDGET | P6: BUDGET | Q6: BUDGET | R6: ACTUAL | S6: ACTUAL | T6: ACTUAL
A7: 001 | C7: Acad./I.A. | D7: 130288.2275 | E7: 1368553.42 | F7: 579140.05 | G7: 690123.51 | H7: 767928.65 | I7: 1243135.545 | J7: 731994.505 | K7: 975839.8 | L7: 365822.555 | M7: 191873.38 | N7: 7044699.642 | O7: 7132860.092 | P7: 7328881.225 | Q7: 6953086 | R7: 6533653 | S7: 6264612 | T7: 5947335
A8: 002 | C8: Sessional/Topics | D8: 127613 | E8: 0 | F8: 0 | G8: 0 | H8: 0 | I8: 0 | J8: 0 | K8: 0 | L8: 0 | N8: 127613 | O8: 127613 | P8: 128570.0975 | Q8: 204215 | R8: 209972 | S8: 166033 | T8: 158044
A9: 003/004 | C9: F.T./P.T. Support | D9: 167008.875 | E9: 0 | F9: 0 | G9: 0 | H9: 0 | I9: 0 | J9: 0 | K9: 0 | L9: 0 | M9: 23275.695 | N9: 190284.57 | O9: 195285.59 | P9: 195286.61 | Q9: 213817 | R9: 175580 | S9: 178985 | T9: 168849
A10: 005 | C10: P.T./Student Assistants/Casual | D10: 5015 | E10: 10254.1125 | F10: 8368.295 | G10: 5276.2775 | H10: 4463.225 | I10: 32348.81 | J10: 6188.065 | K10: 19823.57 | L10: 2592.2975 | M10: 37230 | N10: 131559.6525 | O10: 127490.9376 | P10: 129575.3814 | Q10: 130918 | R10: 147615 | S10: 151792 | T10: 111997
A11: 012 | C11: Cost Recovery Sessionals | D11: 0 | E11: 0 | F11: 0 | G11: 0 | H11: 0 | I11: 0 | J11: 0 | K11: 0 | L11: 0 | N11: 0 | O11: 0 | P11: 0 | Q11: 0
A12: 100 | C12: Benefits | D12: 75236.89294 | E12: 226124.4353 | F12: 101638.9437 | G12: 118217.9639 | H12: 122037.9162 | I12: 181118.7784 | J12: 139516.5057 | K12: 160301.8026 | L12: 62998.93978 | M12: 40885.41015 | N12: 1228077.589 | O12: 1506123.824 | P12: 1545609.878 | Q12: 1228263 | R12: 1111508 | S12: 1108332 | T12: 1060593
A13: 099/199 | C13: Recoveries | D13: 0 | E13: 0 | F13: 0 | G13: 0 | H13: -51416 | I13: 0 | J13: 0 | K13: 0 | L13: 0 | N13: -51416 | O13: -52630.5019 | P13: -54263.9257 | Q13: -43899 | R13: -60008 | S13: -56200 | T13: -14038
C14: SUB-TOTAL: SALARIES & BENEFITS: | D14: =SUM(D7:D13) -> 505161.9954 | E14: =SUM(E7:E13) -> 1604931.968 | F14: 689147.2887 | G14: 813617.7514 | H14: 843013.7912 | I14: 1456603.133 | J14: 877699.0757 | K14: 1155965.173 | L14: 431413.7923 | M14: 293264.4852 | N14: 8670818.454 | O14: 9036742.941 | P14: 9273659.266 | Q14: 8686400 | R14: 8118320 | S14: 7813554 | T14: 7432780
A15: 201/02 | C15: Travel/Moving | D15: 32239.14 | E15: 372.3 | F15: 416.16 | G15: 2820.3 | H15: 2053.26 | I15: 520.2 | J15: 253.98 | K15: 0 | L15: 4216.68 | M15: 2080.8 | N15: 44972.82 | O15: 45872.2764 | P15: 46789.72193 | Q15: 44086 | R15: 43389 | S15: 49920 | T15: 67045
A16: 204/05/10 | C16: Prof. Dev. Allowances | D16: 3200 | E16: 22000 | F16: 12000 | G16: 10000 | H16: 11000 | I16: 19000 | J16: 10000 | K16: 16000 | L16: 6000 | M16: 4000 | N16: 113200 | O16: 113200 | P16: 113200 | Q16: 113200 | R16: 99341 | S16: 89624 | T16: 101558
A17: 206 | C17: Student Recruitment | D17: 0 | E17: 0 | F17: 0 | G17: 0 | H17: 0 | I17: 0 | J17: 0 | K17: 0 | L17: 0 | N17: 0 | O17: 0 | P17: 0 | Q17: 0
C18: SUB-TOTAL: TRAVEL & MOVING: | D18: =SUM(D15:D17) -> 35439.14 | E18: =SUM(E15:E17) -> 22372.3 | F18: 12416.16 | G18: 12820.3 | H18: 13053.26 | I18: 19520.2 | J18: 10253.98 | K18: 16000 | L18: 10216.68 | M18: 6080.8 | N18: 158172.82 | O18: 159072.2764 | P18: 159989.7219 | Q18: 157286 | R18: 142730 | S18: 139544 | T18: 168603
A19: 301 | C19: Advertising | D19: 4711.38 | E19: 0 | F19: 0 | G19: 0 | H19: 0 | I19: 0 | J19: 0 | K19: 0 | L19: 5918.04 | M19: 0 | N19: 10629.42 | O19: 10842.0084 | P19: 11058.84857 | Q19: 10420 | R19: 9812 | S19: 7097 | T19: 6074
A20: 302 | C20: Special Allowances | D20: 0 | E20: 0 | F20: 0 | G20: 0 | H20: 0 | I20: 0 | J20: 0 | K20: 0 | L20: 0 | M20: 0 | N20: 0 | O20: 0 | P20: 0 | Q20: 0 | R20: 2384 | S20: 3485 | T20: 1858
A21: 304 | C21: Consumables | D21: 4080 | E21: 23336.58 | F21: 13693.5 | G21: 4321.74 | H21: 5705.88 | I21: 2714.22 | J21: 3172.2 | K21: 2079.78 | L21: 1561.62 | M21: 13285.5 | N21: 73951.02 | O21: 75430.0404 | P21: 76938.64121 | Q21: 72502 | R21: 70586 | S21: 70865 | T21: 80612
A22: 305 | C22: Photocopying - Printing | D22: 4080 | E22: 8405.82 | F22: 5092.86 | G22: 5218.32 | H22: 5073.48 | I22: 5640.6 | J22: 2185.86 | K22: 6590.22 | L22: 2196.06 | M22: 0 | N22: 44483.22 | O22: 45372.8844 | P22: 46280.34209 | Q22: 43611 | R22: 41680 | S22: 41614 | T22: 39976
A23: 306 | C23: Films - Film Rental | D23: 0 | E23: 0 | F23: 0 | G23: 0 | H23: 0 | I23: 0 | J23: 0 | K23: 0 | L23: 0 | M23: 0 | N23: 0 | O23: 0 | P23: 0 | Q23: 0
A24: 307 | C24: Membership Subscriptions | D24: 0 | E24: 212.16 | F24: 68.34 | G24: 424.32 | H24: 520.2 | I24: 1060.8 | J24: 106.08 | K24: 66.3 | L24: 1616.7 | M24: 0 | N24: 4074.9 | O24: 4156.398 | P24: 4239.52596 | Q24: 3996 | R24: 3887 | S24: 2867 | T24: 4045
A25: 308 | C25: Postage | D25: 20.4 | E25: 73.44 | F25: 37.74 | G25: 208.08 | H25: 89.76 | I25: 45.9 | J25: 33.66 | K25: 35.7 | L25: 34.68 | M25: 0 | N25: 579.36 | O25: 590.9472 | P25: 602.766144 | Q25: 567 | R25: 1064 | S25: 1499 | T25: 609
A26: 309 | C26: Telephone - Long Dist. | D26: 102 | E26: 69.36 | F26: 15.3 | G26: 51 | H26: 20.4 | I26: 34.68 | J26: 52.02 | K26: 8.16 | L26: 28.56 | M26: 0 | N26: 381.48 | O26: 389.1096 | P26: 396.891792 | Q26: 374 | R26: 195 | S26: 178 | T26: 1134
A27: 310 | C27: Telephone - Rental | D27: 1327.02 | E27: 4570.62 | F27: 1997.16 | G27: 2214.42 | H27: 2045.1 | I27: 3323.16 | J27: 2674.44 | K27: 2663.22 | L27: 1457.58 | M27: 0 | N27: 22272.72 | O27: 22718.1744 | P27: 23172.53789 | Q27: 21836 | R27: 22064 | S27: 22245 | T27: 22236
A28: 311 | C28: Repairs & Maintenance | D28: 6118.98 | E28: 4161.6 | F28: 0 | G28: 0 | H28: 0 | I28: 0 | J28: 106.08 | K28: 0 | L28: 0 | M28: 0 | N28: 10386.66 | O28: 10594.3932 | P28: 10806.28106 | Q28: 10183 | R28: 7192 | S28: 6333 | T28: 24157
A29: 312 | C29: Rentals | D29: 0 | E29: 0 | F29: 0 | G29: 0 | H29: 0 | I29: 0 | J29: 0 | K29: 0 | L29: 0 | M29: 0 | N29: 0 | O29: 0 | P29: 0 | T29: 126
A30: 330 | C30: Food Purchases | D30: 0 | E30: 0 | F30: 0 | G30: 0 | H30: 0 | I30: 0 | J30: 0 | K30: 0 | L30: 0 | M30: 0 | N30: 0 | O30: 0 | P30: 0 | R30: 6167 | S30: 9385 | T30: 10220
A31: 344 | C31: Animal Care Room | D31: 6756.48 | E31: 0 | F31: 0 | G31: 0 | H31: 0 | I31: 0 | J31: 0 | K31: 0 | L31: 0 | M31: 0 | N31: 6756.48 | O31: 6891.6096 | P31: 7029.441792 | Q31: 6624 | R31: 18985 | S31: 3924 | T31: 5988
A32: 345 | C32: Staff development | D32: 2462.28 | E32: 0 | F32: 0 | G32: 0 | H32: 0 | I32: 0 | J32: 0 | K32: 0 | L32: 0 | M32: 0 | N32: 2462.28 | O32: 2511.5256 | P32: 2561.756112 | Q32: 2414
A33: 354 | C33: Fax Expenses | D33: 520.2 | E33: 0 | F33: 0 | G33: 0 | H33: 0 | I33: 0 | J33: 0 | K33: 0 | L33: 0 | M33: 0 | N33: 520.2 | O33: 530.604 | P33: 541.21608 | Q33: 510 | R33: 484 | S33: 480 | T33: 515
A34: 357/358 | C34: Software/licensing/support | D34: 4694.04 | E34: 8531.28 | F34: 269.28 | G34: 1418.82 | H34: 624.24 | I34: 728.28 | J34: 0 | K34: 0 | L34: 0 | M34: 0 | N34: 16265.94 | O34: 16591.2588 | P34: 16923.08398 | Q34: 15948 | R34: 19294 | S34: 5387 | T34: 17430
A35: 370 | C35: Work Orders | D35: 3242.58 | E35: 2080.8 | F35: 0 | G35: 3121.2 | H35: 265.2 | I35: 190.74 | J35: 0 | K35: 0 | L35: 104.04 | M35: 0 | N35: 9004.56 | O35: 9184.6512 | P35: 9368.344224 | Q35: 8828 | R35: 42899 | S35: 29442 | T35: 30235
A36: 393 | C36: Equipment <$1000 | D36: 4704.24 | E36: 1040.4 | F36: 1040.4 | G36: 4754.22 | H36: 1040.4 | I36: 1040.4 | J36: 7166.52 | K36: 1040.4 | L36: 5245.86 | M36: 10404 | N36: 37476.84 | O36: 38226.3768 | P36: 38990.90434 | Q36: 36742 | R36: 48140 | S36: 87614 | T36: 63031
A37: 395 | C37: Library Resource Materials | D37: 0 | E37: 0 | F37: 0 | G37: 0 | H37: 0 | I37: 0 | J37: 0 | K37: 0 | L37: 0 | M37: 0 | N37: 0 | O37: 0 | P37: 0 | R37: 12734 | S37: 12334
A38: 399 | C38: Recoveries | D38: -4991 | E38: 0 | F38: 0 | G38: 0 | H38: 0 | I38: 0 | J38: 0 | K38: 0 | L38: 0 | M38: 0 | N38: -4991 | O38: -5090.82 | P38: -5192.6364 | Q38: -4991 | R38: -11140 | S38: -13150 | T38: -11590
A39: 799 | C39: Interfund Transfer | D39: 0 | E39: 0 | F39: 0 | G39: 0 | H39: 0 | I39: 0 | J39: 0 | K39: 0 | L39: 0 | M39: 0 | N39: 0 | O39: 0 | P39: 0 | R39: 1804 | S39: -2492 | T39: 5141
A40: *** | C40: Unallocated | D40: 0 | E40: 0 | F40: 0 | G40: 0 | H40: 0 | I40: 0 | J40: 0 | K40: 0 | L40: 0 | M40: 0 | N40: 0 | O40: 0 | P40: 0
C41: SUB-TOTAL: SUPPLIES & OTHER EXPS: | D41: =SUM(D19:D40) -> 37828.6 | E41: =SUM(E19:E40) -> 52482.06 | F41: 22214.58 | G41: 21732.12 | H41: 15384.66 | I41: 14778.78 | J41: 15496.86 | K41: 12483.78 | L41: 18163.14 | M41: 23689.5 | N41: 234254.08 | O41: 238939.1616 | P41: 243717.9448 | Q41: 229564 | R41: 298231 | S41: 289107 | T41: 301797
A42: 525 | C42: Cost Recovery Surplus/(Deficit) | D42: 0 | E42: 0 | F42: 0 | G42: 0 | H42: 0 | I42: 0 | J42: 0 | K42: 0 | L42: 0 | N42: 0 | O42: 0 | P42: 0 | Q42: 0
A43: 503 | C43: BUF Donations | D43: 0 | E43: 0 | F43: 0 | G43: 0 | H43: 0 | I43: 0 | J43: 0 | K43: 0 | L43: 0 | N43: 0 | O43: 0 | P43: 0 | R43: -8954 | S43: -40920 | T43: -38558
A44: 552/553 | C44: Spring/Summer Revenue(net of expenses) | D44: 0 | E44: 0 | F44: 0 | G44: 0 | H44: 0 | I44: 0 | J44: 0 | K44: 0 | L44: 0 | N44: 0 | O44: 0 | P44: 0
A45: 511 | C45: Non-core Tuition Revenues | D45: 0 | E45: 0 | F45: 0 | G45: 0 | H45: 0 | I45: 0 | J45: 0 | K45: 0 | L45: 0 | N45: 0 | O45: 0 | P45: 0
A46: 559 | C46: 15% Tuition Assessment | D46: 0 | E46: 0 | F46: 0 | G46: 0 | H46: 0 | I46: 0 | J46: 0 | K46: 0 | L46: 0 | N46: 0 | O46: 0 | P46: 0
A47: 5xx | C47: Revenues | D47: 0 | E47: 0 | F47: 0 | G47: 0 | H47: 0 | I47: 0 | J47: 0 | K47: 0 | L47: 0 | N47: 0 | O47: 0 | P47: 0 | R47: -55957 | S47: -56825 | T47: -46381
C48: SUB-TOTAL: REVENUES: | D48: =SUM(D42:D47) -> 0 | E48: =SUM(E42:E47) -> 0 | F48: 0 | G48: 0 | H48: 0 | I48: 0 | J48: 0 | K48: 0 | L48: 0 | M48: 0 | N48: 0 | O48: 0 | P48: 0 | Q48: 0 | R48: -64911 | S48: -97745 | T48: -84939
A49: 9xx | C49: Renovations & Equipment | D49: 39415.86 | E49: 0 | F49: 0 | G49: 0 | H49: 0 | I49: 0 | J49: 0 | K49: 0 | L49: 0 | N49: 39415.86 | O49: 39415.86 | P49: 39415.86 | Q49: 38643 | R49: 42220 | S49: 71489 | T49: 73853
C50: SUB-TOTAL: REN. & EQUIP: | D50: =SUM(D49) -> 39415.86 | E50: =SUM(E49) -> 0 | F50: 0 | G50: 0 | H50: 0 | I50: 0 | J50: 0 | K50: 0 | L50: 0 | M50: 0 | N50: 39415.86 | O50: 39415.86 | P50: 39415.86 | Q50: 38643 | R50: 42220 | S50: 71489 | T50: 73853
C51: TOTAL BUDGET: | D51: =+D50+D48+D41+D18+D14 -> 617845.5954 | E51: =+E50+E48+E41+E18+E14 -> 1679786.328 | F51: 723778.0287 | G51: 848170.1714 | H51: 871451.7112 | I51: 1490902.113 | J51: 903449.9157 | K51: 1184448.953 | L51: 459793.6123 | M51: 323034.7852 | N51: 9102661.214 | O51: 9474170.239 | P51: 9716782.793 | Q51: 9111893 | R51: 8536590 | S51: 8215949 | T51: 7892094

Sheet Health Studies
C1: BRANDON UNIVERSITY ** FACULTY OF HEALTH STUDIES **
C2: REFERENCE BUDGET
C3: APRIL 2019 TO MARCH 2020
D4: 4701 | E4: 4702 | F4: 4704 | G4: 4705 | H4: 4706 | I4: 4707 | J4: 4708 | K4: 2019/20 | L4: 2020/21 | M4: 2021/22 | N4: 2018/19
F5: PSYCH | H5: M. PSYCH | I5: RESEARCH | J5: Ind.Health | K5: REF'NCE | L5: PROJ. | M5: PROJ. | N5: APPROVED | O5: 2017-18 | P5: 2016-17 | Q5: 2015-16
C6: EXPENDITURE: | D6: DEAN | E6: WPG CTR | F6: NURSING | G6: BN | H6: NURSING | I6: OFFICE | J6: Transition | K6: BUDGET | L6: BUDGET | M6: BUDGET | N6: BUDGET | O6: ACTUAL | P6: ACTUAL | Q6: ACTUAL
A7: 001 | C7: Acad./I.A. | D7: 249792.615 | E7: 1113523.945 | F7: 1452846.35 | G7: 1656091.383 | H7: 0 | I7: 48891.714 | J7: 85621.19 | K7: 4606767.197 | L7: 4737986.547 | M7: 4819320.966 | N7: 4490386 | O7: 3657973 | P7: 3898508 | Q7: 3716789
A8: 002 | C8: Sessionals - Regular Session | D8: 0 | E8: 16771 | F8: 129269 | G8: 101965 | H8: 0 | I8: 0 | J8: 24000 | K8: 272005 | L8: 272580.42 | M8: 275141.6034 | N8: 279187 | O8: 793988 | P8: 662891 | Q8: 609624
A9: 003 | C9: F.T. Support | D9: 66199.975 | E9: 50470.45 | F9: 48427.185 | G9: 99674.875 | H9: 0 | I9: 0 | J9: 0 | K9: 264772.485 | L9: 267734.5262 | M9: 270755.8082 | N9: 256153 | O9: 248441 | P9: 235043 | Q9: 260313
A10: 004/005 | C10: P.T./Student Assistants/Casual | D10: 4026.9775 | E10: 0 | F10: 0 | G10: 0 | H10: 0 | I10: 8245.38 | J10: 0 | K10: 12272.3575 | L10: 12395.08107 | M10: 12642.9827 | N10: 12181 | O10: 3845 | P10: 2120 | Q10: 11591
A11: 100 | C11: Benefits | D11: 49603.03296 | E11: 203091.6479 | F11: 288606.0287 | G11: 325102.9701 | H11: 0 | I11: 10284.67692 | J11: 20828.0261 | K11: 897516.3828 | L11: 1058139.315 | M11: 1075572.272 | N11: 876895 | O11: 809761 | P11: 840913 | Q11: 794003
A12: 099/199 | C12: Recoveries | D12: 0 | E12: 0 | F12: 0 | G12: 0 | H12: 0 | I12: 0 | J12: 0 | K12: 0 | L12: 0 | M12: 0 | O12: -800
C13: SUB-TOTAL: SALARIES & BENEFITS: | D13: =SUM(D7:D12) -> 369622.6005 | E13: =SUM(E7:E12) -> 1383857.043 | F13: 1919148.564 | G13: 2182834.228 | H13: 0 | I13: 67421.77092 | J13: 130449.2161 | K13: 6053333.422 | L13: 6348835.889 | M13: 6453433.632 | N13: 5914802 | O13: 5513208 | P13: 5639475 | Q13: 5392320
A14: 201/02/06 | C14: Travel/Moving/Recruitment | D14: 12878.52 | E14: 9010.68 | F14: 8119.2 | G14: 13918.92 | H14: 848.64 | I14: 1040.4 | J14: 0 | K14: 45816.36 | L14: 46732.6872 | M14: 47667.34094 | N14: 44918 | O14: 14792 | P14: 34270 | Q14: 30190
A15: 204/05/10 | C15: Prof. Dev. Allowances | D15: 92800 | E15: 0 | F15: 0 | G15: 0 | H15: 0 | I15: 0 | J15: 0 | K15: 92800 | L15: 92800 | M15: 92800 | N15: 92800 | O15: 55915 | P15: 64884 | Q15: 56286
C16: SUB-TOTAL: TRAVEL & MOVING: | D16: =SUM(D14:D15) -> 105678.52 | E16: =SUM(E14:E15) -> 9010.68 | F16: 8119.2 | G16: 13918.92 | H16: 848.64 | I16: 1040.4 | J16: 0 | K16: 138616.36 | L16: 139532.6872 | M16: 140467.3409 | N16: 137718 | O16: 70707 | P16: 99154 | Q16: 86476
A17: 301 | C17: Advertising | D17: 10178.58 | E17: 0 | F17: 0 | G17: 0 | H17: 2122.62 | I17: 0 | J17: 0 | K17: 12301.2 | L17: 12547.224 | M17: 12798.16848 | N17: 12059 | O17: 4338 | P17: 3252 | Q17: 3150
A18: 302 | C18: Special Allowances | D18: 5914.98 | E18: 0 | F18: 1774.8 | G18: 1774.8 | H18: 0 | I18: 0 | J18: 0 | K18: 9464.58 | L18: 9653.8716 | M18: 9846.949032 | N18: 9279 | O18: 4918 | P18: 8070 | Q18: 7334
A19: 304 | C19: Consumables | D19: 8166.12 | E19: 3549.6 | F19: 17057.46 | G19: 23492.64 | H19: 1592.22 | I19: 1040.4 | J19: 1040.4 | K19: 55938.84 | L19: 57057.6168 | M19: 58198.76914 | N19: 54841 | O19: 37470 | P19: 37427 | Q19: 54382
A20: 305 | C20: Photocopying - Printing | D20: 2367.42 | E20: 2367.42 | F20: 10118.4 | G20: 7099.2 | H20: 530.4 | I20: 0 | J20: 0 | K20: 22482.84 | L20: 22932.4968 | M20: 23391.14674 | N20: 22041 | O20: 10343 | P20: 10473 | Q20: 12215
A21: 307 | C21: Membership Subscriptions | D21: 0 | E21: 0 | F21: 0 | G21: 0 | H21: 0 | I21: 10155.12 | J21: 0 | K21: 10155.12 | L21: 10358.2224 | M21: 10565.38685 | N21: 9956 | O21: 318 | P21: 367 | Q21: -984
A22: 308 | C22: Postage | D22: 591.6 | E22: 591.6 | F22: 2154.24 | G22: 1183.2 | H22: 212.16 | I22: 0 | J22: 0 | K22: 4732.8 | L22: 4827.456 | M22: 4924.00512 | N22: 4641 | O22: 3007 | P22: 2898 | Q22: 2841
A23: 309 | C23: Telephone - Long Dist. | D23: 591.6 | E23: 828.24 | F23: 1183.2 | G23: 1183.2 | H23: 0 | I23: 0 | J23: 0 | K23: 3786.24 | L23: 3861.9648 | M23: 3939.204096 | N23: 3712 | O23: 2547 | P23: 2431 | Q23: 2900
A24: 310 | C24: Telephone - Rental | D24: 4142.22 | E24: 10648.8 | F24: 7099.2 | G24: 10648.8 | H24: 0 | I24: 0 | J24: 0 | K24: 32539.02 | L24: 33189.8004 | M24: 33853.59641 | N24: 31901 | O24: 22900 | P24: 23659 | Q24: 23422
A25: 311 | C25: Repairs & Maintenance | D25: 1774.8 | E25: 2367.42 | F25: 591.6 | G25: 591.6 | H25: 0 | I25: 0 | J25: 0 | K25: 5325.42 | L25: 5431.9284 | M25: 5540.566968 | N25: 5221 | O25: 4622 | P25: 4463 | Q25: 9577
A26: 327 | C26: Other Rentals | D26: 0 | E26: 177215.82 | F26: 0 | G26: 0 | H26: 0 | I26: 0 | J26: 0 | K26: 177215.82 | L26: 180760.1364 | M26: 184375.3391 | N26: 173741 | O26: 147625 | P26: 101726 | Q26: 95063
A27: 314 | C27: Consulting Fees | D27: 591.6 | E27: 0 | F27: 0 | G27: 0 | H27: 0 | I27: 0 | J27: 0 | K27: 591.6 | L27: 603.432 | M27: 615.50064 | N27: 580 | O27: 3402 | P27: 21040 | Q27: 51973
A28: 326 | C28: Service Contracts | D28: 0 | E28: 13311 | F28: 0 | G28: 0 | H28: 0 | I28: 0 | J28: 0 | K28: 13311 | L28: 13577.22 | M28: 13848.7644 | N28: 13050 | O28: 13248 | P28: 16210 | Q28: 12387
A29: 330 | C29: Food Purchases | D29: 0 | E29: 0 | F29: 0 | G29: 0 | H29: 0 | I29: 0 | J29: 0 | K29: 0 | L29: 0 | M29: 0 | O29: 3830 | P29: 4781
A30: 345 | C30: Staff Development | D30: 5914.98 | E30: 0 | F30: 0 | G30: 0 | H30: 0 | I30: 0 | J30: 0 | K30: 5914.98 | L30: 6033.2796 | M30: 6153.945192 | N30: 5799 | O30: 375 | P30: 375 | Q30: 458
A31: 354 | C31: Fax Expenses | D31: 1183.2 | E31: 0 | F31: 1183.2 | G31: 1183.2 | H31: 0 | I31: 0 | J31: 0 | K31: 3549.6 | L31: 3620.592 | M31: 3693.00384 | N31: 3479 | P31: 4 | Q31: 10
A32: 357/358 | C32: Software/Software lisencing | D32: 4824.6 | E32: 0 | F32: 0 | G32: 0 | H32: 0 | I32: 0 | J32: 0 | K32: 4824.6 | L32: 4921.092 | M32: 5019.51384 | N32: 4730 | O32: 4336 | P32: 1497
A33: 372 | C33: Research Development | D33: 0 | E33: 0 | F33: 0 | G33: 0 | H33: 0 | I33: 0 | J33: 0 | K33: 0 | L33: 0 | M33: 0 | O33: 5242 | P33: 9605
A34: 378 | C34: Special Allocations | D34: 4296.24 | E34: 0 | F34: 0 | G34: 0 | H34: 0 | I34: 0 | J34: 0 | K34: 4296.24 | L34: 4382.1648 | M34: 4469.808096 | N34: 4212 | P34: 5200 | Q34: 38
A35: 393 | C35: Equipment - furniture (under $1000) | D35: 0 | E35: 0 | F35: 0 | G35: 0 | H35: 0 | I35: 0 | J35: 0 | K35: 0 | L35: 0 | M35: 0 | O35: 49019 | P35: 24452 | Q35: 24934
A36: 399 | C36: Recoveries | D36: 0 | E36: 0 | F36: 0 | G36: 0 | H36: 0 | I36: 0 | J36: 0 | K36: 0 | L36: 0 | M36: 0 | O36: -4963 | P36: -4886 | Q36: -4971
A37: 799 | C37: Interfund Transfer | D37: 0 | E37: 0 | F37: 0 | G37: 0 | H37: 0 | I37: 0 | J37: 0 | K37: 0 | O37: 53246 | P37: 10249 | Q37: 26090
A38: *** | C38: Unallocated | D38: 0 | E38: 0 | F38: 0 | G38: 0 | H38: 0 | I38: 0 | J38: 0 | K38: 0 | L38: 0 | M38: 0
C39: SUB-TOTAL: SUPPLIES & OTHER EXPS: | D39: =SUM(D17:D38) -> 50537.94 | E39: =SUM(E17:E38) -> 210879.9 | F39: 41162.1 | G39: 47156.64 | H39: 4457.4 | I39: 11195.52 | J39: 1040.4 | K39: 366429.9 | L39: 373758.498 | M39: 381233.668 | N39: 359242 | O39: 365823 | P39: 283293 | Q39: 320819
A40: 525 | C40: Cost Recovery Surplus/(Deficit) | H40: 0 | K40: 0 | L40: 0 | M40: 0 | N40: 0
A41: 5xx | C41: Revenues | D41: 0 | E41: 0 | F41: 0 | G41: 0 | H41: 0 | I41: 0 | J41: 0 | K41: 0 | L41: 0 | M41: 0 | O41: -9829 | P41: -5278 | Q41: -13465
A42: 503 | C42: BUF Donations | D42: 0 | E42: 0 | F42: 0 | G42: 0 | H42: 0 | I42: 0 | J42: 0 | K42: 0 | L42: 0 | M42: 0
A43: 552/553 | C43: Spring/Summer Tuition | D43: 0 | E43: 0 | G43: 0 | H43: 0 | K43: 0 | L43: 0 | M43: 0 | N43: 0
A44: 511 | C44: Non-core Tuition Revenues | D44: 0 | E44: 0 | G44: 0 | H44: 0 | K44: 0 | L44: 0 | M44: 0 | N44: 0
A45: 559 | C45: 15% Tuition Assessment | D45: 0 | E45: 0 | F45: 0 | G45: 0 | H45: 0 | K45: 0 | L45: 0 | M45: 0 | N45: 0
C46: SUB-TOTAL: REVENUES: | D46: =SUM(D41:D45) -> 0 | E46: =SUM(E41:E45) -> 0 | F46: 0 | G46: 0 | H46: 0 | I46: 0 | J46: 0 | K46: 0 | L46: 0 | M46: 0 | N46: 0 | O46: -9829 | P46: -5278 | Q46: -13465
A47: 901 | C47: Equipment Purchases | D47: 5745.66 | E47: 5742.6 | F47: 17229.84 | G47: 17229.84 | H47: 0 | I47: 0 | J47: 0 | K47: 45947.94 | L47: 45947.94 | M47: 45947.94 | N47: 45048 | O47: 4688 | P47: 38252 | Q47: 9355
C48: SUB-TOTAL: RENOV & EQUIP | D48: =SUM(D47) -> 5745.66 | E48: =SUM(E47) -> 5742.6 | F48: 17229.84 | G48: 17229.84 | H48: 0 | I48: 0 | J48: 0 | K48: 45947.94 | L48: 45947.94 | M48: 45947.94 | N48: 45048 | O48: 4688 | P48: 38252 | Q48: 9355
C49: ANNUAL BUDGET: | D49: =+D48+D46+D39+D16+D13 -> 531584.7205 | E49: =+E48+E46+E39+E16+E13 -> 1609490.223 | F49: 1985659.704 | G49: 2261139.628 | H49: 5306.04 | I49: 79657.69092 | J49: 131489.6161 | K49: 6604327.622 | L49: 6908075.014 | M49: 7021082.581 | N49: 6456810 | O49: 5944597 | P49: 6054896 | Q49: 5795505

Sheet Education
C1: BRANDON UNIVERSITY FACULTY OF EDUCATION
C2: REFERENCE BUDGET
C3: APRIL 2019 TO MARCH 2020
D5: 4201 | E5: 4203 | F5: 4204 | G5: 4205 | H5: 4206 | I5: 4208 | J5: 4211 | K5: 2019/20 | L5: 2020/21 | M5: 2021/22 | N5: 2018/19
F6: LDRSHIP | G6: CURR. & | H6: EDPSYCH | I6: PHYS | J6: GRAD | K6: REF'NCE | L6: PROJ. | M6: PROJ. | N6: APPROVED | O6: 2017-18 | P6: 2016-17 | Q6: 2015-16
C7: EXPENDITURE: | D7: DEAN | E7: FLD EXP | F7: EDADMIN | G7: PED. | H7: STSERV | I7: EDUC | J7: STUD | K7: BUDGET | L7: BUDGET | M7: BUDGET | N7: BUDGET | O7: ACTUAL | P7: ACTUAL | Q7: ACTUAL
A8: 001 | C8: Academic | D8: 116271 | E8: 104808 | F8: 602514.745 | G8: 848412.29 | H8: 603516.85 | I8: 551067.6497 | J8: 17805 | K8: 2844395.535 | L8: 2882385.214 | M8: 2921326.733 | N8: 2858228 | O8: 2848549 | P8: 2687753 | Q8: 2731915
A9: 002 | C9: Sessionals | D9: 69965 | E9: 166953 | F9: 0 | G9: 0 | H9: 0 | I9: 6205 | J9: 0 | K9: 243123 | L9: 244522.3 | M9: 246356.2173 | N9: 313782 | O9: 337520 | P9: 320986 | Q9: 330502
A10: 003 | C10: F.T. Support | D10: 171060.145 | E10: 52455.72 | F10: 0 | G10: 0 | H10: 0 | I10: 0 | J10: 0 | K10: 223515.865 | L10: 224814.5469 | M10: 226139.182 | N10: 216961 | O10: 211896 | P10: 216848 | Q10: 199301
A11: 004/005 | C11: P.T./Student Assistants/Casual | D11: 5579.535 | E11: 0 | F11: 0 | G11: 0 | H11: 0 | I11: 0 | J11: 0 | K11: 5579.535 | L11: 5635.33035 | M11: 5748.036957 | N11: 5538 | O11: 7967 | P11: 5088 | Q11: 6829
A12: 012 | C12: Cost Recovery Sessionals | D12: 0 | E12: 0 | F12: 0 | I12: 0 | J12: 0 | K12: 0 | L12: 0 | M12: 0 | N12: 0
A13: 100 | C13: Benefits | D13: 57334.35744 | E13: 43445.04048 | F13: 78326.91685 | G13: 115662.5995 | H13: 83285.3253 | I13: 78018.17096 | J13: 1068.3 | K13: 457140.7105 | L13: 671471.4783 | M13: 679914.0338 | N13: 469321 | O13: 444838 | P13: 421119 | Q13: 448731
A14: 099/199 | C14: Recoveries | D14: -15989 | E14: 0 | F14: 0 | G14: -50739.19 | H14: 0 | I14: 0 | J14: 0 | K14: -66728.19 | L14: -15989 | M14: -15989 | N14: -65047 | O14: -92603 | P14: -88723 | Q14: -57363
C15: SUB-TOTAL: SALARIES & BENEFITS: | D15: =SUM(D8:D14) -> 404221.0374 | E15: =SUM(E8:E14) -> 367661.7605 | F15: 680841.6618 | G15: 913335.6995 | H15: 686802.1753 | I15: 635290.8207 | J15: 18873.3 | K15: 3707026.455 | L15: 4012839.87 | M15: 4063495.203 | N15: 3798783 | O15: 3758167 | P15: 3563071 | Q15: 3659915
A16: 201/02/06 | C16: Travel/Moving/Recruitment | D16: 13638.42 | E16: 28438.62 | F16: 2165.46 | G16: 0 | H16: 0 | I16: 0 | J16: 1656.48 | K16: 45898.98 | L16: 46816.9596 | M16: 47753.29879 | N16: 44998 | O16: 36993 | P16: 28300 | Q16: 49449
A17: 204/05/10 | C17: Prof. Dev. Allowances | D17: 41000 | E17: 0 | F17: 0 | G17: 0 | H17: 0 | I17: 18000 | J17: 0 | K17: 59000 | L17: 59000 | M17: 59000 | N17: 59000 | O17: 48264 | P17: 49743 | Q17: 47634
C18: SUB-TOTAL: TRAVEL & MOVING: | D18: =SUM(D16:D17) -> 54638.42 | E18: =SUM(E16:E17) -> 28438.62 | F18: 2165.46 | G18: 0 | H18: 0 | I18: 18000 | J18: 1656.48 | K18: 104898.98 | L18: 105816.9596 | M18: 106753.2988 | N18: 103998 | O18: 85257 | P18: 78043 | Q18: 97083
A19: 301 | C19: Advertising | D19: 811.92 | E19: 0 | F19: 0 | G19: 0 | H19: 0 | I19: 0 | J19: 0 | K19: 811.92 | L19: 828.1584 | M19: 844.721568 | N19: 796 | O19: 2881 | P19: 3382 | Q19: 7005
A20: 302 | C20: Special Allowances | D20: 8722.02 | E20: 0 | F20: 0 | G20: 0 | H20: 0 | I20: 232.56 | J20: 0 | K20: 8954.58 | L20: 9133.6716 | M20: 9316.345032 | N20: 8779 | O20: 1583 | P20: 2695 | Q20: 2208
A21: 304 | C21: Consumables | D21: 9721.62 | E21: 2858.04 | F21: 0 | G21: 0 | H21: 0 | I21: 5828.28 | J21: 1231.14 | K21: 19639.08 | L21: 20031.8616 | M21: 20432.49883 | N21: 19254 | O21: 29345 | P21: 24858 | Q21: 25582
A22: 305 | C22: Photocopying - Printing | D22: 4520.64 | E22: 4185.06 | F22: 1801.32 | G22: 4954.14 | H22: 1801.32 | I22: 2163.42 | J22: 1315.8 | K22: 20741.7 | L22: 21156.534 | M22: 21579.66468 | N22: 20335 | O22: 17427 | P22: 19182 | Q22: 21572
A23: 307 | C23: Membership Subscriptions | D23: 2081.82 | E23: 0 | F23: 0 | G23: 0 | H23: 0 | I23: 0 | J23: 0 | K23: 2081.82 | L23: 2123.4564 | M23: 2165.925528 | N23: 2041 | O23: 2299 | P23: 1602 | Q23: 1787
A24: 308 | C24: Postage | D24: 1142.4 | E24: 735.42 | F24: 124.44 | G24: 343.74 | H24: 124.44 | I24: 244.8 | J24: 400.86 | K24: 3116.1 | L24: 3178.422 | M24: 3241.99044 | N24: 3055 | O24: 757 | P24: 752 | Q24: 752
A25: 309 | C25: Telephone - Long Dist. | D25: 1190.34 | E25: 191.76 | F25: 0 | G25: 0 | H25: 0 | I25: 437.58 | J25: 648.72 | K25: 2468.4 | L25: 2517.768 | M25: 2568.12336 | N25: 2420 | O25: 1034 | P25: 1102 | Q25: 2133
A26: 310 | C26: Telephone - Rental | D26: 10462.14 | E26: 708.9 | F26: 0 | G26: 0 | H26: 0 | I26: 0 | J26: 1515.72 | K26: 12686.76 | L26: 12940.4952 | M26: 13199.3051 | N26: 12438 | O26: 12132 | P26: 12144 | Q26: 12031
A27: 311 | C27: Repairs & Maintenance | D27: 4559.4 | E27: 211.14 | F27: 0 | G27: 0 | H27: 0 | I27: 773.16 | J27: 0 | K27: 5543.7 | L27: 5654.574 | M27: 5767.66548 | N27: 5435 | O27: 3961 | P27: 3382 | Q27: 15008
A28: 312 | C28: Other Rentals | D28: 33.66 | E28: 0 | F28: 0 | G28: 0 | H28: 0 | I28: 1109.76 | J28: 0 | K28: 1143.42 | L28: 1166.2884 | M28: 1189.614168 | N28: 1121 | O28: 66 | P28: 506 | Q28: 518
A29: 314 | C29: Consulting fees | D29: 52020 | E29: 0 | F29: 0 | G29: 0 | H29: 0 | I29: 0 | J29: 0 | K29: 52020 | L29: 52020 | M29: 52020 | N29: 51000 | O29: 57220 | P29: 59152 | Q29: 26155
A30: 330 | C30: Food Purchases | D30: 5114.28 | E30: 1994.1 | F30: 0 | G30: 0 | H30: 0 | I30: 0 | J30: 0 | K30: 7108.38 | L30: 7250.5476 | M30: 7395.558552 | N30: 6970 | O30: 6316 | P30: 5967 | Q30: 7573
A31: 345 | C31: Staff Development | D31: 0 | E31: 0 | F31: 0 | G31: 0 | H31: 0 | I31: 0 | J31: 0 | K31: 0 | L31: 0 | M31: 0 | P31: 1961
A32: 354 | C32: Fax Expenses | D32: 848.64 | E32: 20.4 | F32: 0 | G32: 0 | H32: 0 | I32: 0 | J32: 20.4 | K32: 889.44 | L32: 907.2288 | M32: 925.373376 | N32: 873
A33: 357/358 | C33: Software/Software Licensing | D33: 0 | E33: 0 | F33: 0 | G33: 0 | H33: 0 | I33: 0 | J33: 0 | K33: 0 | L33: 0 | M33: 0 | O33: 1647 | P33: 67 | Q33: 109
A34: 378 | C34: Special Allocations | D34: 0 | E34: 0 | F34: 0 | G34: 0 | H34: 0 | I34: 0 | J34: 0 | K34: 0 | L34: 0 | M34: 0 | O34: 828 | P34: 603 | Q34: 468
A35: 393 | C35: Equipment - furniture(under $1000) | D35: 3246.66 | E35: 0 | F35: 0 | G35: 0 | H35: 0 | I35: 0 | J35: 0 | K35: 3246.66 | L35: 3311.5932 | M35: 3377.825064 | N35: 3183 | O35: 6401 | P35: 29123 | Q35: 14191
A36: 397 | C36: Overheads | D36: -15675 | E36: 0 | F36: 0 | G36: 0 | H36: 0 | I36: 0 | J36: 0 | K36: -15675 | L36: -15988.5 | M36: -16308.27 | N36: -15675
A37: 399 | C37: Recoveries | D37: -13260 | E37: 0 | F37: 0 | G37: 0 | H37: 0 | K37: -13260 | L37: -13525.2 | M37: -13795.704 | N37: -13260 | O37: -10148 | P37: -24371 | Q37: -26825
A38: 799 | C38: Interfund Transfer | D38: 15675 | E38: 0 | F38: 0 | G38: 0 | H38: 0 | I38: 0 | J38: 0 | K38: 15675 | L38: 15988.5 | M38: 16308.27 | N38: 15675 | P38: 1163 | Q38: 1981
A39: *** | C39: Unallocated | D39: 0 | E39: 0 | F39: 0 | G39: 0 | H39: 0 | I39: 0 | J39: 0 | K39: 0 | L39: 0 | M39: 0
C40: SUB-TOTAL: SUPPLIES & OTHER EXPS: | D40: =SUM(D19:D39) -> 91215.54 | E40: =SUM(E19:E39) -> 10904.82 | F40: 1925.76 | G40: 5297.88 | H40: 1925.76 | I40: 10789.56 | J40: 5132.64 | K40: 127191.96 | L40: 128695.3992 | M40: 130228.9072 | N40: 124440 | O40: 133749 | P40: 143270 | Q40: 112248
A41: 525 | C41: Cost Recovery Surplus/(Deficit) | D41: 0 | E41: 0 | F41: 0 | I41: 0 | J41: 0 | K41: 0 | L41: 0 | M41: 0 | N41: 0
A42: 503 | C42: BUF Donations | D42: 0 | E42: 0 | F42: 0 | I42: 0 | J42: 0 | K42: 0 | L42: 0 | M42: 0 | O42: -150 | P42: -8016 | Q42: -2217
A43: 551 | C43: Distance Delivery Tuition Revenue | D43: 0 | E43: 0 | F43: 0 | I43: 0 | J43: 0 | K43: 0 | L43: 0 | M43: 0 | N43: 0
A44: 552/553 | C44: Spring/Summer Revenue | D44: 0 | E44: 0 | F44: 0 | I44: 0 | J44: 0 | K44: 0 | L44: 0 | M44: 0 | N44: 0
A45: 559 | C45: 15% Tuition Assessment | D45: 0 | E45: 0 | F45: 0 | I45: 0 | J45: 0 | K45: 0 | L45: 0 | M45: 0 | N45: 0
A46: 5xx | C46: Other Revenues | D46: -40675 | E46: 0 | F46: 0 | I46: 0 | J46: 0 | K46: -40675 | L46: -40675 | M46: -40675 | N46: -40675 | O46: -75240 | P46: -69625 | Q46: -65124
C47: SUB-TOTAL: REVENUES: | D47: =SUM(D41:D46) -> -40675 | E47: =SUM(E41:E46) -> 0 | F47: 0 | G47: 0 | H47: 0 | I47: 0 | J47: 0 | K47: -40675 | L47: -40675 | M47: -40675 | N47: -40675 | O47: -75390 | P47: -77641 | Q47: -67341
A48: 9xx | C48: Equipment Purchases | D48: 0 | E48: 0 | F48: 0 | I48: 0 | J48: 0 | K48: 0 | L48: 0 | M48: 0 | O48: 19990 | P48: 42651 | Q48: 18182
C49: SUB-TOTAL: EQUIPMENT | D49: =SUM(D48) -> 0 | E49: =SUM(E48) -> 0 | F49: 0 | G49: 0 | H49: 0 | I49: 0 | J49: 0 | K49: 0 | L49: 0 | M49: 0 | N49: 0 | O49: 19990 | P49: 42651 | Q49: 18182
C50: ANNUAL BUDGET: | D50: =+D49+D47+D40+D18+D15 -> 509399.9974 | E50: =+E49+E47+E40+E18+E15 -> 407005.2005 | F50: 684932.8818 | G50: 918633.5795 | H50: 688727.9353 | I50: 664080.3807 | J50: 25662.42 | K50: 3898442.395 | L50: 4206677.229 | M50: 4259802.409 | N50: 3986546 | O50: 3921773 | P50: 3749394 | Q50: 3820087

Sheet Music
C1: BRANDON UNIVERSITY ** SCHOOL OF MUSIC **
C2: REFERENCE BUDGET
C3: APRIL 2019 TO MARCH 2020
D4: 2019/20 | E4: 2020/21 | F4: 2021/22 | G4: 2018/19
C5: 4301 | D5: REF'NCE | E5: PROJ. | F5: PROJ. | G5: APPROVED | H5: 2017-18 | I5: 2016-17 | J5: 2015-16
C6: EXPENDITURE: | D6: BUDGET | E6: BUDGET | F6: BUDGET | G6: BUDGET | H6: ACTUAL | I6: ACTUAL | J6: ACTUAL
A7: 001 | C7: Academic | D7: 2266208.17 | E7: 2337888.643 | F7: 2425766.254 | G7: 2287532 | H7: 2225436 | I7: 2024242 | J7: 2005740
A8: 002 | C8: Sessionals - Regular Session | D8: 318848 | E8: 367280 | F8: 370034.6 | G8: 267558 | H8: 210985 | I8: 277092 | J8: 195516
A9: 003 | C9: F.T. Support | D9: 170986.32 | E9: 172304.3139 | F9: 173648.6677 | G9: 166246 | H9: 159508 | I9: 157509 | J9: 153771
A10: 004/005 | C10: P.T./Student Assistants/Casual | D10: 60454.03 | E10: 61058.5703 | F10: 62279.74171 | G10: 60004 | H10: 58606 | I10: 57065 | J10: 59477
A11: 100 | C11: Benefits | D11: 468131.4154 | E11: 587706.3055 | F11: 606345.8527 | G11: 462225 | H11: 435461 | I11: 410705 | J11: 390752
A12: 099/199 | C12: Recoveries | D12: -30000 | E12: -30000 | F12: -30000 | G12: -30000 | H12: -30000 | I12: -31978 | J12: -31940
C13: SUB-TOTAL: SALARIES & BENEFITS: | D13: =SUM(D7:D12) -> 3254627.935 | E13: =SUM(E7:E12) -> 3496237.833 | F13: 3608075.116 | G13: 3213565 | H13: 3059996 | I13: 2894635 | J13: 2773316
A14: 201/02 | C14: Travel/Moving | D14: 67084.38 | E14: 68426.0676 | F14: 69794.58895 | G14: 65769 | H14: 69823 | I14: 51919 | J14: 71873
A15: 204/05/10 | C15: Prof. Dev. Allowances | D15: 38000 | E15: 38760 | F15: 38760 | G15: 38000 | H15: 39198 | I15: 30820 | J15: 36461
C16: SUB-TOTAL: TRAVEL & MOVING: | D16: =SUM(D14:D15) -> 105084.38 | E16: =SUM(E14:E15) -> 107186.0676 | F16: 108554.589 | G16: 103769 | H16: 109021 | I16: 82739 | J16: 108334
A17: 301 | C17: Advertising | D17: 13715.94 | E17: 13990.2588 | F17: 14270.06398 | G17: 13447 | H17: 6157 | I17: 6183 | J17: 5312
A18: 302 | C18: Special Allowances - funded by BUF | D18: 0 | E18: 0 | F18: 0 | G18: 0 | H18: 30242 | I18: 22112 | J18: 26004
A19: 304 | C19: Consumables | D19: 17644.98 | E19: 17997.8796 | F19: 18357.83719 | G19: 17299 | H19: 5279 | I19: 12541 | J19: 16613
A20: 305 | C20: Photocopying - Printing | D20: 8615.94 | E20: 8788.2588 | F20: 8964.023976 | G20: 8447 | H20: 6574 | I20: 5763 | J20: 9363
A21: 307 | C21: Membership Subscriptions | D21: 1182.18 | E21: 1205.8236 | F21: 1229.940072 | G21: 1159 | H21: 1176 | I21: 305 | J21: 382
A22: 308 | C22: Postage | D22: 4924.56 | E22: 5023.0512 | F22: 5123.512224 | G22: 4828 | H22: 3617 | I22: 4404 | J22: 4820
A23: 309 | C23: Telephone - Long Dist. | D23: 1373.94 | E23: 1401.4188 | F23: 1429.447176 | G23: 1347 | H23: 939 | I23: 674 | J23: 1875
A24: 310 | C24: Telephone - Rental | D24: 10211.22 | E24: 10415.4444 | F24: 10623.75329 | G24: 10011 | H24: 9851 | I24: 9904 | J24: 10486
A25: 311 | C25: Repairs & Maintenance | D25: 6242.4 | E25: 6367.248 | F25: 6494.59296 | G25: 6120 | H25: 65663 | I25: 65704 | J25: 73427
A26: 314 | C26: Consulting Fees | D26: 0 | E26: 0 | F26: 0 | H26: 310
A27: 328 | C27: Provision for Replacement | D27: 0 | E27: 0 | F27: 0 | H27: 3500
A28: 330 | C28: Food Purchases | D28: 0 | E28: 0 | F28: 0 | H28: 4116
A29: 345 | C29: Staff Development | D29: 2188.92 | E29: 2232.6984 | F29: 2277.352368 | G29: 2146
A30: 354 | C30: Fax Expenses | D30: 235.62 | E30: 240.3324 | F30: 245.139048 | G30: 231 | H30: 4 | J30: 314
A31: 359 | C31: Music (Ensembles) | D31: 4308.48 | E31: 4394.6496 | F31: 4482.542592 | G31: 4224 | H31: 2575 | I31: 1516 | J31: 3904
A32: 363 | C32: Performance and Lecture Expenses | D32: 27696.06 | E32: 28249.9812 | F32: 28814.98082 | G32: 27153 | H32: 26626 | I32: 26368 | J32: 16778
A33: 364 | C33: Electronic Music Studio | D33: 0 | E33: 0 | F33: 0 | G33: -12
A34: 365 | C34: Venue Rentals | D34: 3078.36 | E34: 3139.9272 | F34: 3202.725744 | G34: 3018 | H34: 2601 | I34: 2744 | J34: 1894
A35: 366 | C35: xxE-Gre Competition | D35: 0 | E35: 0 | F35: 0
A36: 367 | C36: Workshops | D36: 8615.94 | E36: 8788.2588 | F36: 8964.023976 | G36: 8447 | H36: 6815 | I36: 8375 | J36: 5900
A37: 378 | C37: Special Allocations | D37: 8615.94 | E37: 8788.2588 | F37: 8964.023976 | G37: 8447 | H37: =7693+11126 -> 18819 | I37: =4918+9327 -> 14245 | J37: =1220+7650 -> 8870
A38: 380 | C38: Piano Repairs & Maintenance | D38: 62424 | E38: 63672.48 | F38: 64945.9296 | G38: 61200
A39: 381 | C39: Instrument Repairs & Maintenance | D39: 5202 | E39: 5306.04 | F39: 5412.1608 | G39: 5100
A40: 393 | C40: Equipment - furniture (under $1000) | D40: 3641.4 | E40: 3714.228 | F40: 3788.51256 | G40: 3570 | H40: 7697 | I40: 3629 | J40: 7349
A41: 399 | C41: Recoveries | D41: 0 | E41: 0 | F41: 0 | G41: 0 | H41: -220 | I41: -180
A42: 799 | C42: Interfund Transfer | D42: 0 | E42: 0 | F42: 0 | H42: 2000 | I42: 3698 | J42: 3500
A43: *** | C43: Unallocated | D43: 20221.5 | E43: 20625.93 | F43: 21038.4486 | G43: 19825
C44: SUB-TOTAL: SUPPLIES & OTHER EXPS: | D44: =SUM(D17:D43) -> 210139.38 | E44: =SUM(E17:E43) -> 214342.1676 | F44: 218629.011 | G44: 206007 | H44: 204341 | I44: 187985 | J44: 196791
A45: 503 | C45: BUF Donations | D45: -70000 | E45: -70000 | F45: -70000 | G45: -70000 | H45: -83210 | I45: -70767 | J45: -70796
A46: 506 | C46: Concert Fee | D46: -8430 | E46: -8430 | F46: -8430 | G46: -8430 | H46: -14766 | I46: -13990 | J46: -13827
A47: 509 | C47: Materials/Service Fee | D47: -65490 | E47: -65490 | F47: -65490 | G47: -65490 | H47: -72041 | I47: -75600 | J47: -68083
A48: 5xx | C48: Other Revenues/Recitals/Concerts | D48: -20800 | E48: -20800 | F48: -20800 | G48: -20800 | H48: -25485 | I48: -34402 | J48: -21219
C49: SUB-TOTAL: REVENUES: | D49: =SUM(D45:D48) -> -164720 | E49: =SUM(E45:E48) -> -164720 | F49: -164720 | G49: -164720 | H49: -195502 | I49: -194759 | J49: -173925
A50: 9xx | C50: Equipment Purchases | D50: 0 | E50: 0 | F50: 0 | H50: 21922 | I50: 31180 | J50: 57299
C51: SUB-TOTAL: EQUIPMENT | D51: =SUM(D50) -> 0 | E51: =SUM(E50) -> 0 | F51: 0 | G51: 0 | H51: 21922 | I51: 31180 | J51: 57299
C52: ANNUAL BUDGET: | D52: =+D51+D49+D44+D16+D13 -> 3405131.695 | E52: =+E51+E49+E44+E16+E13 -> 3653046.068 | F52: 3770538.716 | G52: 3358621 | H52: 3199778 | I52: 3001780 | J52: 2961815

Sheet Student Serv.
C1: BRANDON UNIVERSITY ** STUDENT SERVICES **
C2: REFERENCE BUDGET
C3: APRIL 2019 TO MARCH 2020
D4: 5101 | E4: 5102 | F4: 5103 | G4: 5104 | H4: 5302 | I4: 5305 | J4: 2019/20 | K4: 2020/21 | L4: 2021/22 | M4: 2018/19
D5: STUDENT | E5: RHPO | F5: RECRUIT & | G5: IPC | H5: OIA | I5: EAP | J5: REF'NCE | K5: PROJ. | L5: PROJ. | M5: APPROVED | N5: 2017-18 | O5: 2016-17 | P5: 2015-16
C6: EXPENDITURE: | D6: SERVICES | F6: RETENTION | J6: BUDGET | K6: BUDGET | L6: BUDGET | M6: BUDGET | N6: ACTUAL | O6: ACTUAL | P6: ACTUAL
A7: 001 | C7: Acad./Sabb/I.A. | D7: 474472.73 | E7: 0 | F7: 173554.38 | G7: 82412.19 | H7: 132554.97 | I7: 0 | J7: 862994.27 | K7: 802577.0285 | L7: 827865.2977 | M7: 867850 | N7: 885067 | O7: 943155 | P7: 977052
A8: 003 | C8: F.T. Support | D8: 193231.535 | E8: 90740.92 | F8: 100983.76 | G8: 101605.76 | H8: 58899.57 | I8: 0 | J8: 545461.545 | K8: 557018.8117 | L8: 579194.9928 | M8: 511773 | N8: 492059 | O8: 535789 | P8: 948986
A9: 004 | C9: P.T. Support | D9: 0 | E9: 0 | F9: 0 | G9: 0 | H9: 0 | I9: 107840 | J9: 107840 | K9: 107840 | L9: 107840 | M9: 107840 | N9: 221940 | O9: 233690 | P9: 162402
A10: 005/015 | C10: P.T./Student Assistants/Casual/Tutors | D10: 41695.95 | E10: 126585 | F10: 8766.2575 | G10: 0 | H10: 558.155 | I10: 0 | J10: 177605.3625 | K10: 187360.5084 | L10: 191107.3786 | M10: 177300 | N10: 129633 | O10: 132144 | P10: 126944
A11: 008 | C11: Counseling F.T./P.T. | D11: 420166.945 | E11: 0 | F11: 0 | G11: 0 | H11: 0 | I11: 0 | J11: 420166.945 | K11: 493417.8108 | L11: 507716.5206 | M11: 498581 | N11: 419378 | O11: 379620 | P11: 359707
A12: 099/199 | C12: Recoveries | D12: 0 | E12: 0 | F12: 0 | G12: 0 | H12: 0 | I12: 0 | J12: 0 | K12: 0 | L12: 0 | N12: -1733 | P12: -3598
A13: 100 | C13: Benefits | D13: 210099.4918 | E13: 30000 | F13: 50428.18276 | G13: 34779.39255 | H13: 35522.34858 | I13: 8088 | J13: 368917.4156 | K13: 429642.8319 | L13: 442744.8379 | M13: 378842 | N13: 359157 | O13: 363258 | P13: 446772
C14: SUB-TOTAL: SALARIES & BENEFITS: | D14: =SUM(D7:D13) -> 1339666.652 | E14: =SUM(E7:E13) -> 247325.92 | F14: 333732.5803 | G14: 218797.3426 | H14: 227535.0436 | I14: 115928 | J14: 2482985.538 | K14: 2577856.991 | L14: 2656469.028 | M14: 2542186 | N14: 2505501 | O14: 2587656 | P14: 3018265
A15: 201/02/06 | C15: Travel/Moving/Recruitment | D15: 7101.24 | E15: 2040 | F15: 25188.9 | G15: 2231.76 | H15: 70234.14 | I15: 3692.4 | J15: 110488.44 | K15: 112698.2088 | L15: 114952.173 | M15: 108322 | N15: 141673 | O15: 164500 | P15: 166908
A16: 204/05/10 | C16: Prof. Dev. Allowances | D16: 20000 | E16: 2000 | F16: 8000 | G16: 4000 | H16: 2000 | I16: 0 | J16: 36000 | K16: 36000 | L16: 36000 | M16: 36000 | N16: 36180 | O16: 32461 | P16: 35491
A17: 214 | C17: Student Travel Fund | D17: 0 | E17: 0 | F17: 0 | G17: 0 | H17: 0 | I17: 0 | J17: 0 | K17: 0 | L17: 0 | M17: 0 | O17: 12534 | P17: 7483
C18: SUB-TOTAL: TRAVEL & MOVING: | D18: =SUM(D15:D17) -> 27101.24 | E18: =SUM(E15:E17) -> 4040 | F18: 33188.9 | G18: 6231.76 | H18: 72234.14 | I18: 3692.4 | J18: 146488.44 | K18: 148698.2088 | L18: 150952.173 | M18: 144322 | N18: 177853 | O18: 209495 | P18: 209882
A19: 301 | C19: Advertising | D19: 616.08 | E19: 4000 | F19: 38354.04 | G19: 5202 | H19: 10612.08 | I19: 1230.12 | J19: 60014.32 | K19: 61214.6064 | L19: 62438.89853 | M19: 58916 | N19: 23290 | O19: 31951 | P19: 35835
A20: 302 | C20: Special Allowances | D20: 1267.86 | E20: 0 | F20: 0 | G20: 0 | H20: 5306.04 | I20: 0 | J20: 6573.9 | K20: 6705.378 | L20: 6839.48556 | M20: 6445 | N20: 15417 | O20: 5345 | P20: 3139
A21: 304 | C21: Consumables | D21: 4929.66 | E21: 3300 | F21: 4505.34 | G21: 5202 | H21: 2829.48 | I21: 922.08 | J21: 21688.56 | K21: 22122.3312 | L21: 22564.77782 | M21: 21327 | N21: 20474 | O21: 24116 | P21: 39980
A22: 305 | C22: Photocopying - Printing | D22: 1386.18 | E22: 2500 | F22: 11265.9 | G22: 520.2 | H22: 7389.9 | I22: 4616.52 | J22: 27678.7 | K22: 28232.274 | L22: 28796.91948 | M22: 27184 | N22: 21402 | O22: 27418 | P22: 42523
A23: 307 | C23: Membership Subscriptions | D23: 700.74 | E23: 800 | F23: 0 | G23: 0 | H23: 4832.76 | I23: 49.98 | J23: 6383.48 | K23: 6511.1496 | L23: 6641.372592 | M23: 6274 | N23: 6837 | O23: 5619 | P23: 8857
A24: 308 | C24: Postage | D24: 1475.94 | E24: 500 | F24: 4505.34 | G24: 62.22 | H24: 616.08 | I24: 1475.94 | J24: 8635.52 | K24: 8808.2304 | L24: 8984.395008 | M24: 8476 | N24: 4641 | O24: 6368 | P24: 21213
A25: 309 | C25: Telephone - Long Dist. | D25: 1724.82 | E25: 2200 | F25: 900.66 | G25: 780.3 | H25: 677.28 | I25: 369.24 | J25: 6652.3 | K25: 6785.346 | L25: 6921.05292 | M25: 6566 | N25: 7717 | O25: 6612 | P25: 6559
A26: 310 | C26: Telephone - Rental | D26: 5348.88 | E26: 700 | F26: 675.24 | G26: 1352.52 | H26: 369.24 | I26: 245.82 | J26: 8691.7 | K26: 8865.534 | L26: 9042.84468 | M26: 8535 | N26: 8524 | O26: 8426 | P26: 10964
A27: 311 | C27: Repairs & Maintenance | D27: 1230.12 | E27: 0 | F27: 0 | G27: 638.52 | H27: 245.82 | I27: 0 | J27: 2114.46 | K27: 2156.7492 | L27: 2199.884184 | M27: 2073 | N27: 5220 | O27: 877 | P27: 3940
A28: 312 | C28: Other Rentals | D28: 0 | E28: 0 | F28: 0 | G28: 260.1 | H28: 0 | I28: 0 | J28: 260.1 | K28: 265.302 | L28: 270.60804 | M28: 255 | N28: 6640 | O28: 5311 | P28: 12391
A29: 314 | C29: Consulting | D29: 0 | E29: 0 | F29: 0 | G29: 1560.6 | H29: 0 | I29: 0 | J29: 1560.6 | K29: 1591.812 | L29: 1623.64824 | M29: 1530 | N29: 3175
A30: 317 | C30: Special Functions | D30: 0 | E30: 0 | F30: 0 | G30: 0 | H30: 2768.28 | I30: 553.86 | J30: 3322.14 | K30: 3388.5828 | L30: 3456.354456 | M30: 3257 | N30: 2619 | O30: 2137 | P30: 5618
A31: 330 | C31: Food | D31: 0 | E31: 3600 | F31: 1592.22 | G31: 8323.2 | H31: 0 | I31: 0 | J31: 13515.42 | K31: 13785.7284 | L31: 14061.44297 | M31: 13321 | N31: 15264 | O31: 17178 | P31: 15766
A32: 335 | C32: Program Expenses | D32: 0 | E32: 6400 | F32: 0 | G32: 0 | H32: 0 | I32: 0 | J32: 6400 | K32: 6528 | L32: 6658.56 | M32: 6400 | N32: 5464 | O32: 6200 | P32: 6372
A33: 345 | C33: Staff Development | D33: 846.6 | E33: 4537 | F33: 245.82 | G33: 0 | H33: 431.46 | I33: 5166.3 | J33: 11227.18 | K33: 11451.7236 | L33: 11680.75807 | M33: 11097 | N33: 4395 | O33: 189 | P33: 5966
A34: 350 | C34: Student/Fall Orientation | D34: 0 | E34: 0 | F34: 18038.7 | G34: 1560.6 | H34: 0 | I34: 0 | J34: 19599.3 | K34: 19991.286 | L34: 20391.11172 | M34: 19215 | N34: 19943 | O34: 22409 | P34: 21269
A35: 354 | C35: Fax Expenses | D35: 1539.18 | E35: 0 | F35: 0 | G35: 104.04 | H35: 121.38 | I35: 369.24 | J35: 2133.84 | K35: 2176.5168 | L35: 2220.047136 | M35: 2092 | N35: 480 | O35: 480 | P35: 1512
A36: 358 | C36: Software Licensing | D36: 0 | E36: 0 | F36: 0 | G36: 0 | H36: 0 | I36: 0 | J36: 0 | K36: 0 | L36: 0 | N36: 178 | O36: 414 | P36: 51
A37: 369 | C37: Elders | D37: 0 | E37: 0 | F37: 0 | G37: 32160.6 | H37: 0 | I37: 0 | J37: 32160.6 | K37: 32803.812 | L37: 33459.88824 | M37: 31530 | O37: 2451 | P37: 2137
A38: 371 | C38: Comissions | N38: 238137
A39: 374 | C39: PLAR | D39: 0 | E39: 0 | F39: 0 | G39: 0 | H39: 0 | I39: 0 | J39: 0 | K39: 0 | L39: 0 | P39: 669
A40: 378 | C40: Spec alloc. (Career P&P, Recruiting, Counsellor's Day) | D40: 7536.78 | E40: 0 | F40: 9217.74 | G40: 3121.2 | H40: 1350.48 | I40: 0 | J40: 21226.2 | K40: 21650.724 | L40: 22083.73848 | M40: 20810 | N40: 50315 | O40: 33761 | P40: 40726
A41: 393 | C41: Equipment - furniture (under $1000) | D41: 502.86 | E41: 0 | F41: 0 | G41: 1612.62 | H41: 0 | I41: 4245.24 | J41: 6360.72 | K41: 6487.9344 | L41: 6617.693088 | M41: 6235 | N41: 5713 | O41: 13285 | P41: 8848
A42: 399 | C42: Recoveries | D42: 0 | E42: 0 | F42: 0 | G42: 0 | H42: 0 | I42: 0 | J42: 0 | K42: 0 | L42: 0 | P42: -4833
A43: 4xx | C43: Student Costs | D43: 0 | E43: 0 | F43: 0 | G43: 0 | H43: 0 | I43: -4450.26 | J43: -4450.26 | K43: -4539.2652 | L43: -4630.050504 | M43: -4363 | N43: -1108 | O43: 2457 | P43: 121
A44: 799 | C44: Interfund Transfers (from Ancillary) | D44: 0 | E44: -276747 | F44: 0 | G44: 0 | H44: 0 | I44: 0 | J44: -276747 | K44: -283994 | L44: -291457 | M44: -276747 | N44: -235083 | O44: -234864 | P44: -233161
A45: *** | C45: Unallocated | D45: 40575.6 | F45: 0 | G45: 0 | H45: 0 | I45: 0 | J45: 40575.6 | K45: 41387.112 | L45: 42214.85424 | M45: 39780
C46: SUB-TOTAL: SUPPLIES & OTHER EXPS: | D46: =SUM(D19:D45) -> 69681.3 | E46: =SUM(E19:E45) -> -248210 | F46: 89301 | G46: 62460.72 | H46: 37550.28 | I46: 14794.08 | J46: 25577.38 | K46: 24376.8676 | L46: 23081.28495 | M46: 20208 | N46: 229654 | O46: -11860 | P46: 56462
A47: 503 | C47: BUF Donations | D47: -2500 | E47: 0 | F47: 0 | G47: 0 | H47: 0 | I47: 0 | J47: -2500 | K47: -2500 | L47: -2500 | M47: -2500 | N47: -5392 | O47: -3810 | P47: -2600
A48: 5xx | C48: Revenues | D48: 0 | E48: 0 | F48: 0 | G48: 0 | H48: 0 | I48: -210625 | J48: -210625 | K48: -210625 | L48: -210625 | M48: -210625 | N48: -448251 | O48: -322794 | P48: -235280
C49: SUB-TOTAL: REVENUES | D49: =SUM(D47:D48) -> -2500 | E49: =SUM(E47:E48) -> 0 | F49: 0 | G49: 0 | H49: 0 | I49: -210625 | J49: -213125 | K49: -213125 | L49: -213125 | M49: -213125 | N49: -453643 | O49: -326604 | P49: -237880
A50: 901 | C50: Equipment purchases | D50: 10240.8 | E50: 0 | F50: 0 | G50: 0 | H50: 5742.6 | I50: 0 | J50: 15983.4 | K50: 15983.4 | L50: 15983.4 | M50: 15670 | N50: 1289 | O50: 9765 | P50: 3257
C51: SUB-TOTAL: EQUIPMENT: | D51: =SUM(D50) -> 10240.8 | E51: =SUM(E50) -> 0 | F51: 0 | G51: 0 | H51: 5742.6 | I51: 0 | J51: 15983.4 | K51: 15983.4 | L51: 15983.4 | M51: 15670 | N51: 1289 | O51: 9765 | P51: 3257
C52: ANNUAL BUDGET: | D52: =+D51+D49+D46+D18+D14 -> 1444189.992 | E52: =+E51+E49+E46+E18+E14 -> 3155.92 | F52: 456222.4803 | G52: 287489.8226 | H52: 343062.0636 | I52: -76210.52 | J52: 2457909.758 | K52: 2553790.468 | L52: 2633360.886 | M52: 2509261 | N52: 2460654 | O52: 2468452 | P52: 3049986

Sheet Registrar
C1: BRANDON UNIVERSITY ** UNIVERSITY REGISTRAR**
C2: REFERENCE BUDGET
C3: APRIL 2019 TO MARCH 2020
D4: 5501 | E4: 5502 | F4: 5503 | G4: 5505 | H4: 2019/20 | I4: 2020/21 | J4: 2021/22 | K4: 2018/19
D5: REG. | E5: ADMISS. | F5: SENATE | G5: CONVOC | H5: REF'NCE | I5: PROJ. | J5: PROJ. | K5: APPROVED | L5: 2017-18 | M5: 2016-17
C6: EXPENDITURE: | D6: OFFICE | H6: BUDGET | I6: BUDGET | J6: BUDGET | K6: BUDGET | L6: ACTUAL | M6: ACTUAL
A7: 001 | C7: Acad./Sabb/I.A. | D7: 19776 | E7: 104809 | G7: 0 | H7: 124585 | I7: 127013.8138 | J7: 130443.8075 | K7: 126945 | L7: 121545 | M7: 119619
A8: 003 | C8: F.T. Support | D8: 377691.89 | E8: 110420.975 | F8: 61415.2 | G8: 0 | H8: 549528.065 | I8: 558913.0706 | J8: 568571.39 | K8: 531073 | L8: 500562 | M8: 430767
A9: 004 | C9: P.T. Support | D9: 0 | E9: 0 | G9: 0 | H9: 0 | I9: 0 | J9: 0
A10: 005 | C10: P.T./Student Assistants/Casual | D10: 6264.635 | E10: 0 | G10: 381.8425 | H10: 6646.4775 | I10: 6712.942275 | J10: 6847.201121 | K10: 6597 | L10: 2552 | M10: 1435
A11: 099/199 | C11: Recoveries | D11: 0 | E11: 0 | G11: 0 | H11: 0 | I11: 0 | J11: 0 | L11: -2025 | M11: -1547
A12: 100 | C12: Benefits | D12: 81553.97005 | E12: 43906.9149 | G12: 17.1829125 | H12: 125478.0679 | I12: 141991.1645 | J12: 144701.7917 | K12: 122517 | L12: 122238 | M12: 110294
C13: SUB-TOTAL: SALARIES & BENEFITS: | D13: =SUM(D7:D12) -> 485286.4951 | E13: =SUM(E7:E12) -> 259136.8899 | F13: 61415.2 | G13: 399.0254125 | H13: 806237.6104 | I13: 834630.9911 | J13: 850564.1903 | K13: 787132 | L13: 744872 | M13: 660568
A14: 201/02/06 | C14: Travel/Moving/Recruitment | D14: 510 | E14: 306 | G14: 6120 | H14: 6936 | I14: 6936 | J14: 6936 | K14: 6799 | L14: 573 | M14: 2946
A15: 204/05/10 | C15: Prof. Dev. Allowances | D15: 2500 | E15: 2000 | G15: 0 | H15: 4500 | I15: 4500 | J15: 4500 | K15: 4500 | L15: 2695 | M15: 2000
A16: 214 | C16: Student Travel Fund | D16: 0 | E16: 0 | G16: 0 | H16: 0 | I16: 0 | J16: 0
A17: 299 | C17: Recoveries | D17: 0 | E17: 0 | G17: 0 | H17: 0 | I17: 0 | J17: 0
C18: SUB-TOTAL: TRAVEL & MOVING: | D18: =SUM(D14:D17) -> 3010 | E18: =SUM(E14:E17) -> 2306 | F18: 0 | G18: 6120 | H18: 11436 | I18: 11436 | J18: 11436 | K18: 11299 | L18: 3268 | M18: 4946
A19: 301 | C19: Advertising | D19: 0 | E19: 0 | G19: 408 | H19: 408 | I19: 408 | J19: 408 | K19: 400
A20: 302 | C20: Special Allowances | D20: 0 | E20: 0 | G20: 930.24 | H20: 930.24 | I20: 930.24 | J20: 930.24 | K20: 912 | L20: 3104 | M20: 1384
A21: 304 | C21: Consumables | D21: 2040 | E21: 1530 | F21: 765 | G21: 7140 | H21: 11475 | I21: 11475 | J21: 11475 | K21: 11251 | L21: 12451 | M21: 12501
A22: 305 | C22: Photocopying - Printing | D22: 4080 | E22: 6630 | F22: 2040 | G22: 6630 | H22: 19380 | I22: 19380 | J22: 19380 | K22: 19002 | L22: 11806 | M22: 15316
A23: 307 | C23: Membership Subscriptions | D23: 510 | E23: 0 | G23: 0 | H23: 510 | I23: 510 | J23: 510 | K23: 500 | L23: 494 | M23: 490
A24: 308 | C24: Postage | D24: 1275 | E24: 10200 | F24: 255 | G24: 1632 | H24: 13362 | I24: 13362 | J24: 13362 | K24: 13100 | L24: 6425 | M24: 11644
A25: 309 | C25: Telephone - Long Dist. | D25: 510 | E25: 102 | F25: 255 | G25: 0 | H25: 867 | I25: 867 | J25: 867 | K25: 850 | L25: 884 | M25: 706
A26: 310 | C26: Telephone - Rental | D26: 1845.18 | E26: 1683 | F26: 622.2 | G26: 0 | H26: 4150.38 | I26: 4150.38 | J26: 4150.38 | K26: 4070 | L26: 3371 | M26: 2953
A27: 311 | C27: Repairs & Maintenance | D27: 127.5 | E27: 0 | F27: 51 | G27: 0 | H27: 178.5 | I27: 178.5 | J27: 178.5 | K27: 175 | L27: 82 | M27: 47
A28: 312 | C28: Other Rentals | D28: 0 | E28: 0 | G28: 6120 | H28: 6120 | I28: 6120 | J28: 6120 | K28: 6000 | L28: 7308 | M28: 6588
A29: 314 | C29: Consulting | D29: 0 | E29: 0 | G29: 0 | H29: 0 | I29: 0 | J29: 0
A30: 317 | C30: Special Functions | D30: 0 | E30: 0 | G30: 6120 | H30: 6120 | I30: 6120 | J30: 6120 | K30: 6000 | L30: 632 | M30: 5969
A31: 318 | C31: Promotion & Recruitment | H31: 0 | I31: 0 | J31: 0 | L31: 5904
A32: 326 | C32: Service Contracts | D32: 0 | E32: 0 | G32: 1530 | H32: 1530 | I32: 1530 | J32: 1530 | K32: 1500
A33: 330 | C33: Food | D33: 510 | E33: 0 | F33: 306 | G33: 4090.2 | H33: 4906.2 | I33: 4906.2 | J33: 4906.2 | K33: 4809 | L33: 4713 | M33: 4726
A34: 345 | C34: Staff Development | D34: 520.2 | E34: 0 | G34: 0 | H34: 520.2 | I34: 520.2 | J34: 520.2 | K34: 510 | L34: 632
A35: 354 | C35: Fax Expenses | D35: 1020 | E35: 510 | G35: 0 | H35: 1530 | I35: 1530 | J35: 1530 | K35: 1499 | L35: 881 | M35: 959
A36: 358 | C36: Software Licensing | D36: 0 | E36: 0 | G36: 0 | H36: 0 | I36: 0 | J36: 0 | L36: 128 | M36: 475
A37: 369 | C37: Elders | D37: 0 | E37: 0 | G37: 0 | H37: 0 | I37: 0 | J37: 0
A38: 374 | C38: PLAR | D38: 1530 | E38: 0 | G38: 0 | H38: 1530 | I38: 1530 | J38: 1530 | K38: 1500 | L38: 519 | M38: 907
A39: 388 | C39: Credit Card Collection Fee | D39: 832.32 | E39: 0 | H39: 832.32 | I39: 832.32 | J39: 832.32 | K39: 816
A40: 393 | C40: Equipment - furniture (under $1000) | D40: 0 | E40: 0 | G40: 0 | H40: 0 | I40: 0 | J40: 0 | L40: 4435 | M40: 1357
A41: 399 | C41: Recoveries | D41: -2500 | E41: 0 | G41: 0 | H41: -2500 | I41: -2500 | J41: -2500 | K41: -2500 | L41: -2622 | M41: -2602
A42: *** | C42: Unallocated | D42: 0 | E42: 0 | G42: 0 | H42: 0 | I42: 0 | J42: 0
C43: SUB-TOTAL: SUPPLIES & OTHER EXPS: | D43: =SUM(D19:D42) -> 12300.2 | E43: =SUM(E19:E42) -> 20655 | F43: 4294.2 | G43: 34600.44 | H43: 71849.84 | I43: 71849.84 | J43: 71849.84 | K43: 70394 | L43: 61147 | M43: 63420
A44: 507 | C44: Program Revenue | D44: -8800 | E44: 0 | G44: 0 | H44: -8800 | I44: -8800 | J44: -8800 | K44: -8800 | L44: -13670 | M44: -4162
A45: 510 | C45: Other Revenue | D45: -6250 | E45: 0 | G45: 0 | H45: -6250 | I45: -6250 | J45: -6250 | K45: -6250 | L45: -10565 | M45: -4162
A46: 531 | C46: Document Evaluation/LOP | D46: -6250 | E46: 0 | G46: 0 | H46: -6250 | I46: -6250 | J46: -6250 | K46: -6250 | L46: -10087 | M46: -4162
C47: SUB-TOTAL: REVENUES | D47: =SUM(D44:D46) -> -21300 | E47: =SUM(E44:E46) -> 0 | F47: 0 | G47: 0 | H47: -21300 | I47: -21300 | J47: -21300 | K47: -21300 | L47: -34322 | M47: -12486
A48: 901 | C48: Equipment purchases | D48: 0 | E48: 0 | G48: 0 | H48: 0 | I48: 0 | J48: 0
C49: SUB-TOTAL: EQUIPMENT: | D49: =SUM(D48) -> 0 | E49: =SUM(E48) -> 0 | F49: 0 | G49: 0 | H49: 0 | I49: 0 | J49: 0 | K49: 0 | L49: 0 | M49: 0
C50: ANNUAL BUDGET: | D50: =+D49+D47+D43+D18+D13 -> 479296.6951 | E50: =+E49+E47+E43+E18+E13 -> 282097.8899 | F50: 65709.4 | G50: 41119.46541 | H50: 868223.4504 | I50: 896616.8311 | J50: 912550.0303 | K50: 847525 | L50: 774965 | M50: 716448

Sheet Athletics
C1: BRANDON UNIVERSITY ** ATHLETICS **
C2: REFERENCE BUDGET
C3: APRIL 2019 TO MARCH 2020
E4: 5401 | F4: 5402 | G4: 5403 | H4: 5404 | I4: 5405 | J4: 5406 | K4: 5407 | L4: 2019/20 | P4: 2020/21 | Q4: 2021/22 | R4: 2018/19
J5: ATHLETIC | L5: REF'NCE | M5: ADMIN | N5: LEAGUE | O5: FUND | P5: PROJ. | Q5: PROJ. | R5: APPROVED | S5: 2017-18 | T5: 2016-17 | U5: 2015-16
C6: EXPENDITURE: | E6: ADMIN | F6: M.B.B. | G6: W.B.B | H6: M.V.B | I6: W.V.B. | J6: THERAPY | K6: CANTEEN | L6: BUDGET | N6: PLAY | O6: RAISING | P6: BUDGET | Q6: BUDGET | R6: BUDGET | S6: ACTUAL | T6: ACTUAL | U6: ACTUAL
A7: 001 | C7: Director/Coaches/Therapist | E7: 89198.7899 | F7: 38606 | G7: 61595.3973 | H7: 69172 | I7: 69193 | J7: 54846.485 | K7: 0 | L7: =SUM(E7:K7) -> 382611.6722 | M7: 382611.6722 | P7: 387870.4578 | Q7: 396143.4476 | R7: 407383 | S7: 417704 | T7: 357428 | U7: 346905
A8: 002 | C8: Sessionals | J8: -6205 | L8: =SUM(E8:K8) -> -6205 | M8: -6205 | P8: -6205 | Q8: -6204.5375 | R8: -6205
A9: 003 | C9: Support | E9: 122744.345 | F9: 0 | G9: 0 | H9: 0 | I9: 0 | J9: 0 | K9: 0 | L9: 122744.345 | M9: 110460.345 | O9: 12284 | P9: 125199.2319 | Q9: 126201.5897 | R9: 115204 | S9: 112132 | T9: 117081 | U9: 99750
A10: 004 | C10: Game Management salaries | E10: 15000 | F10: 0 | G10: 0 | H10: 0 | I10: 0 | J10: 0 | K10: 10000 | L10: 25000 | N10: 15000 | O10: 10000 | P10: 25000 | Q10: 25000 | R10: 25000 | S10: 26101 | T10: 17465 | U10: 17447
A11: 005 | C11: Student Assistants | E11: 0 | F11: 2050 | G11: 2050 | H11: 2050 | I11: 2050 | J11: 3500 | K11: 15000 | L11: 26700 | O11: 26700 | P11: 26700 | Q11: 26700 | R11: 26700 | S11: 44427 | T11: 30151 | U11: 34177
A12: 006 | C12: Assist. Coaches/Soccer Coaches | E12: 18411 | F12: 3500 | G12: 3500 | H12: 3500 | I12: 3500 | J12: 0 | K12: 0 | L12: 32411 | N12: 32411 | P12: 32411 | Q12: 32411 | R12: 32411 | S12: 9010 | T12: 20806 | U12: 20436
A13: 007 | C13: Major/Minor Officials | E13: 0 | F13: 3000 | G13: 3000 | H13: 3000 | I13: 3000 | J13: 0 | K13: 0 | L13: 12000 | N13: 12000 | P13: 12000 | Q13: 12000 | R13: 12000 | S13: 7726 | T13: 6531 | U13: 6798
A14: 1XX | C14: Benefits | E14: 41328.91131 | F14: 8184.472 | G14: 10101.64516 | H14: 12312.616 | I14: 11970.389 | J14: 10311.13918 | K14: 0 | L14: 94209.17264 | M14: 94209.17264 | P14: 120595.1379 | Q14: 122450.3 | R14: 97265 | S14: 106546 | T14: 93336 | U14: 85107
C15: SUB-TOTAL: SALARIES & BENEFITS: | E15: =SUM(E7:E14) -> 286683.0462 | F15: =SUM(F7:F14) -> 55340.472 | G15: 80247.04246 | H15: 90034.616 | I15: 89713.389 | J15: 62452.62418 | K15: 25000 | L15: 689471.1898 | M15: 581076.1898 | N15: 59411 | O15: 48984 | P15: 723570.8277 | Q15: 734701.7998 | R15: 709758 | S15: 723646 | T15: 642798 | U15: 610620
A16: 203 | C16: League travel | E16: 0 | F16: 52770.72 | G16: 52770.72 | H16: 65357.52 | I16: 65357.52 | J16: 0 | K16: 0 | L16: 236256.48 | N16: 236256.48 | P16: 240981.6096 | Q16: 245801.2418 | R16: 231626 | S16: 226916 | T16: 211929 | U16: 246809
A17: 206 | C17: Recruitment staff | E17: 0 | F17: 0 | G17: 0 | H17: 0 | I17: 0 | J17: 0 | K17: 0 | L17: 0 | M17: 0 | P17: 0 | Q17: 0 | U17: 568
A18: 211 | C18: Exhibition travel | E18: 0 | F18: 10000 | G18: 10000 | H18: 10000 | I18: 10000 | J18: 0 | K18: 0 | L18: 40000 | O18: 40000 | P18: 40800 | Q18: 41616 | R18: 40000 | S18: 64264 | T18: 91319 | U18: 71478
A19: 201 | C19: Departmental travel | E19: 16730.04 | F19: 0 | G19: 0 | H19: 0 | I19: 0 | J19: 0 | K19: 0 | L19: 16730.04 | M19: 16730.04 | P19: 17064.6408 | Q19: 17405.93362 | R19: 16402 | S19: 15983 | T19: 16083 | U19: 9087
A20: 221 | C20: Playoff Travel | E20: 0 | F20: 0 | G20: 0 | H20: 0 | I20: 0 | J20: 0 | K20: 0 | L20: 0 | P20: 0 | Q20: 0 | S20: 16233 | T20: 33651 | U20: 11285
A21: 231 | C21: Recruitment travel | E21: 0 | F21: 6756.48 | G21: 6756.48 | H21: 6756.48 | I21: 6756.48 | J21: 0 | K21: 0 | L21: 27025.92 | M21: 27025.92 | P21: 27566.4384 | Q21: 28117.76717 | R21: 26496 | S21: 21385 | T21: 25560 | U21: 19315
C22: SUB-TOTAL: TRAVEL & MOVING: | E22: =SUM(E16:E21) -> 16730.04 | F22: =SUM(F16:F21) -> 69527.2 | G22: 69527.2 | H22: 82114 | I22: 82114 | J22: 0 | K22: 0 | L22: 320012.44 | M22: 43755.96 | N22: 236256.48 | O22: 40000 | P22: 326412.6888 | Q22: 332940.9426 | R22: 314524 | S22: 344781 | T22: 378542 | U22: 358542
A23: 301 | C23: Advertising | E23: 17417.52 | F23: 0 | G23: 0 | H23: 0 | I23: 0 | J23: 0 | K23: 0 | L23: 17417.52 | M23: 17417.52 | P23: 17765.8704 | Q23: 18121.18781 | R23: 17076 | S23: 20175 | T23: 22143 | U23: 17382
A24: 304 | C24: Consumables | E24: 12484.8 | F24: 5686.5 | G24: 5686.5 | H24: 5686.5 | I24: 5686.5 | J24: 7179.78 | K24: 0 | L24: 42410.58 | M24: 42410.58 | P24: 43258.7916 | Q24: 44123.96743 | R24: 41580 | S24: 72680 | T24: 53587 | U24: 60714
A25: 305 | C25: Photocopying - Printing | E25: 1148.52 | F25: 228.48 | G25: 228.48 | H25: 228.48 | I25: 228.48 | J25: 228.48 | K25: 0 | L25: 2290.92 | M25: 2290.92 | P25: 2336.7384 | Q25: 2383.473168 | R25: 2248 | S25: 4186 | T25: 4803 | U25: 5974
A26: 307 | C26: Memberships/subscriptions | E26: 456.96 | F26: 592.62 | G26: 592.62 | H26: 592.62 | I26: 592.62 | J26: 0 | K26: 0 | L26: 2827.44 | M26: 2827.44 | P26: 2883.9888 | Q26: 2941.668576 | R26: 2773 | S26: 1012 | T26: 2994 | U26: 4288
A27: 308 | C27: Postage | E27: 416.16 | F27: 0 | G27: 0 | H27: 0 | I27: 0 | J27: 0 | K27: 0 | L27: 416.16 | M27: 416.16 | P27: 424.4832 | Q27: 432.972864 | R27: 408 | S27: 530 | T27: 420 | U27: 521
A28: 309 | C28: Telephone - LD | E28: 2913.12 | F28: 1494.3 | G28: 1494.3 | H28: 1494.3 | I28: 1494.3 | J28: 74.46 | K28: 0 | L28: 8964.78 | M28: 8964.78 | P28: 9144.0756 | Q28: 9326.957112 | R28: 8788 | S28: 9122 | T28: 8348 | U28: 8422
A29: 310 | C29: Telephone - Rental | E29: 1052.64 | F29: 700.74 | G29: 350.88 | H29: 350.88 | I29: 350.88 | J29: 350.88 | K29: 0 | L29: 3156.9 | M29: 3156.9 | P29: 3220.038 | Q29: 3284.43876 | R29: 3095 | S29: 3470 | T29: 3444 | U29: 3205
A30: 311 | C30: Repairs & Maintenance | E30: 803.76 | F30: 0 | G30: 0 | H30: 0 | I30: 0 | J30: 0 | K30: 0 | L30: 803.76 | M30: 803.76 | P30: 819.8352 | Q30: 836.231904 | R30: 788 | S30: 684 | U30: 3165
A31: 314 | C31: Consulting | E31: 0 | F31: 2080.8 | G31: 2080.8 | H31: 2080.8 | I31: 2080.8 | J31: 0 | K31: 0 | L31: 8323.2 | M31: 8323.2 | P31: 8489.664 | Q31: 8659.45728 | R31: 8160 | S31: 11665 | T31: 11570 | U31: 3941
A32: 317 | C32: Athl Direct. Mtgs./News Conf. | E32: 0 | F32: 0 | G32: 0 | H32: 0 | I32: 0 | J32: 0 | K32: 0 | L32: 0 | M32: 0 | P32: 0 | Q32: 0 | R32: 0
A33: 321 | C33: Insurance | E33: 0 | F33: 0 | G33: 0 | H33: 0 | I33: 0 | J33: 401.88 | K33: 0 | L33: 401.88 | M33: 401.88 | P33: 409.9176 | Q33: 418.115952 | R33: 394 | S33: 102 | T33: 187 | U33: 181
A34: 328 | C34: Provision Account* | E34: 2080.8 | F34: 0 | G34: 0 | H34: 0 | I34: 0 | J34: 0 | K34: 0 | L34: 2080.8 | O34: 2080.8 | P34: 2122.416 | Q34: 2164.86432 | R34: 2040 | S34: 33683 | T34: 11500 | U34: -46995
A35: 357 | C35: Software | E35: 2601 | F35: 0 | G35: 0 | H35: 0 | I35: 0 | J35: 0 | K35: 0 | L35: 2601 | M35: 2601 | P35: 2653.02 | Q35: 2706.0804 | R35: 2550 | S35: 2338 | T35: 2688 | U35: 1366
A36: 354 | C36: Fax expenses | E36: 260.1 | F36: 0 | G36: 0 | H36: 0 | I36: 0 | J36: 0 | K36: 0 | L36: 260.1 | M36: 260.1 | P36: 265.302 | Q36: 270.60804 | R36: 255
A37: 378 | C37: Special allocations | E37: 5364.18 | F37: 0 | G37: 0 | H37: 0 | I37: 0 | J37: 0 | K37: 0 | L37: 5364.18 | O37: 5364.18 | P37: 5471.4636 | Q37: 5580.892872 | R37: 5259 | S37: 14239 | T37: 2873 | U37: 3689
A38: 393 | C38: Equipment <$1000 | E38: 1148.52 | F38: 0 | G38: 0 | H38: 0 | I38: 0 | J38: 0 | K38: 0 | L38: 1148.52 | M38: 1148.52 | P38: 1171.4904 | Q38: 1194.920208 | R38: 1126 | S38: 6649 | T38: 2760 | U38: 11322
A39: 399 | C39: Recoveries | E39: 0 | F39: 0 | G39: 0 | H39: 0 | I39: 0 | J39: 0 | K39: 0 | L39: 0 | M39: 0 | P39: 0 | Q39: 0
A40: *** | C40: Unallocated | F40: 0 | G40: 0 | H40: 0 | I40: 0 | J40: 0 | K40: 0 | L40: 0 | M40: 0 | P40: 0 | Q40: 0
C41: SUB-TOTAL: SUPPLIES & OTHER EXPS: | E41: =SUM(E23:E40) -> 48148.08 | F41: =SUM(F23:F40) -> 10783.44 | G41: 10433.58 | H41: 10433.58 | I41: 10433.58 | J41: 8235.48 | K41: 0 | L41: 98467.74 | M41: 91022.76 | N41: 0 | O41: 7444.98 | P41: 100437.0948 | Q41: 102445.8367 | R41: 96540 | S41: 180535 | T41: 127317 | U41: 77175
A42: 402 | C42: Merchandise Expsne | L42: 0 | S42: 24796
A43: 502 | C43: Merchandise - revenues | E43: -3850 | L43: -3850 | O43: -3850 | P43: -3850 | Q43: -3850 | R43: -3850 | S43: -13142 | T43: -3522 | U43: 3062
A44: 403 | C44: Scholarships | E44: 21211.92 | L44: 21211.92 | O44: 21211.92 | P44: 21211.92 | Q44: 21211.92 | R44: 20796 | U44: 14750
A45: 503 | C45: BUF Donations | E45: 0 | L45: 0 | O45: 0 | P45: 0 | Q45: 0
A46: 405 | C46: Bingo - expenses | E46: 0 | L46: 0 | O46: 0 | P46: 0 | Q46: 0 | R46: 0
A47: 505 | C47: Bingo - revenues | E47: -14905 | L47: -14905 | O47: -14905 | P47: -14905 | Q47: -14905 | R47: -14905 | S47: -14905 | T47: -15000 | U47: -10507
A48: 406 | C48: CIS/CW playoff - expenses | E48: 3081.42 | L48: 3081.42 | N48: 3081.42 | P48: 3081.42 | Q48: 3081.42 | R48: 3021
A49: 506 | C49: CIS/CW playoff - revenues | E49: -14227.98 | L49: -14227.98 | N49: -14227.98 | P49: -14227.98 | Q49: -14227.98 | R49: -13949
A50: 407 | C50: Hall of Fame - expenses | E50: 3500 | L50: 3500 | O50: 3500 | P50: 3500 | Q50: 3500 | R50: 3500 | S50: 18539 | T50: 19069 | U50: 7226
A51: 507 | C51: Hall of Fame - revenues | E51: -2500 | L51: -2500 | O51: -2500 | P51: -2500 | Q51: -2500 | R51: -2500 | S51: -16280 | T51: -12176 | U51: -3343
A52: 408 | C52: Awards banquet - expenses | E52: 10404 | L52: 10404 | M52: 10404 | P52: 10404 | Q52: 10404 | R52: 10200 | S52: 11648 | T52: 11692 | U52: 5097
A53: 508 | C53: Awards banquet -revenues | E53: -1352.52 | L53: -1352.52 | M53: -1352.52 | P53: -1352.52 | Q53: -1352.52 | R53: -1326 | S53: -1613 | T53: -4230 | U53: -928
A54: 409 | C54: Parent/Alumni Receptions | E54: 2080.8 | L54: 2080.8 | M54: 2080.8 | P54: 2080.8 | Q54: 2080.8 | R54: 2040 | U54: 661
A55: 410 | C55: Sp/Su League & Camp Expenses | E55: 0 | G55: 0 | J55: 0 | K55: 0 | L55: 0 | O55: 0 | P55: 0 | Q55: 0 | R55: 0
A56: 510 | C56: Sp/Su League & Camp revenues | G56: 0 | K56: 0 | L56: 0 | O56: 0 | P56: 0 | Q56: 0 | R56: 0
A57: 510 | C57: Misc. Revenue | L57: 0 | S57: -2081
A58: 412 | C58: August Sport Camp Expense | E58: 1000 | F58: 1600 | G58: 1600 | H58: 1600 | I58: 1600 | L58: 7400 | O58: 7400 | P58: 7400 | Q58: 7400 | R58: 7400 | S58: 15975 | T58: 21897 | U58: 11524
A59: 512 | C59: August Sport Camp Revenues | E59: 0 | F59: -6038 | G59: -6038 | H59: -6038 | I59: -6038 | L59: -24152 | O59: -24152 | P59: -24152 | Q59: -24152 | R59: -24152 | S59: -48430 | T59: -47065 | U59: -44303
A60: 415 | C60: General CIS Expenses | E60: 19247.4 | L60: 19247.4 | N60: 19247.4 | P60: 19247.4 | Q60: 19247.4 | R60: 18870 | S60: 22045 | T60: 22022 | U60: 17387
A61: 416 | C61: General CW Expenses | E61: 87532.32 | L61: 87532.32 | N61: 87532.32 | P61: 87532.32 | Q61: 87532.32 | R61: 85816 | S61: 78003 | T61: 77893 | U61: 77451
A62: 419 | C62: VB High School Tourney - expense | E62: 0 | L62: 0 | O62: 0 | P62: 0 | Q62: 0 | R62: 0
A63: 519 | C63: VB High School Tourney - revenue | E63: 0 | L63: 0 | O63: 0 | P63: 0 | Q63: 0 | R63: 0
A64: 420 | C64: VB Coach Clinic - expense | E64: 0 | L64: 0 | O64: 0 | P64: 0 | Q64: 0 | R64: 0
A65: 520 | C65: VB Coach Clinic - revenue | E65: 0 | L65: 0 | O65: 0 | P65: 0 | Q65: 0 | R65: 0
A66: 421 | C66: Recruitment application fees | E66: 0 | L66: 0 | O66: 0 | P66: 0 | Q66: 0 | R66: 0
A67: 421 | C67: VB Club - expense | E67: 0 | L67: 0 | O67: 0 | P67: 0 | Q67: 0 | R67: 0
A68: 521 | C68: VB Club - revenue | E68: 0 | L68: 0 | O68: 0 | P68: 0 | Q68: 0 | R68: 0
A69: 515 | C69: Inter-Department Transfers | E69: 17000 | L69: 17000 | O69: 17000 | P69: 17000 | Q69: 17000 | R69: 17000 | S69: 10058
A70: 422 | C70: Bobcat Den liqour - expenses | K70: 10000 | L70: 10000 | O70: 10000 | P70: 10000 | Q70: 10000 | R70: 10000 | S70: 15706 | T70: 13642 | U70: 12451
A71: 522 | C71: Bobcat Den liqour - revenues | K71: -25000 | L71: -25000 | O71: -25000 | P71: -25000 | Q71: -25000 | R71: -25000 | S71: -27621 | T71: -28878 | U71: -28864
A72: 423 | C72: Bobcat Den snack - expenses | K72: 30200 | L72: =SUM(E72:K72) -> 30200 | O72: 30200 | P72: 30200 | Q72: 30200 | R72: 30200 | S72: 40284 | T72: 38621 | U72: 26586
A73: 523 | C73: Bobcat Den snack - revenues | K73: -45200 | L73: -45200 | O73: -45200 | P73: -45200 | Q73: -45200 | R73: -45200 | S73: -61999 | T73: -54131 | U73: -36068
A74: 424 | C74: Bobcat Nation - expenses | E74: 1000 | L74: 1000 | O74: 1000 | P74: 1000 | Q74: 1000 | R74: 1000 | T74: 667 | U74: 661
A75: 524 | C75: Bobcat Nation Kids Club - revenues | E75: -300 | L75: -300 | O75: -300 | P75: -300 | Q75: -300 | R75: -300 | S75: -750 | T75: -680 | U75: -590
A76: 425 | C76: Fundraising - expense | E76: 1000 | L76: 1000 | O76: 1000 | P76: 1000 | Q76: 1000 | R76: 1000 | S76: 20777 | T76: 25924 | U76: 25836
A77: 525 | C77: Fundraising - revenue | E77: -2028 | L77: -2028 | O77: -2028 | P77: -2028 | Q77: -2028 | R77: -2028 | S77: -68623 | T77: -71072 | U77: -60713
A78: 426 | C78: Men's Soccer | E78: 15000 | L78: 15000 | N78: 15000 | P78: 15000 | Q78: 15000 | R78: 15000 | S78: 30014 | T78: 18507 | U78: 12551
A79: 427 | C79: Women's Soccer | E79: 15000 | L79: 15000 | N79: 15000 | P79: 15000 | Q79: 15000 | R79: 15000 | S79: 28587 | T79: 24348 | U79: 13567
A80: 526 | C80: Soccer - revenue | E80: 0 | L80: 0 | N80: 0 | P80: 0 | Q80: 0 | S80: -8203 | T80: -5596 | U80: -1957
A81: 428 | C81: Cheerleading - expense | E81: 1500 | L81: 1500 | O81: 1500 | P81: 1500 | Q81: 1500 | R81: 1500 | S81: 790 | U81: 1540
A82: 429 | C82: Curling - expense | E82: 1500 | L82: 1500 | O82: 1500 | P82: 1500 | Q82: 1500 | R82: 1500 | S82: 88 | T82: 4089 | U82: 6979
A83: 529 | C83: Curling - revenue | E83: 0 | L83: 0 | O83: 0 | P83: 0 | Q83: 0 | T83: -4166 | U83: -4844
A84: 430 | C84: Game Management - expense | E84: 12641.88 | L84: 12641.88 | N84: 12641.88 | P84: 12641.88 | Q84: 12641.88 | R84: 12394 | S84: 13949 | T84: 37174.61 | U84: 12056
A85: 530 | C85: Game Mgmnt - revenues (gate) | E85: -27110.58 | L85: -27110.58 | N85: -27110.58 | P85: -27110.58 | Q85: -27110.58 | R85: -26579 | S85: -30428 | T85: -27394 | U85: -25227
A86: 531 | C86: Season Ticket - revenue | E86: -14000 | L86: -14000 | N86: -14000 | P86: -14000 | Q86: -14000 | R86: -14000 | S86: -9167 | T86: -8936 | U86: -7715
A87: 432 | C87: Raffle - expenses | E87: 1000 | L87: 1000 | O87: 1000 | P87: 1000 | Q87: 1000 | R87: 1000 | S87: 6778 | T87: 16426 | U87: 538
A88: 532 | C88: Raffle - revenues | E88: 0 | L88: 0 | O88: 0 | P88: 0 | Q88: 0 | S88: -11690 | T88: -16426 | U88: -8337
A89: 533 | C89: Sport Manitoba | E89: -37740 | L89: -37740 | M89: -37740 | P89: -37740 | Q89: -37740 | R89: -37740 | S89: -38650 | T89: -38180 | U89: -36115
A90: 534 | C90: Raffle Prize Payout | L90: 0 | S90: 4912
A91: 435 | C91: VIP Groups | L91: 0 | S91: 4501
A92: 535 | C92: VIP Groups | L92: 0 | S92: -3190
A93: 500 | C93: Athletic Therapy - revenues | E93: 0 | J93: -2500 | L93: -2500 | M93: -2500 | P93: -2500 | Q93: -2500 | R93: -2500 | S93: -6923 | T93: -2595 | U93: -9835
A94: 438 | C94: Guarantees paid | E94: 0 | L94: 0 | P94: 0 | Q94: 0 | S94: 5855 | T94: 1400 | U94: 3500
A95: 538 | C95: Guarantees received in cash | E95: 0 | L95: 0 | O95: 0 | P95: 0 | Q95: 0 | S95: -10521 | T95: -11097 | U95: -4469
A96: 439 | C96: Sponsorship Expenses | E96: 5000 | L96: 5000 | O96: 5000 | P96: 5000 | Q96: 5000 | R96: 5000 | S96: 7518 | T96: 7075 | U96: 2635
A97: 539 | C97: Sponsorship - revenues | E97: -76978 | L97: -76978 | O97: -76978 | P97: -76978 | Q97: -76978 | R97: -76978 | S97: -105180 | T97: -101799 | U97: -77525
A98: 570 | C98: Employment grant | E98: 0 | L98: 0 | P98: 0 | Q98: 0
C99: SUBTOTAL OTHER PGM REV/EXP | E99: =SUM(E42:E98) -> 23707.66 | F99: =SUM(F42:F98) -> -4438 | G99: -4438 | H99: -4438 | I99: -4438 | J99: -2500 | K99: -30000 | L99: -26544.34 | M99: -29107.72 | N99: 97164.46 | O99: -94601.08 | P99: -26544.34 | Q99: -26544.34 | R99: -28770 | S99: -118573 | T99: -112496.39 | U99: -105282
A100: 901 | C100: Renovations and Equipment | E100: 0 | F100: 0 | G100: 0 | H100: 0 | I100: 0 | J100: 0 | K100: 0 | L100: 0 | M100: 0 | P100: 0 | Q100: 0 | S100: 45435 | T100: 7577 | U100: 56598
C101: SUBTOTAL RENOV AND EQUIP | E101: =SUM(E100) -> 0 | F101: =SUM(F100) -> 0 | G101: 0 | H101: 0 | I101: 0 | J101: 0 | K101: 0 | L101: 0 | M101: 0 | N101: 0 | O101: 0 | P101: 0 | Q101: 0 | R101: 0 | S101: 45435 | T101: 7577 | U101: 56598
C102: ANNUAL BUDGET: | E102: =+E101+E99+E41+E22+E15 -> 375268.8262 | F102: =+F101+F99+F41+F22+F15 -> 131213.112 | G102: 155769.8225 | H102: 178144.196 | I102: 177822.969 | J102: 68188.10418 | K102: -5000 | L102: 1081407.03 | M102: 686747.1898 | N102: 392831.94 | O102: 1827.9 | P102: 1123876.271 | Q102: 1143544.239 | R102: 1092052 | S102: 1175824 | T102: 1043737.61 | U102: 997653

Sheet Campus Rec.
C1: BRANDON UNIVERSITY ** CAMPUS RECREATION **
C2: REFERENCE BUDGET
C3: APRIL 2019 TO MARCH 2020
D4: 5411 | E4: 5413 | F4: 2019/20 | G4: 2020/21 | H4: 2021/22 | I4: 2018/19
D5: FITNESS/ | E5: CAM-REC | F5: REF'NCE | G5: PROJ. | H5: PROJ. | I5: APPROVED | J5: 2017-18 | K5: 2016-17 | L5: 2015-16
C6: EXPENDITURE: | D6: CLUBS | E6: ADMIN | F6: BUDGET | G6: BUDGET | H6: BUDGET | I6: BUDGET | J6: ACTUAL | K6: ACTUALS | L6: ACTUALS
A7: 001/002 | C7: Academic FT/PT | D7: 0 | E7: 38726 | F7: 38726 | G7: 38606 | H7: 38895.545 | I7: 38726 | J7: 37667 | K7: 37073 | L7: 36333
A8: 003 | C8: Support/Instructors | D8: 0 | E8: 0 | F8: 0 | G8: 0 | H8: 0 | I8: 0
A9: 005 | C9: Student Assistants | D9: 3000 | E9: 3000 | F9: 6000 | G9: 6000 | H9: 6000 | I9: 6000 | J9: 8400 | K9: 12420 | L9: 5570
A10: 029 | C10: Tuition Waivers | D10: 0 | E10: 0 | F10: 0 | G10: 0 | H10: 0 | I10: 0
A11: 1XX | C11: Benefits | D11: 450 | E11: 6258.9 | F11: 6708.9 | G11: 5352.72 | H11: 8979.109 | I11: 6709 | J11: 5931 | K11: 6038 | L11: 5977
C12: SUB-TOTAL: SALARIES & BENEFITS: | D12: =SUM(D7:D11) -> 3450 | E12: =SUM(E7:E11) -> 47984.9 | F12: 51434.9 | G12: 49958.72 | H12: 53874.654 | I12: 51435 | J12: 51998 | K12: 55531 | L12: 47880
A13: 201/02/06 | C13: Travel/Moving/Recruitment | D13: 0 | E13: 482.46 | F13: 482.46 | G13: 492.1092 | H13: 501.951384 | I13: 473 | J13: 344 | K13: 478 | L13: 758
C14: SUB-TOTAL: TRAVEL & MOVING: | D14: =SUM(D13) -> 0 | E14: =SUM(E13) -> 482.46 | F14: 482.46 | G14: 492.1092 | H14: 501.951384 | I14: 473 | J14: 344 | K14: 478 | L14: 758
A15: 301 | C15: Advertising | D15: 0 | E15: 1060.8 | F15: 1060.8 | G15: 1082.016 | H15: 1103.65632 | I15: 1040 | K15: 1062 | L15: 280
A16: 304 | C16: Consumables | D16: 0 | E16: 2164.44 | F16: 2164.44 | G16: 2207.7288 | H16: 2251.883376 | I16: 2122 | J16: 10485 | K16: 4079 | L16: 6325
A17: 305 | C17: Photocopying - Printing | D17: 0 | E17: 318.24 | F17: 318.24 | G17: 324.6048 | H17: 331.096896 | I17: 312 | K17: 41 | L17: 247
A18: 308 | C18: Postage | D18: 0 | E18: 42.84 | F18: 42.84 | G18: 43.6968 | H18: 44.570736 | I18: 42
A19: 309 | C19: Telephone - Long Dist. | D19: 0 | E19: 530.4 | F19: 530.4 | G19: 541.008 | H19: 551.82816 | I19: 520 | J19: 35 | K19: 38 | L19: 39
A20: 310 | C20: Telephone - Rental | D20: 0 | E20: 1050.6 | F20: 1050.6 | G20: 1071.612 | H20: 1093.04424 | I20: 1030 | J20: 318 | K20: 318 | L20: 636
A21: 311 | C21: Repairs & Maintenance | D21: 0 | E21: 106.08 | F21: 106.08 | G21: 108.2016 | H21: 110.365632 | I21: 104
A22: 314 | C22: Consultants | D22: 2122.62 | E22: 0 | F22: 2122.62 | G22: 2165.0724 | H22: 2208.373848 | I22: 2081 | J22: 7425 | K22: 5730 | L22: 7821
A23: 354 | C23: Fax expenses | D23: 0 | E23: 61.2 | F23: 61.2 | G23: 62.424 | H23: 63.67248 | I23: 60
A24: 357/358 | C24: Software/licencing/support | D24: 0 | E24: 1486.14 | F24: 1486.14 | G24: 1515.8628 | H24: 1546.180056 | I24: 1457 | J24: 1280 | K24: 1370 | L24: 1488
A25: 393 | C25: Equipment - furniture (under $1000) | D25: 0 | E25: 1111.8 | F25: 1111.8 | G25: 1134.036 | H25: 1156.71672 | I25: 1090 | K25: 1952 | L25: 125
A26: 399 | C26: Recoveries | F26: 0 | G26: 0 | H26: 0
A27: *** | C27: Unallocated | D27: 0 | E27: 0 | F27: 0 | G27: 0 | H27: 0
C28: SUB-TOTAL:SUPPLIES & OTHER EXP.: | D28: =SUM(D15:D27) -> 2122.62 | E28: =SUM(E15:E27) -> 7932.54 | F28: 10055.16 | G28: 10256.2632 | H28: 10461.38846 | I28: 9858 | J28: 19543 | K28: 14590 | L28: 16961
A29: 400 | C29: Program Expenses | D29: 0 | E29: 0 | F29: 0 | G29: 0 | H29: 0
A30: 600 | C30: Program Revenues | D30: -600 | E30: 0 | F30: -600 | G30: -612 | H30: -624.24 | I30: -600
A31: 608 | C31: Canoe rental - rev | D31: 0 | E31: 0 | F31: 0 | G31: 0 | H31: 0 | I31: 0
A32: 609 | C32: Ski rental - rev | D32: 0 | E32: 0 | F32: 0 | G32: 0 | H32: 0 | I32: 0
A33: 410/610 | C33: Touch football | D33: 0 | E33: 0 | F33: 0 | G33: 0 | H33: 0 | I33: 0
A34: 411/611 | C34: Soccer | D34: -100 | E34: 0 | F34: -100 | G34: -102 | H34: -104.04 | I34: -100
A35: 412/612 | C35: Fencing | D35: 0 | E35: 0 | F35: 0 | G35: 0 | H35: 0 | I35: 0
C36: Ice hockey | D36: 0 | E36: 0 | F36: 0 | G36: 0 | H36: 0 | I36: 0
A37: 413/613 | C37: Judo | D37: 0 | E37: 0 | F37: 0 | G37: 0 | H37: 0 | I37: 0
A38: 414/614 | C38: Basketball | D38: 0 | E38: 0 | F38: 0 | G38: 0 | H38: 0 | I38: 0
C39: Vollyball | D39: 0 | E39: 0 | F39: 0 | G39: 0 | H39: 0 | I39: 0
A40: 416/616 | C40: Doc Hannah Vollyball | D40: 0 | E40: 0 | F40: 0 | G40: 0 | H40: 0 | I40: 0
A41: 417/617 | C41: Slo-pitch | D41: 0 | E41: 0 | F41: 0 | G41: 0 | H41: 0 | I41: 0
A42: 616 | C42: Table Tennis | D42: 0 | E42: 0 | F42: 0 | G42: 0 | H42: 0 | J42: -191 | K42: -191 | L42: -169
A43: 617 | C43: Ultimate Disc | D43: 0 | E43: 0 | F43: 0 | G43: 0 | H43: 0
A44: 418/618 | C44: Blue and Gold Curling | D44: 0 | E44: 0 | F44: 0 | G44: 0 | H44: 0 | I44: 0
A45: 419/619 | C45: Road race | D45: 0 | E45: 0 | F45: 0 | G45: 0 | H45: 0 | I45: 0
A46: 422/622 | C46: Badminton | D46: -5371 | E46: 0 | F46: -5371 | G46: -5478.42 | H46: -5587.9884 | I46: -5371 | J46: -6024 | K46: -7296 | L46: -6135
A47: 423/625 | C47: TRX | D47: -760 | E47: 0 | F47: -760 | G47: -775.2 | H47: -790.704 | I47: -760 | L47: -1162
A48: 430/630 | C48: Swim/Skate program | D48: 5000 | E48: 0 | F48: 5000 | G48: 5100 | H48: 5202 | I48: 5000 | J48: 333 | K48: 244 | L48: 223
A49: 431/631 | C49: HIIT | D49: 0 | E49: 0 | F49: 0 | G49: 0 | H49: 0 | J49: -1743 | K49: -1297 | L49: -352
A50: 432/632 | C50: Racquetball | D50: 0 | E50: 0 | F50: 0 | G50: 0 | H50: 0 | K50: -2954
A51: 435/635 | C51: Yoga | D51: -1500 | E51: 0 | F51: -1500 | G51: -1530 | H51: -1560.6 | I51: -1500 | J51: -2686 | L51: -2425
A52: 636 | C52: Boot Camp | D52: -300 | E52: 0 | F52: -300 | G52: -306 | H52: -312.12 | I52: -300 | J52: -909 | K52: -1377 | L52: -410
A53: 638 | C53: Pilates | D53: -300 | E53: 0 | F53: -300 | G53: -306 | H53: -312.12 | I53: -300 | L53: -343
A54: 639 | C54: Cardio | F54: 0 | G54: 0 | H54: 0
A55: 440/640 | C55: Zumba | D55: -1500 | E55: 0 | F55: -1500 | G55: -1530 | H55: -1560.6 | I55: -1500 | J55: -286 | K55: -267 | L55: -557
A56: 641 | C56: Tabata | F56: 0 | G56: 0 | H56: 0 | L56: -76
A57: 442/642 | C57: Swing Dance | D57: -500 | E57: 0 | F57: -500 | G57: -510 | H57: -520.2 | I57: -500 | L57: -76
A58: 646 | C58: Ki-Rin Tae Kwon-Do rev | D58: 0 | F58: 0 | G58: 0 | H58: 0 | I58: 0
A59: 672 | C59: Donations | D59: 0 | E59: 0 | F59: 0 | G59: 0 | H59: 0 | I59: 0
A60: 673 | C60: BUSU Recreation fee | D60: 0 | E60: 0 | F60: 0 | G60: 0 | H60: 0 | I60: 0
A61: 644 | C61: Kickboxing | F61: 0 | G61: 0 | H61: 0 | J61: -1628 | K61: -1381 | L61: -2200
A62: 679 | C62: Fundraising | D62: 0 | E62: 0 | F62: 0 | G62: 0 | H62: 0
A63: 647 | C63: Multi-Sport Toddler/Youth Camp | F63: 0 | G63: 0 | H63: 0 | J63: -7355 | K63: -4230 | L63: -3795
A64: 480/680 | C64: Clinics - net | D64: 0 | E64: 0 | F64: 0 | G64: 0 | H64: 0
A65: 481/681 | C65: Workshops - net | D65: 0 | E65: 0 | F65: 0 | G65: 0 | H65: 0
A66: 499/699 | C66: Other activities/recoveries | D66: 0 | E66: 0 | F66: 0 | G66: 0 | H66: 0
A67: 570 | C67: Employment Grant - Provincial | F67: 0 | G67: 0 | H67: 0
C68: SUB-TOTAL: PROGRAM EXPS/REVS: | D68: =SUM(D29:D67) -> -5931 | E68: =SUM(E29:E67) -> 0 | F68: -5931 | G68: -6049.62 | H68: -6170.6124 | I68: -5931 | J68: -20489 | K68: -18749 | L68: -17477
A69: 9xx | C69: Equipment purchases | D69: 0 | E69: 0 | F69: 0 | G69: 0 | H69: 0 | J69: 701 | L69: 2276
C70: SUB-TOTAL: EQUIPMENT: | D70: =SUM(D69) -> 0 | E70: =SUM(E69) -> 0 | F70: 0 | G70: 0 | H70: 0 | I70: 0 | J70: 701 | K70: 0 | L70: 2276
C71: ANNUAL BUDGET | D71: =+D70+D68+D28+D14+D12 -> -358.38 | E71: =+E70+E68+E28+E14+E12 -> 56399.9 | F71: 56041.52 | G71: 54657.4724 | H71: 58667.38145 | I71: 55835 | J71: 52097 | K71: 51850 | L71: 50398

Sheet HLC
C1: BRANDON UNIVERSITY ** HEALTHY LIVING CENTRE **
C2: REFERENCE BUDGET
C3: APRIL 2019 TO MARCH 2020 | F3: 2019/20 | G3: 2020/21 | H3: 2021/22 | I3: 2018/19
E4: GREEN- | F4: REF'NCE | G4: PROJ. | H4: PROJ. | I4: APPROVED | J4: 2017-18 | K4: 2016-17 | L4: 2015-16 | M4: 2014-15
C5: EXPENDITURE: | D5: HLC | E5: SPACE | F5: BUDGET | G5: BUDGET | H5: BUDGET | I5: BUDGET | J5: ACTUAL | K5: ACTUAL | L5: ACTUAL | M5: ACTUAL
C6: SALARIES & BENEFITS
A7: 003 | C7: Full-Time Support | D7: 224541.415 | F7: 224541.415 | G7: 229417.644 | H7: 235016.2612 | I7: 220388 | J7: 222770 | K7: 231417 | L7: 196048 | M7: 190610
A8: 004 | C8: Part-Time Support | D8: 19873 | F8: 19873 | G8: 20270.46 | H8: 20675.8692 | I8: 19873
A9: 005 | C9: Student Assistants | D9: 84883.89 | F9: 84883.89 | G9: 85732.7289 | H9: 87447.38348 | I9: 84252 | J9: 91539 | K9: 107836 | L9: 110356 | M9: 101798
A10: 018/019 | C10: Cleaners (charge from PP) | D10: 172561.05 | F10: 172561.05 | G10: 172561.05 | H10: 172561.05 | I10: 171340 | J10: 165860 | K10: 147980 | L10: 71164 | M10: 64968
A11: 100 | C11: Benefits | D11: 50000 | F11: 50000 | G11: 53667.33326 | H11: 54902.32222 | I11: 50000 | J11: 50204 | K11: 54744 | L11: 46023 | M11: 43395
A12: 099/199 | C12: Recoveries | D12: -5000 | F12: -5000 | G12: -5000 | H12: -5000 | I12: -5000 | J12: -4582 | K12: -9258 | L12: -4757 | M12: -4437
C13: SUB-TOTAL: SALARIES & BENEFITS: | D13: =SUM(D7:D12) -> 546859.355 | E13: =SUM(E7:E12) -> 0 | F13: 546859.355 | G13: 556649.2162 | H13: 565602.8861 | I13: 540853 | J13: 525791 | K13: 532719 | L13: 418834 | M13: 396334
A14: 201/02/06 | C14: Travel/Moving/Recruitment | D14: 400 | F14: 400 | G14: 408 | H14: 416.16 | I14: 400 | J14: 235 | K14: 1337 | L14: 41 | M14: 396
A15: 204/05/10 | C15: Prof. Dev. Allowances | D15: 2000 | F15: 2000 | G15: 2000 | H15: 2000 | I15: 2000 | J15: 0 | K15: 3056
D16: =SUM(D14:D15) -> 2400 | E16: =SUM(E14:E15) -> 0 | F16: 2400 | G16: 2408 | H16: 2416.16 | I16: 2400 | J16: 235 | K16: 4393 | L16: 41 | M16: 396
A17: 301 | C17: Advertising | D17: 10000 | F17: 10000 | G17: 10200 | H17: 10404 | I17: 10000 | J17: 4281 | K17: 5060 | L17: 6346 | M17: 3606
A18: 304 | C18: Consumables | D18: 5000 | F18: 5000 | G18: 5100 | H18: 5202 | I18: 5000 | J18: 4093 | K18: 3141 | L18: 5406 | M18: 4934
A19: 305 | C19: Photocopying - Printing | D19: 5000 | F19: 5000 | G19: 5100 | H19: 5202 | I19: 5000 | J19: 6131 | K19: 4415 | L19: 4846 | M19: 3926
A20: 308 | C20: Postage | D20: 200 | F20: 200 | G20: 204 | H20: 208.08 | I20: 200 | J20: 78 | K20: 326 | L20: 252 | M20: 61
A21: 309 | C21: Telephone - Long Dist. | D21: 1000 | F21: 1000 | G21: 1020 | H21: 1040.4 | I21: 1000 | J21: 692 | K21: 1204 | L21: 826 | M21: 1005
A22: 310 | C22: Telephone - Rental | D22: 1300 | F22: 1300 | G22: 1326 | H22: 1352.52 | I22: 1300 | J22: 1390 | K22: 1312 | L22: 1271 | M22: 1271
A23: 311 | C23: Repairs & Maintenance | D23: 44000 | E23: 11000 | F23: 55000 | G23: 56100 | H23: 57222 | I23: 55000 | J23: 52574 | K23: 49705 | L23: 42148 | M23: 26769
A24: 312 | C24: Other Rentals | D24: 3500 | F24: 3500 | G24: 3570 | H24: 3641.4 | I24: 3500 | J24: 3196 | K24: 3437 | L24: 3356 | M24: 3444
A25: 314 | C25: Consulting/Professional Fees | D25: 0 | F25: 0 | G25: 0 | H25: 0 | L25: 970
A26: 320 | C26: Licences | D26: 135 | F26: 135 | G26: 137.7 | H26: 140.454 | I26: 135 | K26: 136 | L26: 141 | M26: 641
A27: 322 | C27: Cleaning Supplies | D27: 8000 | F27: 8000 | G27: 8160 | H27: 8323.2 | I27: 8000 | J27: 7845 | K27: 12107 | L27: 7857 | M27: 8275
A28: 325 | C28: Security Services | D28: 0 | F28: 0 | G28: 0 | H28: 0 | I28: 0 | M28: 0
A29: 328 | C29: Prov. for Replace. (equip & floor sanding) | D29: 5300 | F29: 5300 | G29: 5406 | H29: 5514.12 | I29: 5300 | M29: -14575
A30: 329 | C30: Service Contracts | D30: 4300 | F30: 4300 | G30: 4386 | H30: 4473.72 | I30: 4300 | J30: 4219 | K30: 4235 | L30: 4241 | M30: 711
A31: 330 | C31: Food Purchases | D31: 0 | F31: 0 | G31: 0 | H31: 0 | K31: 149 | L31: 264 | M31: 241
A32: 345 | C32: Staff Development/Training | D32: 900 | F32: 900 | G32: 918 | H32: 936.36 | I32: 900 | K32: 615 | M32: 0
A33: 354 | C33: Fax expenses | D33: 350 | F33: 350 | G33: 357 | H33: 364.14 | I33: 350 | J33: 159 | K33: 318 | L33: 418 | M33: 558
A34: 358 | C34: Software | D34: 11000 | F34: 11000 | G34: 11220 | H34: 11444.4 | I34: 11000 | J34: 11244 | K34: 10934 | L34: 12498 | M34: 10658
A35: 361 | C35: Fitness Centre replaments/repairs | D35: 6500 | F35: 6500 | G35: 6630 | H35: 6762.6 | I35: 6500 | J35: 6374 | K35: 4267 | L35: 2544 | M35: 4761
A36: 362 | C36: Membership equipment/supplies | D36: 6500 | F36: 6500 | G36: 6630 | H36: 6762.6 | I36: 6500 | J36: 6409 | K36: 6512 | L36: 5463 | M36: 6224
A37: 384/6/8 | C37: Bad debt/Credit Card Collection | D37: 10000 | F37: 10000 | G37: 10200 | H37: 10404 | I37: 10000 | J37: 12675 | K37: 11605 | L37: 7858 | M37: 6628
A38: 393 | C38: Equipment - furniture (under $1000) | D38: 8000 | F38: 8000 | G38: 8160 | H38: 8323.2 | I38: 8000 | J38: 4943 | K38: 5434 | L38: 11374 | M38: 17732
A39: 399 | C39: Recoveries | D39: -11000 | F39: -11000 | G39: -11220 | H39: -11444.4 | I39: -11000 | J39: -9806 | K39: -11974 | L39: -12117 | M39: -3345
A40: 461/661 | C40: Community Outreach | D40: -2000 | F40: -2000 | G40: -2040 | H40: -2080.8 | I40: -2000 | J40: -2689 | K40: -200 | L40: -4146 | M40: 747
A41: 515 | C41: Contribution from Athletics (60%) | E41: -6500 | F41: -6500 | G41: -6630 | H41: -6762.6 | I41: -6500 | J41: -6462 | K41: -9904
A42: 8XX | C42: Utilities | D42: 85000 | F42: 85000 | G42: 85000 | H42: 85000 | I42: 85000 | J42: 79848 | K42: 84582 | L42: 86337 | M42: 92951
A43: *** | C43: Unallocated | F43: 0 | G43: -10302 | H43: -4340 | I43: 0
C44: SUB-TOTAL: SUPPLIES & OTHER EXPS: | D44: =SUM(D17:D43) -> 202985 | E44: =SUM(E17:E43) -> 4500 | F44: 207485 | G44: 199632.7 | H44: 208093.394 | I44: 207485 | J44: 187194 | K44: 187416 | L44: 188153 | M44: 177223
A45: 501 | C45: Merchandise Revenue | D45: -500 | F45: -500 | G45: -510 | H45: -520.2 | I45: -500 | J45: 58 | K45: -638 | L45: -497
A46: 505 | C46: Card Replacement | D46: -500 | F46: -500 | G46: -510 | H46: -520.2 | I46: -500 | J46: -502 | K46: -654 | L46: -2425 | M46: -9468
A47: 506 | C47: 20 Visit Punch Card | D47: -7000 | F47: -7000 | G47: -7140 | H47: -7282.8 | I47: -7000 | J47: -8647 | K47: -9324 | L47: -6921 | M47: -3861
A48: 507 | C48: 10 Visit Punch Card | D48: -10000 | F48: -10000 | G48: -10200 | H48: -10404 | I48: -10000 | J48: -11258 | K48: -11264 | L48: -14644 | M48: -15092
A49: 510 | C49: Student Fitness Fee | D49: -240000 | F49: -240000 | G49: -244800 | H49: -249696 | I49: -240000 | J49: -222682 | K49: -203461 | L49: -193922 | M49: -172417
A50: 511 | C50: HLC Adult 18-24 | D50: -16000 | F50: -16000 | G50: -16320 | H50: -16646.4 | I50: -16000 | J50: -15664 | K50: -21702 | L50: -25572 | M50: -19965
A51: 512 | C51: HLC Adult 25-54 | D51: -30000 | F51: -30000 | G51: -30600 | H51: -31212 | I51: -30000 | J51: -26111 | K51: -37940 | L51: -38274 | M51: -31271
A52: 513 | C52: Membership Seniors >69 | D52: -20000 | F52: -20000 | G52: -20400 | H52: -20808 | I52: -20000 | J52: -21440 | K52: -18218 | L52: -17876 | M52: -14399
A53: 514 | C53: HLC Senior +70 | D53: -14000 | F53: -14000 | G53: -14280 | H53: -14565.6 | I53: -14000 | J53: -15888 | K53: -9365 | L53: -6400 | M53: -4822
A54: 515 | C54: HLC Youth 14-17 | D54: -6000 | F54: -6000 | G54: -6120 | H54: -6242.4 | I54: -6000 | J54: -6524 | K54: -9522 | L54: -9311 | M54: -10519
A55: 516 | C55: HLC Youth <14 | D55: -800 | F55: -800 | G55: -816 | H55: -832.32 | I55: -800 | J55: -1001 | K55: -953 | L55: -708 | M55: -1374
A56: 518 | C56: HLC Alumni | D56: -19000 | F56: -19000 | G56: -19380 | H56: -19767.6 | I56: -19000 | J56: -19905 | K56: -22039 | L56: -23399 | M56: -18825
A57: 519 | C57: HLC Faculty & Staff | D57: -10000 | F57: -10000 | G57: -10200 | H57: -10404 | I57: -10000 | J57: -9322 | K57: -11665 | L57: -9832 | M57: -8181
A58: 520 | C58: HLC Day Pass | D58: -10000 | F58: -10000 | G58: -10200 | H58: -10404 | I58: -10000 | J58: -11429 | K58: -15606 | L58: -17828 | M58: -19226
A59: 521 | C59: Track Only 18-24 | D59: -1000 | F59: -1000 | G59: -1020 | H59: -1040.4 | I59: -1000 | J59: -997 | K59: -1179 | L59: -950 | M59: -3629
A60: 522 | C60: Track Only 25-54 | D60: -27000 | F60: -27000 | G60: -27540 | H60: -28090.8 | I60: -27000 | J60: -25751 | K60: -23345 | L60: -18909 | M60: -21305
A61: 523 | C61: Track Only 55-69 | D61: -25000 | F61: -25000 | G61: -25500 | H61: -26010 | I61: -25000 | J61: -23799 | K61: -23526 | L61: -16708 | M61: -18421
A62: 524 | C62: Track Only Seniors +70 | D62: -8000 | F62: -8000 | G62: -8160 | H62: -8323.2 | I62: -8000 | J62: -8919 | K62: -6891 | L62: -4733 | M62: -3890
A63: 525 | C63: Track Only Youth 14-17 | D63: -100 | F63: -100 | G63: -102 | H63: -104.04 | I63: -100 | J63: -225 | K63: -16 | L63: -352 | M63: -665
A64: 528 | C64: Track Only Alumni | D64: -3500 | F64: -3500 | G64: -3570 | H64: -3641.4 | I64: -3500 | J64: -2840 | K64: -2509 | L64: -2451 | M64: -4132
A65: 529 | C65: Track Only Faculty & Staff | D65: -1600 | F65: -1600 | G65: -1632 | H65: -1664.64 | I65: -1600 | J65: -1752 | K65: -1651 | L65: -1483 | M65: -1152
A66: 530 | C66: Day Pass - U14 | D66: -500 | F66: -500 | G66: -510 | H66: -520.2 | I66: -500 | J66: -683 | K66: -671 | L66: -499
A67: 531 | C67: Coupons Redeemed | F67: 0 | G67: 0 | H67: 0 | J67: 1521
A68: 532 | C68: Sport Manitoba Partnership | F68: 0 | G68: 0 | H68: 0 | J68: -1872
A69: 533 | C69: Misc. Revenue | D69: -500 | F69: -500 | G69: -510 | H69: -520.2 | I69: -500 | J69: -676 | K69: -430 | L69: -1568 | M69: -7662
A70: 535 | C70: Locker Rental -Yearly | D70: -2500 | F70: -2500 | G70: -2550 | H70: -2601 | I70: -2500 | J70: -2940 | K70: -3577 | L70: -3428 | M70: -4142
A71: 539 | C71: Sponsorship Revenue | D71: 0 | F71: 0 | G71: 0 | H71: 0 | I71: 0 | K71: -240 | M71: -250
A72: 540 | C72: Facility Rental | D72: -78000 | F72: -78000 | G72: -79560 | H72: -81151.2 | I72: -78000 | J72: -64660 | K72: -66640 | L72: -48196 | M72: -46995
A73: 541 | C73: Service Rental | D73: 0 | F73: 0 | G73: 0 | H73: 0 | I73: 0 | J73: -6216 | K73: -5763 | L73: -1334 | M73: -870
A74: 550 | C74: Equipment Rental | D74: 0 | F74: 0 | G74: 0 | H74: 0 | I74: 0 | J74: -7 | K74: -251 | M74: -49
A75: 551 | C75: Therapist Recoveries | D75: 0 | F75: 0 | G75: 0 | H75: 0 | I75: 0 | K75: -50 | L75: -550 | M75: -1200
A76: 552 | C76: Personal Trainer Revenue | D76: -3500 | F76: -3500 | G76: -3570 | H76: -3641.4 | I76: -3500 | J76: -2131 | K76: -3851 | L76: -4665 | M76: -4738
A77: 570 | C77: Employment Grant - Provincial | D77: 0 | F77: 0 | G77: 0 | H77: 0 | I77: 0 | K77: -9801 | L77: -15328
A78: 580 | C78: Food Sales Commissions/ Vending | D78: -4000 | F78: -4000 | G78: -4080 | H78: -4161.6 | I78: -4000 | J78: -561 | K78: -1380 | L78: -2020 | M78: -735
A79: 581 | C79: Advertising Revenue | D79: -5086 | F79: -5086 | G79: -5187.72 | H79: -5291.4744 | I79: -5086
C80: SUB-TOTAL: REVENUES: | D80: =SUM(D45:D79) -> -544086 | E80: =SUM(E45:E79) -> 0 | F80: -544086 | G80: -554967.72 | H80: -566067.0744 | I80: -544086 | J80: -512823 | K80: -524122 | L80: -490783 | M80: -449255
C81: RENOVATIONS & EQUIPMENT
A82: 9xx | C82: Renovations & Equipment Purchases | D82: 0 | E82: 0 | F82: 0 | G82: 0 | H82: 0 | J82: 46152 | K82: 10986 | L82: 18826 | M82: 52379
C83: SUB-TOTAL: RENOV.& EQUIP: | D83: =SUM(D82) -> 0 | E83: =SUM(E82) -> 0 | F83: 0 | G83: 0 | H83: 0 | I83: 0 | J83: 46152 | K83: 10986 | L83: 18826 | M83: 52379
C84: ANNUAL BUDGET: | D84: =+D83+D80+D44+D16+D13 -> 208158.355 | E84: =+E83+E80+E44+E16+E13 -> 4500 | F84: 212658.355 | G84: 203722.1962 | H84: 210045.3657 | I84: 206652 | J84: 246549 | K84: 211392 | L84: 135071 | M84: 177077

Sheet Admin & Finance
C1: BRANDON UNIVERSITY: ** ADMINISTRATION & FINANCE **
C2: REFERENCE BUDGET
C3: APRIL 2019 TO MARCH 2020 | D3: 5204 | E3: 5205 | F3: 5206 | G3: 5215 | H3: 61XX | I3: 2019/20 | J3: 2020/21 | K3: 2021/22 | L3: 2018/19
D4: VP (A&F) | E4: FIN & REG | F4: MAIL/PRINT | G4: HUMAN | H4: PHYSICAL | I4: REF'NCE | J4: PROJ. | K4: PROJ. | L4: APPROVED | M4: 2017-18 | N4: 2016-17 | O4: 2015-16
C5: EXPENDITURE: | E5: SERVICES | F5: SERVICES | G5: RESOURCES | H5: PLANT | I5: BUDGET | J5: BUDGET | K5: BUDGET | L5: BUDGET | M5: ACTUAL | N5: ACTUAL | O5: ACTUAL
A6: 003 | C6: F.T. Support | D6: 413311.6183 | E6: 591104.34 | F6: 50401.45 | G6: 794858.71 | H6: 1248840.233 | I6: 3098516.351 | J6: 3108337.863 | K6: 3145747.229 | L6: 3041099 | M6: 2871187 | N6: 3023880 | O6: 2780734
A7: 004 | C7: P.T. Support | D7: 0 | E7: 0 | F7: 23247 | G7: 0 | H7: 0 | I7: 23247 | J7: 87607.8984 | K7: 88895.11637 | L7: 22680 | M7: 22184 | N7: 21992 | O7: 21311
A8: 005 | C8: O.T./Student Assistants/Casual | D8: 0 | E8: 0 | F8: 4463.225 | G8: 1673.4575 | H8: 6693.83 | I8: 12830.5125 | J8: 12958.81762 | K8: 13217.99398 | L8: 12735 | M8: 13990 | N8: 20661 | O8: 19211
A9: 018/019 | C9: Cleaners | D9: 0 | E9: 0 | F9: 0 | G9: 0 | H9: 705302.1225 | I9: 705302.1225 | J9: 690599.7011 | K9: 690716.0099 | L9: 694964 | M9: 717163 | N9: 662601 | O9: 677925
A10: 099 | C10: Recoveries | D10: 0 | E10: -56000 | F10: 0 | G10: 0 | H10: 0 | I10: -56000 | J10: -56000 | K10: -56000 | L10: -56000 | M10: -56893 | N10: -56000 | O10: -56116
A11: 100 | C11: Benefits | D11: 66129.85893 | E11: 135953.9982 | F11: 15622.335 | G11: 145765.3867 | H11: 490653.4624 | I11: 854125.0412 | J11: 779900.856 | K11: 787715.2699 | L11: 832688 | M11: 791222 | N11: 810448 | O11: 748965
A12: 106 | C12: Workers' Compensation | D12: 0 | E12: 0 | F12: 0 | G12: 75000 | H12: 0 | I12: 75000 | J12: 75000 | K12: 75000 | L12: 75000 | M12: 107414 | N12: 62949 | O12: 73138
A13: 107 | C13: Employee Assistance Program | D13: 0 | E13: 0 | F13: 0 | G13: 12065 | H13: 0 | I13: 12065 | J13: 12065 | K13: 12065 | L13: 12065 | M13: 10017 | N13: 9963 | O13: 10089
C14: SUB-TOTAL: SALARIES & BENEFITS: | D14: =SUM(D6:D13) -> 479441.4773 | E14: =SUM(E6:E13) -> 671058.3382 | F14: 93734.01 | G14: 1029362.554 | H14: 2451489.648 | I14: 4725086.027 | J14: 4710470.136 | K14: 4757356.619 | L14: 4635231 | M14: 4476284 | N14: 4556494 | O14: 4275257
A15: 201/02/06 | C15: Travel/Moving/Recruitment | D15: 8446.62 | E15: 6339.3 | F15: 60.18 | G15: 3820.92 | H15: 6488.22 | I15: 25155.24 | J15: 25658.3448 | K15: 26171.5117 | L15: 24541 | M15: 17572 | N15: 31817 | O15: 21818
A16: 213 | C16: Vehicle Expense | H16: 8323.2 | I16: 8323.2 | J16: 8489.664 | K16: 8659.45728 | L16: 8160 | M16: 6784 | N16: 17455 | O16: 2721
A17: 204/05/10 | C17: Prof. Dev. Allowances | D17: 4500 | E17: 4500 | F17: 0.1599993015 | G17: 13250 | H17: 8000 | I17: 30250.16 | J17: 30250.16 | K17: 30250.16 | L17: 30750 | M17: 42287 | N17: 21327 | O17: 25523
C18: SUB-TOTAL: TRAVEL & MOVING: | D18: =SUM(D15:D17) -> 12946.62 | E18: =SUM(E15:E17) -> 10839.3 | F18: 60.3399993 | G18: 17070.92 | H18: 22811.42 | I18: 63728.6 | J18: 64398.1688 | K18: 65081.12898 | L18: 63451 | M18: 66643 | N18: 70599 | O18: 50062
A19: 301 | C19: Advertising | D19: 0 | E19: 0 | F19: 0 | G19: 0 | H19: 616.08 | I19: 616.08 | J19: 628.4016 | K19: 640.969632 | L19: 604 | M19: 5089 | N19: 1941 | O19: 5436
A20: 302 | C20: Special Allowances | D20: 0 | E20: 742.56 | F20: 0 | G20: 369.24 | H20: 0 | I20: 1111.8 | J20: 1134.036 | K20: 1156.71672 | L20: 1090 | N20: 2230 | O20: 429
A21: 303 | C21: Computer Utilization (Payroll Service Provider) | D21: 0 | E21: 0 | F21: 0 | G21: 80758.5 | H21: 2080.8 | I21: 82839.3 | J21: 84496.086 | K21: 86186.00772 | L21: 81215 | M21: 3469 | N21: 46063 | O21: 82466
A22: 304 | C22: Consumables | D22: 1724.82 | E22: 9256.5 | F22: 38564.16 | G22: 5415.18 | H22: 97320.24 | I22: 152280.9 | J22: 155326.518 | K22: 158433.0484 | L22: 147256 | M22: 135772 | N22: 139433 | O22: 133242
A23: 305 | C23: Photocopying - Printing | D23: 1539.18 | E23: 6089.4 | F23: 7875.42 | G23: 4629.78 | H23: 1409.64 | I23: 21543.42 | J23: 21974.2884 | K23: 22413.77417 | L23: 21121 | M23: 21043 | N23: 19406 | O23: 24642
A24: 307 | C24: Membership Subscriptions | D24: 4308.48 | E24: 4245.24 | F24: 0 | G24: 1377 | H24: 708.9 | I24: 10639.62 | J24: 10852.4124 | K24: 11069.46065 | L24: 10431 | M24: 5139 | N24: 7558 | O24: 6786
A25: 308 | C25: Postage | D25: 121.38 | E25: 14653.32 | F25: 74116.26 | G25: 1601.4 | H25: 2176.68 | I25: 92669.04 | J25: 94522.4208 | K25: 96412.86922 | L25: 90851 | M25: 61177 | N25: 72170 | O25: 87625
A26: 309 | C26: Telephone - Long Dist. | D26: 1662.6 | E26: 289.68 | F26: 34.68 | G26: 322.32 | H26: 13482.36 | I26: 15791.64 | J26: 16107.4728 | K26: 16429.62226 | L26: 15482 | M26: 7487 | N26: 6582 | O26: 6350
A27: 310 | C27: Telephone - Rental | D27: 825.18 | E27: 3695.46 | F27: 925.14 | G27: 3599.58 | H27: 5590.62 | I27: 14635.98 | J27: 14928.6996 | K27: 15227.27359 | L27: 14349 | M27: 12388 | N27: 13329 | O27: 13150
A28: 311 | C28: Repairs & Maintenance | D28: 0 | E28: 2080.8 | F28: 616.08 | G28: 121.38 | H28: 164322 | I28: 167140.26 | J28: 170483.0652 | K28: 173892.7265 | L28: 163864 | M28: 190991 | N28: 141459 | O28: 199635
A29: 312 | C29: Maintenance Materials | D29: 0 | E29: 0 | F29: 0 | G29: 0 | H29: 0 | I29: 0 | J29: 0 | K29: 0 | L29: 0 | M29: 344160 | N29: 279193 | O29: 200621
A30: 314 | C30: Consulting/Professional Fees | D30: 0 | E30: 0 | F30: 0 | G30: 0 | H30: 0 | I30: 0 | J30: 0 | K30: 0 | M30: 4627 | N30: 3328 | O30: 51532
A31: 314 | C31: Uniforms | D31: 0 | E31: 0 | F31: 0 | G31: 0 | H31: 10272.42 | I31: 10272.42 | J31: 10477.8684 | K31: 10687.42577 | L31: 10070 | M31: 12457 | N31: 9474 | O31: 8640
A32: 317 | C32: Special Functions | D32: 944.52 | E32: 0 | F32: 0 | G32: 574.26 | H32: 0 | I32: 1518.78 | J32: 1549.1556 | K32: 1580.138712 | L32: 1489 | M32: 811 | N32: 2918 | O32: 1942
A33: 321 | C33: Insurance | D33: 0 | E33: 274785.96 | F33: 0 | G33: 0 | H33: 22516.5 | I33: 297302.46 | J33: 303248.5092 | K33: 309313.4794 | L33: 291473 | M33: 240506 | N33: 252526 | O33: 255093
A34: 322 | C34: Cleaning Supplies | D34: 0 | E34: 0 | F34: 0 | G34: 0 | H34: 72906.54 | I34: 72906.54 | J34: 74364.6708 | K34: 75851.96422 | L34: 71477 | M34: 86516 | N34: 90935 | O34: 81293
A35: 324 | C35: Grounds Upkeep | D35: 0 | E35: 0 | F35: 0 | G35: 0 | H35: 5526.36 | I35: 5526.36 | J35: 5636.8872 | K35: 5749.624944 | L35: 5418 | M35: 1299 | N35: 998 | O35: 1742
A36: 325/316 | C36: Security Services/Emergency Phones | D36: 0 | E36: 7490.88 | F36: 0 | G36: 0 | H36: 78922.5 | I36: 86413.38 | J36: 88141.6476 | K36: 89904.48055 | L36: 84719 | M36: 81191 | N36: 83183 | O36: 84661
A37: 328 | C37: Provision for Replacement | D37: 0 | E37: 0 | F37: 2208.3 | G37: 0 | H37: 0 | I37: 2208.3 | J37: 2252.466 | K37: 2297.51532 | L37: 2165 | N37: 3000 | O37: 3000
A38: 329 | C38: Service Contracts | D38: 0 | E38: 0 | F38: 2092.02 | G38: 0 | H38: 75189.3 | I38: 77281.32 | J38: 78826.9464 | K38: 80403.48533 | L38: 75767 | M38: 70036 | N38: 75518 | O38: 59078
A39: 345 | C39: Staff Development | D39: 0 | E39: 2898.84 | F39: 0 | G39: 3078.36 | H39: 887.4 | I39: 6864.6 | J39: 7001.892 | K39: 7141.92984 | L39: 6730 | M39: 16448 | N39: 15172 | O39: 10483
A40: 346 | C40: Asbestos Management | D40: 0 | E40: 0 | F40: 0 | G40: 0 | H40: 11698.38 | I40: 11698.38 | J40: 11932.3476 | K40: 12170.99455 | L40: 11469 | M40: 8101 | N40: 7597 | O40: 13985
A41: 354 | C41: Fax Expenses | D41: 0 | E41: 895.56 | F41: 34.68 | G41: 616.08 | H41: 121.38 | I41: 1667.7 | J41: 1701.054 | K41: 1735.07508 | L41: 1635 | M41: 969 | N41: 940 | O41: 931
A42: 357/358 | C42: Software/licensing/support | D42: 0 | E42: 1082.22 | F42: 0 | G42: 17661.3 | H42: 0 | I42: 18743.52 | J42: 19118.3904 | K42: 19500.75821 | L42: 18375 | M42: 81703 | N42: 88540 | O42: 48852
C43: Utilities (net of internal recoveries) | D43: 0 | E43: 0 | F43: 0 | G43: 0 | H43: 731524.14 | I43: 731524.14 | J43: 758756.2542 | K43: 781518.9418 | L43: 729662 | M43: 657371 | N43: 629474 | O43: 644299
A44: 378 | C44: Special Allocations | D44: 0 | E44: 0 | F44: 0 | G44: 22080.96 | H44: 0 | I44: 22080.96 | J44: 22522.5792 | K44: 22973.03078 | L44: 21648 | M44: 22919 | N44: 15037 | O44: 21148
A45: 382/4/6/8 | C45: Serv chg/Bad debt/Collection | D45: 0 | E45: 19110.72 | F45: 0 | G45: 0 | H45: 0 | I45: 19110.72 | J45: 19492.9344 | K45: 19882.79309 | L45: 18736 | M45: 18980 | N45: 50783 | O45: -10224
A46: 383 | C46: Legal and Audit | D46: 0 | E46: 109242 | F46: 0 | G46: 0 | H46: 0 | I46: 109242 | J46: 111426.84 | K46: 113655.3768 | L46: 107100 | M46: 122758 | N46: 104423 | O46: 79845
A47: 393/394 | C47: Equipment - furniture (under $1000) | D47: 0 | E47: 2462.28 | F47: 0 | G47: 0 | H47: 4352.34 | I47: 6814.62 | J47: 11390.2992 | K47: 16146.27972 | L47: 6681 | M47: 17454 | N47: 10898 | O47: 18649
A48: 397 | C48: Internal Mat/Labour Recoveries | D48: 0 | E48: 0 | F48: -70000 | G48: 0 | H48: -194397.72 | I48: -264397.72 | J48: -264397.72 | K48: -264397.72 | L48: -258546 | M48: -526075 | N48: -483593 | O48: -415709
A49: 810 | C49: Internal Cleaning Supplies Recoveries | D49: 0 | E49: 0 | F49: 0 | G49: 0 | H49: -17000 | I49: -17000 | J49: -17000 | K49: -17000 | L49: -17000 | N49: -17717 | O49: -18858
A50: 399/500 | C50: Recoveries - CMB/Postage &Print Shop | D50: 0 | E50: -35100 | F50: -86830 | G50: 0 | H50: 0 | I50: -121930 | J50: -121930 | K50: -121930 | L50: -121930 | M50: -153804 | N50: -165275 | O50: -188602
A51: 799 | C51: Interfund Transfer/Workforce | D51: 0 | E51: 0 | F51: 0 | G51: 0 | H51: 0 | I51: 0 | J51: 0 | K51: 0 | N51: -11900
A52: *** | C52: Unallocated | D52: 0 | E52: 0 | F52: 0 | G52: 0 | H52: 30600 | I52: 30600 | J52: 31212 | K52: 31836.24 | L52: 30000
C53: SUB-TOTAL: SUPPL & OTHER: | D53: =SUM(D19:D52) -> 11126.16 | E53: =SUM(E19:E52) -> 423921.42 | F53: -30363.26 | G53: 142205.34 | H53: 1120826.86 | I53: 1667716.52 | J53: 1726178.423 | K53: 1780884.283 | L53: 1643401 | M53: 1550982 | N53: 1495623 | O53: 1512162
A54: 503 | C54: BUF Donations | D54: 0 | E54: -5200 | F54: 0 | G54: 0 | H54: 0 | I54: -5200 | J54: -5304 | K54: -5410.08 | L54: -5200 | N54: -5400 | O54: -5400
A55: 5xx | C55: Revenues/External Recoveries | D55: 0 | E55: -33100 | F55: 0 | G55: 0 | H55: -50595.06 | I55: -83695.06 | J55: -85368.9612 | K55: -87076.34042 | L55: -82703 | M55: -117142 | N55: -89908 | O55: -134492
C56: Utility Recoveries (External) | F56: 0 | G56: 0 | H56: -101136.88 | I56: -101136.88 | J56: -105182.3552 | K56: -108337.8259 | L56: -87247 | M56: -98461 | N56: -122112 | O56: -75364
C57: SUB-TOTAL: REVENUES | D57: =SUM(D54:D56) -> 0 | E57: =SUM(E54:E56) -> -38300 | F57: 0 | G57: 0 | H57: -151731.94 | I57: -190031.94 | J57: -195855.3164 | K57: -200824.2463 | L57: -175150 | M57: -215603 | N57: -217420 | O57: -215256
A58: 9xx | C58: Renovations & Equipment Purchases | D58: 0 | E58: 0 | F58: 0 | G58: 0 | H58: 50000 | I58: 50000 | J58: 50000 | K58: 50000 | L58: 50000 | M58: 142237 | N58: 19452 | O58: 31922
C59: SUB-TOTAL: EQUIPMENT | D59: =SUM(D58) -> 0 | E59: =SUM(E58) -> 0 | F59: 0 | G59: 0 | H59: 50000 | I59: 50000 | J59: 50000 | K59: 50000 | L59: 50000 | M59: 142237 | N59: 19452 | O59: 31922
C60: ANNUAL BUDGET: | D60: =+D59+D57+D53+D18+D14 -> 503514.2573 | E60: =+E59+E57+E53+E18+E14 -> 1067519.058 | F60: 63431.09 | G60: 1188638.814 | H60: 3493395.988 | I60: 6316499.207 | J60: 6355191.412 | K60: 6452497.785 | L60: 6216933 | M60: 6020543 | N60: 5924748 | O60: 5654147

Sheet A&F(PhysicalPlant)
C1: BRANDON UNIVERSITY: **PHYSICAL PLANT**
C2: REFERENCE BUDGET
C3: APRIL 2019 TO MARCH 2020 | D3: 6100 | E3: 6102 | F3: 6107 | G3: 6109 | H3: 2019/20 | I3: 2020/21 | J3: 2021/22 | K3: 2018/19
D4: PLANT | E4: UTILITIES | F4: BLDGS& | G4: RECOV | H4: REF'NCE | I4: PROJ. | J4: PROJ. | K4: APPROVED | L4: 2017-18 | M4: 2016-17 | N4: 2015-16
C5: EXPENDITURE: | D5: MAIN | F5: GRNDS | H5: BUDGET | I5: BUDGET | J5: BUDGET | K5: BUDGET | L5: ACTUAL | M5: ACTUAL | N5: ACTUAL
A6: 003 | C6: F.T. Support | D6: 1248840.233 | E6: 0 | F6: 0 | G6: 0 | H6: 1248840.233 | I6: 1253202.489 | J6: 1260861.065 | K6: 1226822 | L6: 1080028 | M6: 1136758 | N6: 1088147
A7: 004 | C7: P.T. Support | D7: 0 | E7: 0 | F7: 0 | G7: 0 | H7: 0 | I7: 0 | J7: 0
A8: 005 | C8: O.T./Student Assistants/Casual | D8: 3346.915 | E8: 0 | F8: 3346.915 | G8: 0 | H8: 6693.83 | I8: 6760.7683 | J8: 6895.983666 | K8: 6644 | L8: 13990 | M8: 20020 | N8: 18594
A9: 018/019 | C9: Cleaners/BSWs | D9: 0 | E9: 0 | F9: 1106402.122 | G9: -401100 | H9: 705302.1225 | I9: 690599.7011 | J9: 690716.0099 | K9: 694964 | L9: 717163 | M9: 662601 | N9: 677925
A10: 040 | C10: Overtime | D10: 0 | E10: 0 | F10: 0 | G10: 0 | H10: 0 | I10: 0 | J10: 0 | K10: 0
A11: 041/042 | C11: Night/Weekend Premiums | D11: 0 | E11: 0 | F11: 0 | G11: 0 | H11: 0 | I11: 0 | J11: 0 | K11: 0
A12: 044 | C12: Callbacks | D12: 0 | E12: 0 | F12: 0 | G12: 0 | H12: 0 | I12: 0 | J12: 0 | K12: 0
A13: 099 | C13: Recoveries | D13: 0 | E13: 0 | F13: 0 | G13: 0 | H13: 0 | I13: 0 | J13: 0
A14: 100 | C14: Benefits | D14: 235411.1838 | E14: 0 | F14: 255242.2786 | G14: 0 | H14: 490653.4624 | I14: 390112.5917 | J14: 391694.6118 | K14: 476458 | L14: 453538 | M14: 457841 | N14: 436489
C15: SUB-TOTAL: SALARIES & BENEFITS: | D15: =SUM(D6:D14) -> 1487598.331 | E15: =SUM(E6:E14) -> 0 | F15: 1364991.316 | G15: -401100 | H15: 2451489.648 | I15: 2340675.55 | J15: 2350167.671 | K15: 2404888 | L15: 2264719 | M15: 2277220 | N15: 2221155
A16: 201/02/06 | C16: Travel/Moving/Recruitment | D16: 6488.22 | E16: 0 | F16: 0 | G16: 0 | H16: 6488.22 | I16: 6617.9844 | J16: 6750.344088 | K16: 6361 | L16: 1076 | M16: 6195 | N16: 4215
A17: 213 | C17: Vehicle Expense | D17: 8323.2 | H17: 8323.2 | I17: 8489.664 | J17: 8659.45728 | K17: 8160 | L17: 6784 | M17: 7243 | N17: 2721
A18: 204/05/10 | C18: Prof. Dev. Allowances | D18: 8000 | E18: 0 | F18: 0 | G18: 0 | H18: 8000 | I18: 8000 | J18: 8000 | K18: 8000 | L18: 9919 | M18: 10071 | N18: 11152
C19: SUB-TOTAL: TRAVEL & MOVING: | D19: =SUM(D16:D18) -> 22811.42 | E19: =SUM(E16:E18) -> 0 | F19: 0 | G19: 0 | H19: 22811.42 | I19: 23107.6484 | J19: 23409.80137 | K19: 22521 | L19: 17779 | M19: 23509 | N19: 18088
A20: 301 | C20: Advertising | D20: 616.08 | E20: 0 | F20: 0 | G20: 0 | H20: 616.08 | I20: 628.4016 | J20: 640.969632 | K20: 604 | L20: 4312 | M20: 1941 | N20: 933
A21: 303 | C21: Computer Utilization | D21: 2080.8 | G21: 0 | H21: 2080.8 | I21: 2122.416 | J21: 2164.86432 | K21: 2040 | L21: 3469 | M21: 2897 | N21: 2013
A22: 304/306 | C22: Consumables/Chemicals | D22: 77323.14 | E22: 13843.44 | F22: 6153.66 | G22: 0 | H22: 97320.24 | I22: 99266.6448 | J22: 101251.9777 | K22: 93373 | L22: 90454 | M22: 94173 | N22: 88640
A23: 305 | C23: Photocopying - Printing | D23: 1409.64 | E23: 0 | F23: 0 | G23: 0 | H23: 1409.64 | I23: 1437.8328 | J23: 1466.589456 | K23: 1382 | L23: 1597 | M23: 1274 | N23: 539
A24: 307 | C24: Membership Subscriptions | D24: 708.9 | E24: 0 | F24: 0 | G24: 0 | H24: 708.9 | I24: 723.078 | J24: 737.53956 | K24: 695 | L24: 542 | M24: 692 | N24: 951
A25: 308 | C25: Postage | D25: 2176.68 | E25: 0 | F25: 0 | G25: 0 | H25: 2176.68 | I25: 2220.2136 | J25: 2264.617872 | K25: 2134 | L25: 2633 | M25: 2323 | N25: 2515
A26: 309 | C26: Telephone - Long Dist. | D26: 3078.36 | E26: 0 | F26: 0 | G26: 0 | H26: 3078.36 | I26: 3139.9272 | J26: 3202.725744 | K26: 3018 | L26: 4411 | M26: 3520 | N26: 3747
A27: 310 | C27: Telephone - Rental | D27: 5590.62 | E27: 0 | F27: 0 | G27: 0 | H27: 5590.62 | I27: 5702.4324 | J27: 5816.481048 | K27: 5481 | L27: 4224 | M27: 5019 | N27: 5147
A28: 311 | C28: Repairs & Maintenance | D28: 143875.08 | E28: 15522.36 | F28: 4924.56 | G28: 0 | H28: 164322 | I28: 167608.44 | J28: 170960.6088 | K28: 161100 | L28: 190256 | M28: 139560 | N28: 198345
A29: 312 | C29: Materials - Recoverable | D29: 0 | E29: 0 | F29: 0 | G29: 0 | H29: 0 | I29: 0 | J29: 0 | K29: 0 | L29: 344160 | M29: 279193 | N29: 200621
A30: 314 | C30: Uniforms | D30: 1656.48 | E30: 0 | F30: 8615.94 | G30: 0 | H30: 10272.42 | I30: 10477.8684 | J30: 10687.42577 | K30: 10070 | L30: 12457 | M30: 9474 | N30: 8640
A31: 316 | C31: Emergency Phones | D31: 10404 | G31: 0 | H31: 10404 | I31: 10612.08 | J31: 10824.3216 | K31: 10200 | L31: 9336 | M31: 8773
A32: 321 | C32: Insurance | D32: 22516.5 | E32: 0 | F32: 0 | G32: 0 | H32: 22516.5 | I32: 22966.83 | J32: 23426.1666 | K32: 22075 | L32: 22361 | M32: 22298 | N32: 18308
A33: 322 | C33: Cleaning Supplies | D33: 0 | E33: 0 | F33: 72906.54 | G33: 0 | H33: 72906.54 | I33: 74364.6708 | J33: 75851.96422 | K33: 71477 | L33: 86516 | M33: 90935 | N33: 81293
A34: 324 | C34: Grounds Upkeep | D34: 0 | E34: 0 | F34: 5526.36 | G34: 0 | H34: 5526.36 | I34: 5636.8872 | J34: 5749.624944 | K34: 5418 | L34: 1299 | M34: 998 | N34: 1742
A35: 325 | C35: Security Services | D35: 78922.5 | E35: 0 | F35: 0 | G35: 0 | H35: 78922.5 | I35: 80500.95 | J35: 82110.969 | K35: 77375 | L35: 71855 | M35: 74410 | N35: 84661
A36: 328 | C36: Provision for Replacement | D36: 0 | E36: 0 | F36: 0 | G36: 0 | H36: 0 | I36: 0 | J36: 0
A37: 329 | C37: Service Contracts | D37: 75189.3 | E37: 0 | F37: 0 | G37: 0 | H37: 75189.3 | I37: 76693.086 | J37: 78226.94772 | K37: 73715 | L37: 70036 | M37: 74887 | N37: 56521
A38: 345 | C38: Staff Development | D38: 887.4 | E38: 0 | F38: 0 | G38: 0 | H38: 887.4 | I38: 905.148 | J38: 923.25096 | K38: 870 | L38: 13719 | M38: 8797 | N38: 5574
A39: 346 | C39: Asbestos Mgmnt | D39: 11698.38 | E39: 0 | F39: 0 | G39: 0 | H39: 11698.38 | I39: 11932.3476 | J39: 12170.99455 | K39: 11469 | L39: 8101 | M39: 7597 | N39: 13985
A40: 354 | C40: Fax Expenses | D40: 121.38 | E40: 0 | F40: 0 | G40: 0 | H40: 121.38 | I40: 123.8076 | J40: 126.283752 | K40: 119 | L40: 6 | M40: 10 | N40: 12
A41: 357/358 | C41: Software/licensing/support | D41: 0 | E41: 0 | F41: 0 | G41: 0 | H41: 0 | I41: 0 | J41: 0 | L41: 130 | N41: 643
A42: 393 | C42: Furniture <$1000 | D42: 0 | E42: 0 | F42: 0 | G42: 0 | H42: 0 | I42: 0 | J42: 0 | L42: 10090 | M42: 5663 | N42: 7088
A43: 394 | C43: Tools | D43: 4352.34 | E43: 0 | F43: 0 | G43: 0 | H43: 4352.34 | I43: 4439.3868 | J43: 4528.174536 | K43: 4267 | L43: 1131 | M43: 464 | N43: 5622
A44: 500 | C44: Hydro | D44: 0 | E44: 650210.08 | F44: 0 | G44: 0 | H44: 650210.08 | I44: 676218.4832 | J44: 696505.0377 | K44: 635202 | L44: 630582.19 | M44: 620196.01 | N44: 608369
A45: 501 | C45: Steam Plant Meter | D45: 0 | E45: 30628 | F45: 0 | G45: 0 | H45: 30628 | I45: 31853.12 | J45: 32808.7136 | K45: 34450 | L45: 23194.81 | M45: 23706.99 | N45: 20988.4
A46: 600 | C46: Fuel | D46: 0 | E46: 273238.4 | F46: 0 | G46: 0 | H46: 273238.4 | I46: 281435.552 | J46: 289878.6186 | K46: 305280 | L46: 220954 | M46: 232564 | N46: 229050
A47: 700 | C47: Water | D47: 0 | E47: 70353.26 | F47: 0 | G47: 0 | H47: 70353.26 | I47: 73870.923 | J47: 76087.05069 | K47: 66371 | L47: 64651 | M47: 49961 | N47: 46174
A48: 799 | C48: Interfund Transfer | D48: 0 | E48: 0 | F48: 0 | G48: 0 | H48: 0
A49: 810/811 | C49: Internal - Ancillary Utilities | D49: 0 | E49: -292905.6 | F49: 0 | G49: 0 | H49: -292905.6 | I49: -304621.824 | J49: -313760.4787 | K49: -311640 | L49: -282010 | M49: -296954 | N49: -260283
A50: 801 | C50: Internal - Material | E50: 0 | F50: 0 | G50: -193357.32 | H50: -193357.32 | I50: -193357.32 | J50: -193357.32 | K50: -188546 | L50: -267385 | M50: -189894 | N50: -122679.13
A51: 802 | C51: Internal - Labour | H51: 0 | I51: 0 | J51: 0 | L51: -123131 | M51: -111178 | N51: -131060.64
A52: 803 | C52: Internal -Ancillary Maintenance | D52: -1040.4 | H52: -1040.4 | I52: -1040.4 | J52: -1040.4 | L52: -12116 | M52: -10575 | N52: -9973.44
A53: 805 | C53: Internal -Anciallary Material | H53: 0 | I53: 0 | J53: 0 | L53: -63716 | M53: -90804 | N53: -86610.63
A54: 806 | C54: Interal - Ancillary Labour | H54: 0 | I54: 0 | J54: 0 | L54: -38050 | M54: -62765 | N54: -50382.07
A55: 810 | C55: Internal - Cleaning Supplies Recoveries | D55: 0 | E55: 0 | F55: 0 | G55: -17000 | H55: -17000 | I55: -17000 | J55: -17000 | K55: -17000 | L55: -20071 | M55: -17717 | N55: -18858
A56: 701 | C56: Unallocated | D56: 30600 | H56: 30600 | I56: 30600 | J56: 30600 | K56: 30000
D57: =SUM(D20:D56) -> 472167.18 | E57: =SUM(E20:E56) -> 760889.94 | F57: 98127.06 | G57: -210357.32 | H57: 1120826.86 | I57: 1159460.983 | J57: 1193853.72 | K57: 1110999 | L57: 1085998 | M57: 981439 | N57: 1012274.49
A58: 503 | C58: BUF Donations | D58: 0 | E58: 0 | F58: 0 | G58: 0 | H58: 0 | I58: 0 | J58: 0
A59: 5xx | C59: Revenues | H59: 0 | I59: 0 | J59: 0 | L59: -1293 | M59: -857 | N59: -3806
A60: 851 | C60: External - Materials | D60: 0 | E60: 0 | F60: 0 | G60: -50595.06 | H60: -50595.06 | I60: -50595.06 | J60: -50595.06 | K60: -49603 | L60: -19829 | M60: -12783 | N60: -14341
A61: 852 | C61: External - Labour | L61: -7362 | M61: -13897 | N61: -14647
A62: 853 | C62: External - Cleaning | L62: -17017 | M62: -16045 | N62: -16646
A63: 808 | C63: External - Project Management | G63: 0 | H63: 0 | I63: 0 | J63: 0 | K63: 0 | L63: -1606 | M63: -18377 | N63: -15003
A64: 800 | C64: External - Utility Recoveries | D64: 0 | E64: -101136.88 | F64: 0 | G64: 0 | H64: -101136.88 | I64: -105182.3552 | J64: -108337.8259 | K64: -87247 | L64: -98461 | M64: -79386 | N64: -75364
C65: SUB-TOTAL: REVENUES: | D65: =SUM(D59:D64) -> 0 | E65: =SUM(E59:E64) -> -101136.88 | F65: 0 | G65: -50595.06 | H65: -151731.94 | I65: -155777.4152 | J65: -158932.8859 | K65: -136850 | L65: -145568 | M65: -141345 | N65: -139807
A66: 9xx | C66: Renovations & Equipment Purchases | D66: 50000 | E66: 0 | F66: 0 | G66: 0 | H66: 50000 | I66: 50000 | J66: 50000 | K66: 50000 | L66: 139663 | M66: 3922 | N66: 27703
C67: SUB-TOTAL: RENOV & EQUIP: | D67: =SUM(D66) -> 50000 | E67: =SUM(E66) -> 0 | F67: 0 | G67: 0 | H67: 50000 | I67: 50000 | J67: 50000 | K67: 50000 | L67: 139663 | M67: 3922 | N67: 27703
C68: ANNUAL BUDGET: | D68: =+D67+D65+D57+D19+D15 -> 2032576.931 | E68: =+E67+E65+E57+E19+E15 -> 659753.06 | F68: 1463118.376 | G68: -662052.38 | H68: 3493395.988 | I68: 3417466.766 | J68: 3458498.306 | K68: 3451558 | L68: 3362591 | M68: 3144745 | N68: 3139413.49

Sheet MiscInit
C1: BRANDON UNIVERSITY: **OTHER INITIATIVES **
C2: REFERENCE BUDGET
C3: APRIL 2019 TO MARCH 2020 | D3: Approved | E3: 2018/19 | F3: Adj. Baseline | G3: 2019/20 | H3: 2019/20 | I3: 2019/20 | J3: 2020/21 | K3: 2021/22 | L3: 2018/19
D4: Budget | E4: Adjustments | F4: Budget | G4: Salary | H4: Other | I4: Budget | J4: Budget | K4: Budget | L4: APPROVED | M4: 2017-18 | N4: 2016-17 | O4: 2015-16
D5: 2018/19 | F5: 2018/19 | G5: Increments | H5: Adjustments | I5: Allocation | J5: Allocation | K5: Allocation | L5: BUDGET | M5: ACTUAL | N5: ACTUAL | O5: ACTUAL
A6: 5202 | B6: Recongnize | C6: Other
A7: 320/321 | B7: 029 | C7: - Tuition Waivers - BUSU/Quill | D7: 38000 | F7: =SUM(D7:E7) -> 38000 | I7: =SUM(F7:H7) -> 38000 | J7: 38000 | K7: 38000 | L7: 38000 | M7: 38529 | N7: 34972 | O7: 34790
A8: 322/323/324 | B8: 100 | C8: - Tuition Waivers - Staff | D8: 25000 | F8: =SUM(D8:E8) -> 25000 | I8: =SUM(F8:H8) -> 25000 | J8: 25000 | K8: 25000 | L8: 25000 | M8: 24851 | N8: 19029 | O8: 16612
A9: 325 | B9: S | C9: - Tuition Waivers - Dependants | D9: 112000 | F9: 112000 | I9: 112000 | J9: 112000 | K9: 112000 | L9: 112000 | M9: 102284 | N9: 96459 | O9: 62161
A10: 334 | B10: S | C10: - BOG Scholarships | D10: 240000 | F10: 240000 | I10: 240000 | J10: 240000 | K10: 240000 | L10: 240000 | M10: 235531 | N10: 225081 | O10: 182422
A11: 333 | B11: S | C11: - President's Scholarship Awards | D11: 70000 | F11: 70000 | I11: 70000 | J11: 70000 | K11: 70000 | L11: 70000 | M11: 72704 | N11: 56575 | O11: 67792
A12: 332 | B12: S | C12: - Graduate Scholarships/Assistantships | D12: 25000 | F12: 25000 | I12: 25000 | J12: 25000 | K12: 25000 | L12: 25000
A13: 329 | B13: S | C13: - Int'll Student Scholarships | D13: 126318 | F13: 126318 | H13: 150874.95 | I13: 277192.95 | J13: 364443.3 | K13: 452221.5 | L13: 126318 | M13: 112180 | N13: 63260 | O13: 62735
A14: 328 | B14: S | C14: - Scholarship/Exchange Students/Professors | D14: 15118 | F14: 15118 | I14: 15118 | J14: 15118 | K14: 15118 | L14: 15118 | M14: 16265 | N14: 10447 | O14: 18568
A15: 327 | B15: S | C15: - WUSC | D15: 50000 | F15: 50000 | I15: 50000 | J15: 50000 | K15: 50000 | L15: 50000 | M15: 51745 | N15: 51655 | O15: 27459
A16: 326 | B16: S | C16: - Youth In Care Study Awards | D16: 15000 | F16: 15000 | I16: 15000 | J16: 15000 | K16: 15000 | L16: 15000 | M16: 15075 | N16: 13303 | O16: 11772
A17: 337 | B17: S | C17: - Research buyouts and USRA | D17: 9000 | F17: 9000 | I17: 9000 | J17: 9000 | K17: 9000 | L17: 9000 | M17: 9000 | N17: 5625 | O17: 7875
A18: 336 | B18: 001 | C18: - CRC Funding* | D18: 75895 | F18: 75895 | H18: 36091 | I18: 111986 | J18: 131120 | K18: 150862 | L18: 75895 | M18: 40604 | N18: 69304 | O18: 32930
A19: 335 | B19: S | C19: - MB Scholarship & Burs Initiative | F19: 0 | I19: 0 | M19: 332900
A20: 339 | B20: 372 | C20: - Research Funding* | D20: 105000 | F20: 105000 | I20: 105000 | J20: 105000 | K20: 105000 | L20: 105000 | M20: 97062 | N20: 119480 | O20: 92037
A21: 341 | B21: 304 | C21: - Indirect Costs/Research Support | D21: 0 | F21: 0 | I21: 0 | N21: -6410 | O21: 3300
A22: 340 | B22: 005 | C22: - BUSU Workstudy Program | D22: 15000 | F22: 15000 | I22: 15000 | J22: 15000 | K22: 15000 | L22: 15000 | M22: 14028 | N22: 13554 | O22: 17370
A23: 344 | B23: 214 | C23: - Student Travel Fund | D23: 9480 | F23: 9480 | I23: 9480 | J23: 9480 | K23: 9480 | L23: 9480 | M23: 8533 | N23: 12534 | O23: 7483
A24: 338 | B24: 001 | C24: - Enhanced Business Admin. Prgm (2840) | D24: 100000 | F24: 100000 | H24: 3834 | I24: 103834 | J24: 109537 | K24: 115354 | L24: 100000 | M24: 85450 | N24: 91306 | O24: 88509
A25: 301 | B25: 304 | C25: - Campus Beautification | D25: 5000 | F25: 5000 | I25: 5000 | J25: 5000 | K25: 5000 | L25: 5000 | M25: 95 | N25: 843 | O25: 471
A26: 310 | B26: 304 | C26: - BU Early Learning Centre Subsidy | D26: 4895 | F26: 4895 | I26: 4895 | J26: 4895 | K26: 4895 | L26: 4895 | M26: 4895 | N26: 5100 | O26: 5023
A27: 345 | B27: 311? | C27: - AMA Implementation | D27: 50000 | F27: 50000 | I27: 50000 | J27: 50000 | K27: 50000 | L27: 50000 | M27: 829
A28: 346 | B28: 378 | C28: - PENT funding adjustment (multi-year) | D28: 90000 | F28: 90000 | H28: 45000 | I28: 135000 | J28: 180000 | K28: 225000 | L28: 90000 | M28: 45000
A29: 358 | B29: 305 | C29: - Access Copyright/CANCOPY Fees | D29: 45000 | F29: 45000 | I29: 45000 | J29: 45000 | K29: 45000 | L29: 45000 | M29: 48267 | N29: 53571 | O29: 39303
A30: 315 | C30: - General Campus Property Taxes | D30: 109710 | F30: 109710 | I30: 109710 | J30: 109710 | K30: 109710 | L30: 109710 | M30: 104701 | N30: 103845 | O30: 106894
A31: 350 | B31: 307 | C31: - Institutional Memberships | D31: 75128 | F31: 75128 | H31: 3700 | I31: 78828 | J31: 78828 | K31: 78828 | L31: 75128 | M31: 74498 | N31: 110190 | O31: 115560
A32: 342 | B32: 100 | C32: - Pension liability payment | D32: 206906 | F32: 206906 | H32: -50906 | I32: 156000 | J32: 125000 | K32: 100000 | L32: 206906 | M32: 507250 | N32: 1260500 | O32: 1455049
C33: University bursary fund - special purpose acct. | D33: 0 | F33: 0 | I33: 0 | L33: 0
C34: BUFA members | D34: 0 | F34: 0 | I34: 0 | L34: 0
C35: - Carryforward contributions | D35: -413855 | F35: -413855 | H35: 413855 | I35: 0 | L35: -413855
A36: 360 | B36: 799 | C36: - Ancillary contribution | D36: -250000 | F36: -250000 | H36: 250000 | I36: 0 | L36: -250000 | M36: -200000 | N36: -308137
A37: 361 | B37: 799 | C37: - Conservatory contribution | D37: -20000 | F37: -20000 | H37: 20000 | I37: 0 | L37: -20000 | M37: -20000
C38: - Unappropriated surplus | D38: -923650 | F38: -923650 | H38: 923650 | I38: 0 | L38: -923650
A39: 4209xxx | C39: - Junior Kindergarten (4209) | D39: 26314 | F39: 26314 | H39: 1611.844167 | I39: 27925.84417 | J39: 27955.8968 | K39: 28039.79466 | L39: 26314 | N39: 21617 | O39: 18713
A40: 4501xxx | C40: - Dauphin (4501) | D40: 0 | F40: 0 | I40: 0 | M40: 64269 | N40: 44988
A41: 359 | C41: - Contingency fund | D41: 28528 | E41: 23074.4 | F41: 51602.4 | H41: 536385.6624 | I41: 587988.0624 | J41: 494419.762 | K41: 508727.0773 | L41: 28528 | M41: 7530 | N41: 1732 | O41: 4
A42: 362 | B42: 321 | C42: - Other: "I Am Well" Student Assistance Insurance | D42: 20000 | F42: 20000 | I42: 20000 | J42: 20000 | K42: 20000 | L42: 20000 | M42: 58237
D43: =SUM(D6:D42) -> 84787 | E43: =SUM(E6:E42) -> 23074.4 | F43: 107861.4 | G43: 0 | H43: 2334096.457 | I43: 2441957.857 | J43: 2474506.959 | K43: 2622235.372 | L43: 84787 | M43: 1952312 | N43: 2170423 | O43: 2474832

Sheet BJ Hales (hidden)
C1: BRANDON UNIVERSITY BJ HALES MUESEM
C2: REFERENCE BUDGET
C3: =#REF! -> 
D4: =#REF! ->  | E4: 2008-09
A5: 4131 | D5: REF'NCE | E5: APPROVED | F5: 2008/09 | G5: 2007-08
C6: EXPENDITURE: | D6: BUDGET | E6: BUDGET | F6: ACTUAL | G6: ACTUAL
A7: 004 | C7: P.T./Student Assistants/Casual | D7: ='Salary Detail'!#REF! ->  | E7: 14958 | F7: 15481 | G7: 14842
A8: 100 | C8: Benefits | D8: =(SUM(D7:D7)*0.145)*((1+#REF!)) ->  | E8: 2169 | F8: 3042 | G8: 2909
A9: 099/199 | C9: Recoveries | D9: 0 | E9: 0 | F9: 0 | G9: 0
C10: SUB-TOTAL: SALARIES & BENEFITS: | D10: =SUM(D7:D9) ->  | E10: =SUM(E7:E9) -> 17127 | F10: =SUM(F7:F9) -> 18523 | G10: =SUM(G7:G9) -> 17751
A11: 201/02/06 | C11: Travel/Moving/Recruitment | D11: 0 | E11: 0 | F11: 0 | G11: 0
A12: 204/05/10 | C12: Prof. Dev. Allowances | D12: 0 | E12: 0 | F12: 0 | G12: 0
A13: 299 | C13: Recoveries | D13: 0 | E13: 0 | F13: 0 | G13: 0
C14: SUB-TOTAL: TRAVEL & MOVING: | D14: =SUM(D11:D13) -> 0 | E14: =SUM(E11:E13) -> 0 | F14: =SUM(F11:F13) -> 0 | G14: =SUM(G11:G13) -> 0
A15: 301 | C15: Advertising | D15: =0*((1+#REF!)) ->  | E15: 0 | F15: 0 | G15: 0
A16: 302 | C16: Special Allowances | D16: =0*((1+#REF!)) ->  | E16: 0 | F16: 0 | G16: 0
A17: 304 | C17: Consumables | D17: 0 | E17: 155 | F17: 0 | G17: 60
A18: 305 | C18: Photocopying - Printing | D18: 0 | E18: 0 | F18: 0 | G18: 51
A19: 306 | C19: Films - Film Rental | D19: =0*((1+#REF!)) ->  | E19: 0 | F19: 0 | G19: 0
A20: 307 | C20: Membership Subscriptions | D20: 0 | E20: 157 | F20: 102 | G20: 152
A21: 308 | C21: Postage | D21: =0*((1+#REF!)) ->  | E21: 0 | F21: 0 | G21: 0
A22: 309 | C22: Telephone - Long Dist. | D22: =0*((1+#REF!)) ->  | E22: 0 | F22: 2 | G22: 16
A23: 310 | C23: Telephone - Rental | D23: 0 | E23: 312 | F23: 306 | G23: 303
A24: 311 | C24: Repairs & Maintenance | D24: =0*((1+#REF!)) ->  | E24: 0 | F24: 0 | G24: 0
A25: 312 | C25: Other Rentals | D25: =0*((1+#REF!)) ->  | E25: 0 | F25: 0 | G25: 0
A26: 315 | C26: AV Supplies | D26: =0*((1+#REF!)) ->  | E26: 0 | F26: 0 | G26: 0
A27: 330 | C27: Food Purchases | D27: =0*((1+#REF!)) ->  | E27: 0 | F27: 0 | G27: 0
A28: 333 | C28: Sundry | D28: =0*((1+#REF!)) ->  | E28: 0 | F28: 0 | G28: 0
A29: 335 | C29: Program Expenses | D29: =0*((1+#REF!)) ->  | E29: 0 | F29: 0 | G29: 0
A30: 354 | C30: Fax Expenses | D30: =0*((1+#REF!)) ->  | E30: 0 | F30: 0 | G30: 0
A31: 357/358 | C31: Software/Software Licensing | D31: =0*((1+#REF!)) ->  | E31: 0 | F31: 0 | G31: 0
A32: 382/386 | C32: Service Charges/Collection Bureau | D32: =0*((1+#REF!)) ->  | E32: 0 | F32: 0 | G32: 0
A33: 392 | C33: Activity Supplies | D33: =0*((1+#REF!)) ->  | E33: 0 | F33: 0 | G33: 0
A34: 393 | C34: Equipment - furniture(under $1000) | D34: =0*((1+#REF!)) ->  | E34: 0 | F34: 0 | G34: 0
A35: 399 | C35: Recoveries | D35: 0 | E35: 0 | F35: 0 | G35: 0
A36: *** | C36: Unallocated | D36: 0 | E36: 0 | F36: 0 | G36: 0
C37: SUB-TOTAL: SUPPLIES & OTHER EXPS: | D37: =SUM(D15:D36) ->  | E37: =SUM(E15:E36) -> 624 | F37: =SUM(F15:F36) -> 410 | G37: =SUM(G15:G36) -> 582
A38: 502 | C38: Donations | D38: 0 | E38: -250 | F38: -111 | G38: =-185-100 -> -285
A39: 586 | C39: Grant - Prov MB | D39: 0 | E39: -3150 | F39: -3150 | G39: -3150
C40: SUB-TOTAL: REVENUES: | D40: =SUM(D38:D39) -> 0 | E40: =SUM(E38:E39) -> -3400 | F40: =SUM(F38:F39) -> -3261 | G40: =SUM(G38:G39) -> -3435
A41: 9xx | C41: Equipment Purchases | D41: 0 | E41: 0 | F41: =E41 -> 0 | G41: 0
C42: SUB-TOTAL: EQUIPMENT | D42: =SUM(D41) -> 0 | E42: =SUM(E41) -> 0 | F42: =SUM(F41) -> 0 | G42: =SUM(G41) -> 0
C43: ANNUAL BUDGET: | D43: =D10+D14+D37+D40+D42 ->  | E43: =E10+E14+E37+E40+E42 -> 14351 | F43: =F10+F14+F37+F40+F42 -> 15672 | G43: =G10+G14+G37+G40+G42 -> 14898

Sheet Jr. Kindergarten
C1: BRANDON UNIVERSITY JUNIOR KINDERGARTEN
C2: REFERENCE BUDGET
C3: APRIL 2019 TO MARCH 2020
D4: 2019/20 | E4: 2020/21 | F4: 2021/22 | G4: 2018/19
A5: 4209 | D5: REF'NCE | E5: PROJ. | F5: PROJ. | G5: APPROVED | H5: 2017-18 | I5: 2016-17 | J5: 2015-16
C6: EXPENDITURE: | D6: BUDGET | E6: BUDGET | F6: BUDGET | G6: BUDGET | H6: ACTUAL | I6: ACTUAL | J6: ACTUAL
A7: 003 | C7: F.T. Support | D7: 52200.16667 | E7: 53244.17 | F7: 53244.17 | G7: 50950 | H7: 49415 | I7: 46405 | J7: 46488
A8: 005 | C8: P.T./Student Assistants/Casual | D8: 0 | E8: 0 | F8: 0 | H8: 5576 | I8: 2118 | J8: 2500
A9: 100 | C9: Benefits | D9: 11745.0375 | E9: 10648.834 | F9: 10648.834 | G9: 11464 | H9: 11373 | I9: 10948 | J9: 10621
A10: 099/199 | C10: Recoveries | D10: 0 | E10: 0 | F10: 0
C11: SUB-TOTAL: SALARIES & BENEFITS: | D11: =SUM(D7:D10) -> 63945.20417 | E11: =SUM(E7:E10) -> 63893.004 | F11: 63893.004 | G11: 62414 | H11: 66364 | I11: 59471 | J11: 59609
A12: 201/02/06 | C12: Travel/Moving/Recruitment | D12: 0 | E12: 0 | F12: 0
A13: 204/05/10 | C13: Prof. Dev. Allowances | D13: 0 | E13: 0 | F13: 0
A14: 299 | C14: Recoveries | D14: 0 | E14: 0 | F14: 0
C15: SUB-TOTAL: TRAVEL & MOVING: | D15: 0 | E15: 0 | F15: 0 | G15: 0 | H15: 0 | I15: 0 | J15: 0
A16: 304 | C16: Consumables | D16: 4059.6 | E16: 4140.792 | F16: 4223.60784 | G16: 3980 | I16: 33
A17: 305 | C17: Photocopying - Printing | D17: 53.04 | E17: 54.1008 | F17: 55.182816 | G17: 52 | H17: 45 | I17: 97 | J17: 173
A18: 308 | C18: Postage | D18: 0 | E18: 0 | F18: 0 | H18: 6 | I18: 44 | J18: 53
A19: 309 | C19: Telephone - Long Dist. | D19: 0 | E19: 0 | F19: 0 | J19: 7
A20: 310 | C20: Telephone - Rental | D20: 0 | E20: 0 | F20: 0 | H20: 318 | I20: 318 | J20: 318
A21: 311 | C21: Repairs & Maintenance | D21: 0 | E21: 0 | F21: 0 | H21: 75 | I21: 152
A22: 382/386 | C22: Service Charges/Collection Bureau | D22: 0 | E22: 0 | F22: 0 | H22: 29 | I22: 278 | J22: 311
A23: 393 | C23: Equipment - furniture(under $1000) | D23: 0 | E23: 0 | F23: 0
A24: 399 | C24: Recoveries | D24: 0 | E24: 0 | F24: 0
A25: *** | C25: Unallocated | D25: 0 | E25: 0 | F25: 0
C26: SUB-TOTAL: SUPPLIES & OTHER EXPS: | D26: =SUM(D12:D25) -> 4112.64 | E26: =SUM(E12:E25) -> 4194.8928 | F26: 4278.790656 | G26: 4032 | H26: 473 | I26: 922 | J26: 862
A27: 5xx | C27: Revenues | D27: -40132 | E27: -40132 | F27: -40132 | G27: -40132 | H27: -38435 | I27: -38777 | J27: -41758
C28: SUB-TOTAL: REVENUES: | D28: =SUM(D27) -> -40132 | E28: =SUM(E27) -> -40132 | F28: -40132 | G28: -40132 | H28: -38435 | I28: -38777 | J28: -41758
A29: 9xx | C29: Equipment Purchases | D29: 0 | E29: 0 | F29: 0 | J29: 0
C30: SUB-TOTAL: EQUIPMENT | D30: =SUM(D29) -> 0 | E30: =SUM(E29) -> 0 | F30: 0 | G30: 0 | H30: 0 | I30: 0 | J30: 0
C31: ANNUAL BUDGET: | D31: =+D11+D26+D28+D30 -> 27925.84417 | E31: =+E11+E26+E28+E30 -> 27955.8968 | F31: 28039.79466 | G31: 26314 | H31: 28402 | I31: 21616 | J31: 18713
